Workbook

Sheet EingabeMaske
E1: WE-Rechner 1 - 2023 | F1: Bitte beachten Sie den jeweiligen Kommentar der Zellen der fünften Spalte (Spalte E). Sofern nicht alle Kommentare gleichzeitig eingeblendet sind, halten Sie die Maus-Positions-Marke (Cursor) über eine Zelle, in deren rechter oberer Ecke ein rotes Dreieck angezeigt wird.
A2: Vergleichswertberechnung "Wohnungseigentum"
A3: gem. § 182 Abs.2 BewG i. V. m. § 183 BewG.
A7: Eingabefelder blau | B7: Berechnungsfelder rot | D7: Kommentar
A9: Bezeichnung des Wertermittlungsobjekts der Bewertung nach § 183 BewG | B9: 53449 Bad Neuenahr, Musterstraße 2
A10: Liste der Vergleichsfaktoren | D10: Bobenheim-Roxheim - Roxheim
A11: Gemeinde / Gemarkung / Landkreis bzw. Stadt: | B11: / /
D13: =(YEAR(D15)+1) -> 2021
A14: Merkmale des Wertermittlungsobjekts | C14: Eingabeschranken
A15: Wertermittlungsstichtag (WST): | C15: 01.01.2009 bis heute | D15: 2020-01-01
A16: Index nach Marktsegment zum Wertermittlungsstichtag (2010 =100): | D16: =IF(YEAR(D15)=2022,'Vergleichsdaten 2022'!J393,IF(YEAR(D15)>=2023,'Vergleichsdaten 2023'!J184,'Vergleichsdaten 2021'!J170)) -> 0
A19: Grundstücksgröße (GG): | C19: 30 m² bis 500.000 m² | D19: 480
A20: Gebäudestandardstufe (GST): | C20: siehe Berechnungshilfe Blatt "GebStandard", 1 bis 5 | D20: =GebStandard!I25 -> 3
A21: Wohnungsgröße [Wohnfläche (WF)]: | C21: 15 bis 250 m² | D21: 100
A22: Anzahl der Wohneinheiten in der Wohnanlage | C22: 3 bis 500 | D22: 10
A23: Miteigentumsanteil (MA) | C23: Zähler | D23: 1
C24: Nenner | D24: 6
C25: in Prozent | D25: =IF(D23>=D24,"Fehler",ROUND(D23/D24,6)) -> 0.166667
A26: Baujahr (BJ): | D26: 1990
A27: Gesamtnutzungsdauer (GND): | C27: aus Standardstufe berechnet | D27: =ROUND($D$20*5+55,1) -> 70
A28: Restnutzungsdauer (RND): | C28: = GND ./. (ggf. fiktives) Alter; Mindest-RND = 30% der GND | D28: =ROUND(IF(D27-(YEAR(D15)-D26)>= D27*30%,IF(D27-(YEAR(D15)-EingabeMaske!D26)>RND!F32,D27-(YEAR(D15)-D26),RND!F32),IF(RND!F32>D27*30%,RND!F32,D27*30%)),1) -> 40
C29: relativ (RND/GND) in Prozent | D29: =IF(D28>D27,"Fehler GND>RND",ROUND(ROUND($D28,0)/ROUND(D$27,0),4)) -> 0.5714
A30: Bodenrichtwert (BRW), maßgeblich ist der BRW zum 01.01.2020 gemäß Liegenschaftskarte/Geodatenserver RP | D30: 300 | F30: =IF(D30>1500,"Plausibel? Wurde nicht irrtümlich ein Geschäftslagenwert statt des Wohnlagewertes eingegeben?","") -> 
A32: Sondereigentume, Sondernutzungsrechte (freie Eingaben)
A33: Garage | C33: 3 | D33: 7000
A36: Beschreibung des Richtwertobjekts (RWO)
A37: Bezeichnung des herangezogenen Richtwertes
A38: (Gemeinde/Gemeindeteil/ggf. Kreismittel) | D38: =B11 -> / /
A39: Bodenwertniveau (BWN): | D39: =VLOOKUP(EingabeMaske!B$11,'Vergleichsfaktoren 2021 (2)'!A7:I3022,7) -> 0
A40: Vergleichsfaktor [Richtwert (RW)]: aus den Kaufpreissammlungen der Gutachterausschüsse abgeleiteter Wert einer Wohnung, die nach den wertbestimmenden Merkmalen mit der zu bewertenden Wohnung annährend vergleichbar ist Die wertbestimmenden Abweichungen werden in mehreren Rechenschritten entsprechend angepasst. | D40: =ROUND(VLOOKUP(EingabeMaske!B$11,'Vergleichsfaktoren 2021 (2)'!A7:I3022,8),0) -> 0
A41: Stichtag des Richtwertes: | D41: 2020-01-01
A42: Index nach Marktsegment 01.01.2020 (2020 = 100): | D42: =IF(YEAR(D15)=2022,'Vergleichsdaten 2022'!K393,IF(YEAR(D15)>=2023,'Vergleichsdaten 2023'!K184,'Vergleichsdaten 2021'!K170)) -> 0
A43: Marktsegment | D43: =VLOOKUP(EingabeMaske!B$11,'Vergleichsfaktoren 2021 (2)'!A7:I3022,6) -> 0
A44: Sachwertfaktor des Richtwertgrundstücks | D44: =VLOOKUP(EingabeMaske!B$11,'Vergleichsfaktoren 2021 (2)'!A7:I3022,9) -> 0
A45: Gebäudestandardstufe (GST): | D45: 3
A46: Gesamtnutzungsdauer (GND): | B46: 70 Jahre | D46: 1
A47: Restnutzungsdauer (RND): | B47: 43 Jahre | C47: relative RND: | D47: =ROUND(43/70,4) -> 0.6143
A48: Wohnungsgröße (WF): | D48: 80
A49: Anzahl der Wohneinheiten (WE) in der Wohnanlage: | D49: 10
A50: Grundstücksgröße (GG): | D50: 1300
A51: Miteigentumsanteil (MA) in Prozent: | D51: 0.1
A52: relativer Bodenwertanteil (BWA), je m² Wohnfläche: | D52: =ROUND(D39*D50/D49/D48,2) -> 0
A57: Quelle: Oberer Gutachterausschuss für Grundstückswerte Rheinland-Pfalz gem. Landesgrundstückmarktbericht 2021

Sheet Berechnung und Ergebnis
D1: =EingabeMaske!E1 -> WE-Rechner 1 - 2023
A2: Vergleichswertberechnung "Wohnungseigentum"
A4: Bezeichnung des Wertermittlungsobjekts der Bewertung nach § 183 BewG: | B4: =EingabeMaske!B9 -> 53449 Bad Neuenahr, Musterstraße 2
A6: Merkmale des Wertermittlungsobjekts (WO)
A7: =EingabeMaske!A15 -> Wertermittlungsstichtag (WST): | D7: =EingabeMaske!D15 -> 2020-01-01
A8: =EingabeMaske!A19 -> Grundstücksgröße (GG): | D8: =ROUND(EingabeMaske!D19,0) -> 480
A9: Miteigentumsanteil: | D9: =ROUND(EingabeMaske!D25,4) -> 0.1667
A10: Baujahr (BJ): | D10: =EingabeMaske!D26 -> 1990
A11: =EingabeMaske!A20 -> Gebäudestandardstufe (GST): | D11: =ROUND(EingabeMaske!D20,2) -> 3
A12: Wohnfläche (WF): | D12: =ROUND(EingabeMaske!D21,1) -> 100
A13: Anzahl der Wohneinheiten in der Wohnanlage | D13: =EingabeMaske!D22 -> 10
A14: =EingabeMaske!A27 -> Gesamtnutzungsdauer (GND): | D14: =ROUND(EingabeMaske!D27,1) -> 70
A15: Restnutzungsdauer (RND): | D15: =ROUND(EingabeMaske!D28,1) -> 40
C16: relative RND: | D16: =EingabeMaske!D29 -> 0.5714
A17: Bodenrichtwert (BWN), letzter Bodenrichtwert (01.01.2020): | D17: =ROUND(EingabeMaske!D30,0) -> 300
A18: Sondereigentume, Sondernutzungsrechte
A19: Sondernutzungsrechte Kfz-Unterbringung | D19: =EingabeMaske!D33 -> 7000
A20: =IF(EingabeMaske!A33<>0,EingabeMaske!A33,"") -> Garage
A21: Beschreibung des Richtwertobjekts (RWO)
A22: Bezeichnung des herangezogenen Richtwertes
A23: Gemeinde / Gemarkung / Landkreis bzw. Stadt: | B23: =EingabeMaske!D38 -> / /
A24: Bodenwertniveau (BWN): | D24: =EingabeMaske!D39 -> 0
A25: Vergleichsfaktor [Richtwert (RW)]: | D25: =EingabeMaske!D40 -> 0
A26: Stichtag des Richtwertes: | D26: =EingabeMaske!D41 -> 2020-01-01
A27: Index nach Marktsegment zum 01.01.2020 (2010 =100): | D27: =ROUND(EingabeMaske!D42,0) -> 0
A28: Sachwertfaktor des Richtwertgrundstücks | D28: =EingabeMaske!D44 -> 0
A29: Gebäudestandardstufe (GST) (beeinflusst für die Nutzungsdauer): | D29: 3
A30: Gesamtnutzungsdauer (GND): | B30: 70 Jahre | D30: 1
A31: Restnutzungsdauer (RND): | B31: 43 Jahre | C31: relative RND: | D31: =EingabeMaske!D47 -> 0.6143
A32: Wohnungsgröße [Wohnfläche (WF)]: | D32: 80
A33: Anzahl der Wohneinheiten (WE) in der Wohnanlage: | D33: 10
A34: Grundstücksgröße (GG): | D34: 1300
A35: Miteigentumsanteil (MA) in Prozent: | D35: 0.1
A36: Bodenwertanteil (BWA) pro m² Wohnfläche: | D36: =ROUND(D24*D34/D33/D32,2) -> 0
A38: Die vorliegenden Vergleichsfaktoren wurden vom oberen Gutachterausschuss RLP für ein sog. Richtwertgrundstück (= Standardgrundstück) abgeleitet. Um die Vergleichsfaktoren (im Weiteren als Richtwert bezeichnet) an das konkrete Wertermittlungsobjekt anzupassen, werden hierauf seitens des OGA nachfolgende Anpassungsfaktoren und Umrechnungskoeffizienten zur Schätzung der Zu- und Abschläge angewandt (vgl. § 12 ImmoWertV). Diese wurden zum Teil vom OGA selbst abgeleitet bzw. im Einzelfall der einschlägigen Literatur entnommen und entsprechend dem Bewertungsgesetz seitens des LfSt angepasst.
A39: =EingabeMaske!A57 -> Quelle: Oberer Gutachterausschuss für Grundstückswerte Rheinland-Pfalz gem. Landesgrundstückmarktbericht 2021
D40: =EingabeMaske!E1 -> WE-Rechner 1 - 2023
A41: Berechnung
A42: 1. Berücksichtigung des Bodenwertanteils des Wertermittlungsobjekts (RW 1)
A43: Bodenwertanteil des Wertermittlungsobjekts pro m² Wf
A44: Bodenwert (BW): | D44: =D17 -> 300
A45: Grundstücksgröße (GG): | C45: x | D45: =D8 -> 480
A46: Wohnfläche (WF): | C46: / | D46: =D12 -> 100
A47: Miteigentumsanteil: | C47: x | D47: =D9 -> 0.1667
A48: Bodenwertanteil des Wertermittlungsobjekts [€/m² Wf]: | D48: =ROUND(D44*D45/D46*D47,2) -> 240.05
A50: Ermittlung des Richtwertes mit dem Bodenwertanteil des Wertermittlungsobjekts
A51: Richtwert: | D51: =D25 -> 0
A52: Sachwertfaktor: | C52: / | D52: =D28 -> 0
D53: =D51/D52 -> 
A54: Bodenwertanteil des Wertermittlungsobjekts [€/m² Wf]: | C54: + | D54: =D48 -> 240.05
A55: Bodenwertanteil des Richtwertobjekts [€/m² Wf]: | C55: - | D55: =D36 -> 0
D56: =D53+D54-D55 -> 
A57: Ermittlung des Richtwertes (RW1) mit dem marktangepassten Bodenwertanteil des Wertermittlungsobjektes (WO)
A58: Sachwertfaktor [SWF(WO)]: | C58: x | D58: =ROUND('Vergleichsdaten 2022'!B20,2) -> 
A59: Zwischenergebnis (RW1): | D59: =ROUND(D58*D56,2) -> 
A61: 2. Anpassung an den Gebäudestandard (RW 2)
A62: Herausrechnen des Gebäudewertanteils aus (RW1)
A63: Bodenwertanteil des Wertermittlungsobjekts [€/m² Wf]: | C63: - | D63: =D54 -> 240.05
A64: Sachwertfaktor [SWF(WO)]: | C64: x | D64: =D58 -> 
A65: Bodenwertanteil am Richtwert [RW1(BW)]: | C65: - | D65: =ROUND(D63*D64,2) -> 
A66: Zwischenergebnis [RW1(Geb)]: | D66: =ROUND(D59-D48*D58,2) -> 
A67: UKGST: | C67: x | D67: =ROUND('Vergleichsdaten 2022'!B$33*D$11^2+'Vergleichsdaten 2022'!B$34*D$11+'Vergleichsdaten 2022'!B$35,3) -> 1
A68: Gebäudewertanteil, angepasst [RW2(Geb)]: | D68: =ROUND(D66*D67,2) -> 
A70: 3. Anpassung an die Restnutzungsdauer (RW 3)
A72: relative Restnutzungsdauer des Wertermittlungsobjekts | D72: ='Berechnung und Ergebnis'!D16 -> 0.5714
A73: relative Restnutzungsdauer des Richtwertobjekts | C73: / | D73: =D31 -> 0.6143
C74: x | D74: =ROUND(D72/D73,3) -> 0.93
A75: Zwischenergebnis [RW3(Geb)]: | D75: =ROUND(D68*D74,2) -> 
A77: 4. Anpassung an die Wohnungsgröße (RW 4)
A79: UKWF(WO): | D79: =ROUND('Vergleichsdaten 2022'!B102*D12^2+'Vergleichsdaten 2022'!B103*D12+'Vergleichsdaten 2022'!B104,2) -> 1.01
A80: UKWF(RWO): | C80: / | D80: 1
C81: x | D81: =ROUND(D79/D80,3) -> 1.01
A82: Zwischenergebnis [RW4(Geb)]: | D82: =ROUND(D75*D81,2) -> 
A84: 5. Anpassung an die Anzahl der Wohneinheiten (RW 5)
A86: UKAWE(WO): | D86: =ROUND(IF(D13<=40,'Vergleichsdaten 2022'!B$137*D13^'Vergleichsdaten 2022'!B$138,'Vergleichsdaten 2022'!B$144*D13^4+'Vergleichsdaten 2022'!B$145*D13^3+'Vergleichsdaten 2022'!B$146*D13^2+'Vergleichsdaten 2022'!B$147*D13+'Vergleichsdaten 2022'!B$148),2) -> 1
A87: UKAWE(RWO): | C87: / | D87: 1
C88: x | D88: =ROUND(D86/D87,3) -> 1
A89: Zwischenergebnis/Übertrag [RW5(Geb)]: | D89: =ROUND(D82*D88,2) -> 
A91: =EingabeMaske!A57 -> Quelle: Oberer Gutachterausschuss für Grundstückswerte Rheinland-Pfalz gem. Landesgrundstückmarktbericht 2021
D92: =EingabeMaske!E1 -> WE-Rechner 1 - 2023
A94: Zwischenergebnis/Übertrag [RW5(Geb)]: | D94: =D89 -> 
A96: 6. Berücksichtigung der veränderten Wertverhältnisse zwischen dem Richtwert-stichtag und dem Wertermittlungsstichtag (RW 6)
A97: Hinzurechnen des Bodenwertanteils
A98: Bodenwertanteil [RW1(BW)], vgl. die vorstehende Anpassung Gebäudestandard: | C98: + | D98: =D65 -> 
A99: Zwischenergebnis (RW6): | D99: =ROUND(D89+D98,2) -> 
A101: UKWst(WO): | B101: =EingabeMaske!D15 -> 2020-01-01 | D101: =EingabeMaske!D16 -> 0
A102: UKWst(RWO): | B102: =EingabeMaske!D41 -> 2020-01-01 | C102: / | D102: =EingabeMaske!D42 -> 0
C103: x | D103: =ROUND(D101/D102,2) -> 
A104: Zwischenergebnis (RW6): | D104: =ROUND(D99*D103,2) -> 
A106: 7. Vorläufiger Vergleichswert, sonstige Unterschiede zwischen Richtwert und Bewertungsobjekt
A107: Wohnungsgröße | C107: x | D107: =D12 -> 100
A108: vorläufige Vergleichswert | D108: =ROUND(D104*D107,2) -> 
A110: Sondereigentume, Sondernutzungsrechte
A111: Sondernutzungsrechte Kfz-Unterbringung | C111: + | D111: =D19 -> 7000
A113: Vergleichswert | D113: =ROUND(D108+D111,2) -> 
C114: gerundet | D114: =ROUND(D113,-3) -> 
A116: =EingabeMaske!A57 -> Quelle: Oberer Gutachterausschuss für Grundstückswerte Rheinland-Pfalz gem. Landesgrundstückmarktbericht 2021

Sheet Vergleichsfaktoren 2021 (2) (hidden)
B1: Richtwerte (RW) für Wohnungseigentume im Weiterverkauf
B2: Stichtag 1.1.2020, Modell s. LGMB 2021, Kap. 3.6.1.2 - © Oberer Gutachterausschuss für Grundstückswerte Rheinland-Pfalz
B3: Kurzbeschreibung des Richtwertobjekts: 10 Einheiten im Objekt, Grundstücksgröße 1.300 m², mittlerer Standard, Wohnfäche 80 m², Alter 27 Jahre
B4: Hinweis: Sollte eine Gemarkung nicht nachgewiesen sein, kann eine vergleichbare Gemarkung desselben Marktsegments herangezogen werden.
A5: Ergänzung LfSt
A6: Gemeinde / Gemarkung / Landkreis bzw. Stadt | B6: Nr. | C6: Gemarkung | D6: Gemeinde | E6: Landkreis/kreisfreie Stadt | F6: Markt-segment Nr. | G6: BWN €/m² Grdst.fl. | H6: VF €/m² Wohnfl. | I6: SWF
A7: =TRIM(D7)&" / "&TRIM(C7)&" / "&TRIM(E7) -> / /
A8: =TRIM(D8)&" / "&TRIM(C8)&" / "&TRIM(E8) -> / /
A9: / /
A10: / /
A11: / /
A12: / /
A13: / /
A14: / /
A15: / /
A16: / /
A17: / /
A18: / /
A19: / /
A20: / /
A21: / /
A22: / /
A23: / /
A24: / /
A25: / /
A26: / /
A27: / /
A28: / /
A29: / /
A30: / /
A31: / /
A32: / /
A33: / /
A34: / /
A35: / /
A36: / /
A37: / /
A38: / /
A39: / /
A40: / /
A41: / /
A42: / /
A43: / /
A44: / /
A45: / /
A46: / /
A47: / /
A48: / /
A49: / /
A50: / /
A51: / /
A52: / /
A53: / /
A54: / /
A55: / /
A56: / /
A57: / /
A58: / /
A59: / /
A60: / /
A61: / /
A62: / /
A63: / /
A64: / /
A65: / /
A66: / /
A67: / /
A68: / /
A69: / /
A70: / /
A71: / /
A72: =TRIM(D72)&" / "&TRIM(C72)&" / "&TRIM(E72) -> / /
A73: / /
A74: / /
A75: / /
A76: / /
A77: / /
A78: / /
A79: / /
A80: / /
A81: / /
A82: / /
A83: / /
A84: / /
A85: / /
A86: / /
A87: / /
A88: / /
A89: / /
A90: / /
A91: / /
A92: / /
A93: / /
A94: / /
A95: / /
A96: / /
A97: / /
A98: / /
A99: / /
A100: / /
A101: / /
A102: / /
A103: / /
A104: / /
A105: / /
A106: / /
A107: / /
A108: / /
A109: / /
A110: / /
A111: / /
A112: / /
A113: / /
A114: / /
A115: / /
A116: / /
A117: / /
A118: / /
A119: / /
A120: / /
A121: / /
A122: / /
A123: / /
A124: / /
A125: / /
A126: / /
A127: / /
A128: / /
A129: / /
A130: / /
A131: / /
A132: / /
A133: / /
A134: / /
A135: / /
A136: =TRIM(D136)&" / "&TRIM(C136)&" / "&TRIM(E136) -> / /
A137: / /
A138: / /
A139: / /
A140: / /
A141: / /
A142: / /
A143: / /
A144: / /
A145: / /
A146: / /
A147: / /
A148: / /
A149: / /
A150: / /
A151: / /
A152: / /
A153: / /
A154: / /
A155: / /
A156: / /
A157: / /
A158: / /
A159: / /
A160: / /
A161: / /
A162: / /
A163: / /
A164: / /
A165: / /
A166: / /
A167: / /
A168: / /
A169: / /
A170: / /
A171: / /
A172: / /
A173: / /
A174: / /
A175: / /
A176: / /
A177: / /
A178: / /
A179: / /
A180: / /
A181: / /
A182: / /
A183: / /
A184: / /
A185: / /
A186: / /
A187: / /
A188: / /
A189: / /
A190: / /
A191: / /
A192: / /
A193: / /
A194: / /
A195: / /
A196: / /
A197: / /
A198: / /
A199: / /
A200: =TRIM(D200)&" / "&TRIM(C200)&" / "&TRIM(E200) -> / /
... 2822 more rows

Sheet Vergleichsdaten 2021 (hidden)
A2: Quelle: Oberer Gutachterausschuss für Grundstückswerte Rheinland-Pfalz gem. Landesgrundstückmarktbericht 2021
A4: Berücksichtigung der Wertverhältnisse zwischen dem Richtwertstichtag
A5: und dem Wertermittlungsstichtag
A6: RLP
A7: Farblegende: | B7: =EingabeMaske!D$15 -> 2020-01-01 | E7: Interpolation! | G7: Index | H7: Stichtag | I7: Ergänzung
A8: Fester Wert | B8: =B7-DATE(YEAR(B7)-1,12,31.25) -> 1 | C8: 2023 | D8: =(G8-G9)*$B9/365+G9 -> 208 | E8: 2022-01-01 | F8: 2022-12-31 | G8: 208 | H8: 2023-01-01 | I8: =ROUND(IF(YEAR($B$7)+1=C8,D8,0),2) -> 0
B9: =B7-DATE(YEAR(B7)-1,12,31.25) -> 1 | C9: 2022 | D9: =(G9-G10)*$B11/365+G10 -> 208 | E9: 2021-01-01 | F9: 2021-12-31 | G9: 208 | H9: 2022-01-01 | I9: =ROUND(IF(YEAR($B$7)+1=C9,D9,0),2) -> 0
B10: =B7-DATE(YEAR(B7)-1,12,31.25) -> 1 | C10: 2021 | D10: =(G10-G11)*$B$16/365+G11 -> 189.0520548 | E10: 2020-01-01 | F10: 2020-12-31 | G10: 208 | H10: 2021-01-01 | I10: 189.05
B11: =B7-DATE(YEAR(B7)-1,12,31.25) -> 1 | C11: 2020 | D11: =(G11-G12)*$B12/365+G12 -> 172.0465753 | E11: 2019-01-01 | F11: 2019-12-31 | G11: 189 | H11: 2020-01-01 | I11: 0
B12: =B7-DATE(YEAR(B7)-1,12,31.25) -> 1 | C12: 2019 | D12: 157.0410959 | E12: 2018-01-01 | F12: 2018-12-31 | G12: 172 | H12: 2019-01-01 | I12: 0
B13: =B7-DATE(YEAR(B7)-1,12,31.25) -> 1 | C13: 2018 | D13: =(G13-G14)*$B15/365+G14 -> 144.0356164 | E13: 2017-01-01 | F13: 2017-12-31 | G13: 157 | H13: 2018-01-01 | I13: 0
B14: =B7-DATE(YEAR(B7)-1,12,31.25) -> 1 | C14: 2017 | D14: =(G14-G15)*$B$16/365+G15 -> 132.0328767 | E14: 2016-01-01 | F14: 2016-12-31 | G14: 144 | H14: 2017-01-01 | I14: 0
B15: =B7-DATE(YEAR(B7)-1,12,31.25) -> 1 | C15: 2016 | D15: =(G15-G16)*$B16/365+G16 -> 122.0273973 | E15: 2015-01-01 | F15: 2015-12-31 | G15: 132 | H15: 2016-01-01 | I15: 0
B16: =B7-DATE(YEAR(B7)-1,12,31.25) -> 1 | C16: 2015 | D16: =(G16-G17)*$B17/365+G17 -> 116.0164384 | E16: 2014-01-01 | F16: 2014-12-31 | G16: 122 | H16: 2015-01-01 | I16: 0
B17: =B7-DATE(YEAR(B7)-1,12,31.25) -> 1 | C17: 2014 | D17: =(G17-G18)*$B$16/365+G18 -> 110.0164384 | E17: 2013-01-01 | F17: 2013-12-31 | G17: 116 | H17: 2014-01-01 | I17: 0
B18: =B7-DATE(YEAR(B7)-1,12,31.25) -> 1 | C18: 2013 | D18: 105.0136986 | E18: 2012-01-01 | F18: 2012-12-31 | G18: 110 | H18: 2013-01-01 | I18: 0
B19: =B7-DATE(YEAR(B7)-1,12,31.25) -> 1 | C19: 2012 | D19: 102.0082192 | E19: 2011-01-01 | F19: 2011-12-31 | G19: 105 | H19: 2012-01-01 | I19: 0
B20: =B7-DATE(YEAR(B7)-1,12,31.25) -> 1 | C20: 2011 | D20: 100.0054795 | E20: 2010-01-01 | F20: 2010-12-31 | G20: 102 | H20: 2011-01-01 | I20: 0
B21: =B7-DATE(YEAR(B7)-1,12,31.25) -> 1 | C21: 2010 | D21: 99.00273973 | E21: 2009-01-01 | F21: 2009-12-31 | G21: 100 | H21: 2010-01-01 | I21: 0
B22: =B7-DATE(YEAR(B7)-1,12,31.25) -> 1 | C22: 2009 | D22: 99 | E22: 2008-01-01 | F22: 2008-12-31 | G22: 99 | H22: 2009-01-01 | I22: 0
B23: =B7-DATE(YEAR(B7)-1,12,31.25) -> 1 | C23: 2008 | D23: 99.99726027 | E23: 2007-01-01 | F23: 2007-12-31 | G23: 99 | H23: 2008-01-01 | I23: 0
B24: =B7-DATE(YEAR(B7)-1,12,31.25) -> 1 | C24: 2007 | D24: 98.00547945 | E24: 2006-01-01 | F24: 2006-12-31 | G24: 100 | H24: 2007-01-01 | I24: 0
B25: =B7-DATE(YEAR(B7)-1,12,31.25) -> 1 | C25: 2006 | D25: 0.2684931507 | E25: 2005-01-01 | F25: 2005-12-31 | G25: 98 | H25: 2006-01-01 | I25: 0
I26: =ROUND(SUM(I8:I25),0) -> 189
A28: Anpassung an die Mietsituation | E28: UK
B29: unvermietet | C29: Kennziffer | D29: 1 | E29: 1
B30: vermietet | C30: Kennziffer | D30: 2 | E30: 0.93
A32: Marktsegment 1
A33: Farblegende: | B33: =EingabeMaske!D$15 -> 2020-01-01 | E33: Interpolation! | G33: Index | H33: Stichtag | I33: Ergänzung
A34: Fester Wert | B34: =B33-DATE(YEAR(B33)-1,12,31.25) -> 1 | C34: 2023 | D34: =(G34-G35)*$B35/365+G35 -> 140 | E34: 2022-01-01 | F34: 2022-12-31 | G34: 140 | H34: 2023-01-01 | I34: =ROUND(IF(YEAR($B$7)+1=C34,D34,0),2) -> 0
B35: =B33-DATE(YEAR(B33)-1,12,31.25) -> 1 | C35: 2022 | D35: =(G35-G36)*$B37/365+G36 -> 140 | E35: 2021-01-01 | F35: 2021-12-31 | G35: 140 | H35: 2022-01-01 | I35: =ROUND(IF(YEAR($B$7)+1=C35,D35,0),2) -> 0
B36: =B33-DATE(YEAR(B33)-1,12,31.25) -> 1 | C36: 2021 | D36: =(G36-G37)*$B$16/365+G37 -> 129.030137 | E36: 2020-01-01 | F36: 2020-12-31 | G36: 140 | H36: 2021-01-01 | I36: 129.03
B37: =B33-DATE(YEAR(B33)-1,12,31.25) -> 1 | C37: 2020 | D37: =(G37-G38)*$B38/365+G38 -> 119.0273973 | E37: 2019-01-01 | F37: 2019-12-31 | G37: 129 | H37: 2020-01-01 | I37: 0
B38: =B33-DATE(YEAR(B33)-1,12,31.25) -> 1 | C38: 2019 | D38: 112.0191781 | E38: 2018-01-01 | F38: 2018-12-31 | G38: 119 | H38: 2019-01-01 | I38: 0
B39: =B33-DATE(YEAR(B33)-1,12,31.25) -> 1 | C39: 2018 | D39: =(G39-G40)*$B41/365+G40 -> 106.0164384 | E39: 2017-01-01 | F39: 2017-12-31 | G39: 112 | H39: 2018-01-01 | I39: 0
B40: =B33-DATE(YEAR(B33)-1,12,31.25) -> 1 | C40: 2017 | D40: =(G40-G41)*$B$16/365+G41 -> 98.02191781 | E40: 2016-01-01 | F40: 2016-12-31 | G40: 106 | H40: 2017-01-01 | I40: 0
B41: =B33-DATE(YEAR(B33)-1,12,31.25) -> 1 | C41: 2016 | D41: =(G41-G42)*$B42/365+G42 -> 95.00821918 | E41: 2015-01-01 | F41: 2015-12-31 | G41: 98 | H41: 2016-01-01 | I41: 0
B42: =B33-DATE(YEAR(B33)-1,12,31.25) -> 1 | C42: 2015 | D42: =(G42-G43)*$B43/365+G43 -> 93.00547945 | E42: 2014-01-01 | F42: 2014-12-31 | G42: 95 | H42: 2015-01-01 | I42: 0
B43: =B33-DATE(YEAR(B33)-1,12,31.25) -> 1 | C43: 2014 | D43: =(G43-G44)*$B$16/365+G44 -> 93.99726027 | E43: 2013-01-01 | F43: 2013-12-31 | G43: 93 | H43: 2014-01-01 | I43: 0
B44: =B33-DATE(YEAR(B33)-1,12,31.25) -> 1 | C44: 2013 | D44: 94 | E44: 2012-01-01 | F44: 2012-12-31 | G44: 94 | H44: 2013-01-01 | I44: 0
B45: =B33-DATE(YEAR(B33)-1,12,31.25) -> 1 | C45: 2012 | D45: 93.00273973 | E45: 2011-01-01 | F45: 2011-12-31 | G45: 94 | H45: 2012-01-01 | I45: 0
B46: =B33-DATE(YEAR(B33)-1,12,31.25) -> 1 | C46: 2011 | D46: 99.98082192 | E46: 2010-01-01 | F46: 2010-12-31 | G46: 93 | H46: 2011-01-01 | I46: 0
B47: =B33-DATE(YEAR(B33)-1,12,31.25) -> 1 | C47: 2010 | D47: 99.00273973 | E47: 2009-01-01 | F47: 2009-12-31 | G47: 100 | H47: 2010-01-01 | I47: 0
B48: =B33-DATE(YEAR(B33)-1,12,31.25) -> 1 | C48: 2009 | D48: 99 | E48: 2008-01-01 | F48: 2008-12-31 | G48: 99 | H48: 2009-01-01 | I48: 0
B49: =B33-DATE(YEAR(B33)-1,12,31.25) -> 1 | C49: 2008 | D49: 99.99726027 | E49: 2007-01-01 | F49: 2007-12-31 | G49: 99 | H49: 2008-01-01 | I49: 0
B50: =B33-DATE(YEAR(B33)-1,12,31.25) -> 1 | C50: 2007 | D50: 98.00547945 | E50: 2006-01-01 | F50: 2006-12-31 | G50: 100 | H50: 2007-01-01 | I50: 0
B51: =B33-DATE(YEAR(B33)-1,12,31.25) -> 1 | C51: 2006 | D51: 0.2684931507 | E51: 2005-01-01 | F51: 2005-12-31 | G51: 98 | H51: 2006-01-01 | I51: 0
I52: =ROUND(SUM(I34:I51),0) -> 129 | J52: =IF(EingabeMaske!$D$43=1,'Vergleichsdaten 2021'!I52,0) -> 0 | K52: =IF(EingabeMaske!$D$43=1,G37,0) -> 0
J53: =B7 -> 2020-01-01 | K53: 2020-01-01
A55: Marktsegment 2
A56: Farblegende: | B56: =EingabeMaske!D$15 -> 2020-01-01 | E56: Interpolation! | G56: Index | H56: Stichtag | I56: Ergänzung
A57: Fester Wert | B57: =B56-DATE(YEAR(B56)-1,12,31.25) -> 1 | C57: 2023 | D57: =(G57-G58)*$B58/365+G58 -> 162 | E57: 2022-01-01 | F57: 2022-12-31 | G57: 162 | H57: 2023-01-01 | I57: =ROUND(IF(YEAR($B$7)+1=C57,D57,0),2) -> 0
B58: =B56-DATE(YEAR(B56)-1,12,31.25) -> 1 | C58: 2022 | D58: =(G58-G59)*$B60/365+G59 -> 162 | E58: 2021-01-01 | F58: 2021-12-31 | G58: 162 | H58: 2022-01-01 | I58: =ROUND(IF(YEAR($B$7)+1=C58,D58,0),2) -> 0
B59: =B56-DATE(YEAR(B56)-1,12,31.25) -> 1 | C59: 2021 | D59: =(G59-G60)*$B$16/365+G60 -> 149.0356164 | E59: 2020-01-01 | F59: 2020-12-31 | G59: 162 | H59: 2021-01-01 | I59: 149.04
B60: =B56-DATE(YEAR(B56)-1,12,31.25) -> 1 | C60: 2020 | D60: =(G60-G61)*$B61/365+G61 -> 138.030137 | E60: 2019-01-01 | F60: 2019-12-31 | G60: 149 | H60: 2020-01-01 | I60: 0
B61: =B56-DATE(YEAR(B56)-1,12,31.25) -> 1 | C61: 2019 | D61: 129.0246575 | E61: 2018-01-01 | F61: 2018-12-31 | G61: 138 | H61: 2019-01-01 | I61: 0
B62: =B56-DATE(YEAR(B56)-1,12,31.25) -> 1 | C62: 2018 | D62: =(G62-G63)*$B64/365+G63 -> 121.0219178 | E62: 2017-01-01 | F62: 2017-12-31 | G62: 129 | H62: 2018-01-01 | I62: 0
B63: =B56-DATE(YEAR(B56)-1,12,31.25) -> 1 | C63: 2017 | D63: =(G63-G64)*$B$16/365+G64 -> 114.0191781 | E63: 2016-01-01 | F63: 2016-12-31 | G63: 121 | H63: 2017-01-01 | I63: 0
B64: =B56-DATE(YEAR(B56)-1,12,31.25) -> 1 | C64: 2016 | D64: =(G64-G65)*$B65/365+G65 -> 108.0164384 | E64: 2015-01-01 | F64: 2015-12-31 | G64: 114 | H64: 2016-01-01 | I64: 0
B65: =B56-DATE(YEAR(B56)-1,12,31.25) -> 1 | C65: 2015 | D65: =(G65-G66)*$B66/365+G66 -> 106.0054795 | E65: 2014-01-01 | F65: 2014-12-31 | G65: 108 | H65: 2015-01-01 | I65: 0
B66: =B56-DATE(YEAR(B56)-1,12,31.25) -> 1 | C66: 2014 | D66: =(G66-G67)*$B$16/365+G67 -> 106 | E66: 2013-01-01 | F66: 2013-12-31 | G66: 106 | H66: 2014-01-01 | I66: 0
B67: =B56-DATE(YEAR(B56)-1,12,31.25) -> 1 | C67: 2013 | D67: 104.0054795 | E67: 2012-01-01 | F67: 2012-12-31 | G67: 106 | H67: 2013-01-01 | I67: 0
B68: =B56-DATE(YEAR(B56)-1,12,31.25) -> 1 | C68: 2012 | D68: 100.0109589 | E68: 2011-01-01 | F68: 2011-12-31 | G68: 104 | H68: 2012-01-01 | I68: 0
B69: =B56-DATE(YEAR(B56)-1,12,31.25) -> 1 | C69: 2011 | D69: 100 | E69: 2010-01-01 | F69: 2010-12-31 | G69: 100 | H69: 2011-01-01 | I69: 0
B70: =B56-DATE(YEAR(B56)-1,12,31.25) -> 1 | C70: 2010 | D70: 99.00273973 | E70: 2009-01-01 | F70: 2009-12-31 | G70: 100 | H70: 2010-01-01 | I70: 0
B71: =B56-DATE(YEAR(B56)-1,12,31.25) -> 1 | C71: 2009 | D71: 99 | E71: 2008-01-01 | F71: 2008-12-31 | G71: 99 | H71: 2009-01-01 | I71: 0
B72: =B56-DATE(YEAR(B56)-1,12,31.25) -> 1 | C72: 2008 | D72: 99.99726027 | E72: 2007-01-01 | F72: 2007-12-31 | G72: 99 | H72: 2008-01-01 | I72: 0
B73: =B56-DATE(YEAR(B56)-1,12,31.25) -> 1 | C73: 2007 | D73: 98.00547945 | E73: 2006-01-01 | F73: 2006-12-31 | G73: 100 | H73: 2007-01-01 | I73: 0
B74: =B56-DATE(YEAR(B56)-1,12,31.25) -> 1 | C74: 2006 | D74: 0.2684931507 | E74: 2005-01-01 | F74: 2005-12-31 | G74: 98 | H74: 2006-01-01 | I74: 0
I75: =ROUND(SUM(I57:I74),0) -> 149 | J75: =IF(EingabeMaske!$D$43=2,'Vergleichsdaten 2021'!I75,0) -> 0 | K75: =IF(EingabeMaske!$D$43=2,G60,0) -> 0
J76: =B7 -> 2020-01-01 | K76: 2020-01-01
A78: Marktsegment 3
A79: Farblegende: | B79: =EingabeMaske!D$15 -> 2020-01-01 | E79: Interpolation! | G79: Index | H79: Stichtag | I79: Ergänzung
A80: Fester Wert | B80: =B79-DATE(YEAR(B79)-1,12,31.25) -> 1 | C80: 2023 | D80: =(G80-G81)*$B81/365+G81 -> 180 | E80: 2022-01-01 | F80: 2022-12-31 | G80: 180 | H80: 2023-01-01 | I80: =ROUND(IF(YEAR($B$7)+1=C80,D80,0),2) -> 0
B81: =B79-DATE(YEAR(B79)-1,12,31.25) -> 1 | C81: 2022 | D81: =(G81-G82)*$B83/365+G82 -> 180 | E81: 2021-01-01 | F81: 2021-12-31 | G81: 180 | H81: 2022-01-01 | I81: =ROUND(IF(YEAR($B$7)+1=C81,D81,0),2) -> 0
B82: =B79-DATE(YEAR(B79)-1,12,31.25) -> 1 | C82: 2021 | D82: =(G82-G83)*$B$16/365+G83 -> 167.0356164 | E82: 2020-01-01 | F82: 2020-12-31 | G82: 180 | H82: 2021-01-01 | I82: 167.04
B83: =B79-DATE(YEAR(B79)-1,12,31.25) -> 1 | C83: 2020 | D83: =(G83-G84)*$B84/365+G84 -> 155.0328767 | E83: 2019-01-01 | F83: 2019-12-31 | G83: 167 | H83: 2020-01-01 | I83: 0
B84: =B79-DATE(YEAR(B79)-1,12,31.25) -> 1 | C84: 2019 | D84: 143.0328767 | E84: 2018-01-01 | F84: 2018-12-31 | G84: 155 | H84: 2019-01-01 | I84: 0
B85: =B79-DATE(YEAR(B79)-1,12,31.25) -> 1 | C85: 2018 | D85: =(G85-G86)*$B87/365+G86 -> 132.030137 | E85: 2017-01-01 | F85: 2017-12-31 | G85: 143 | H85: 2018-01-01 | I85: 0
B86: =B79-DATE(YEAR(B79)-1,12,31.25) -> 1 | C86: 2017 | D86: =(G86-G87)*$B$16/365+G87 -> 123.0246575 | E86: 2016-01-01 | F86: 2016-12-31 | G86: 132 | H86: 2017-01-01 | I86: 0
B87: =B79-DATE(YEAR(B79)-1,12,31.25) -> 1 | C87: 2016 | D87: =(G87-G88)*$B88/365+G88 -> 116.0191781 | E87: 2015-01-01 | F87: 2015-12-31 | G87: 123 | H87: 2016-01-01 | I87: 0
B88: =B79-DATE(YEAR(B79)-1,12,31.25) -> 1 | C88: 2015 | D88: =(G88-G89)*$B89/365+G89 -> 111.0136986 | E88: 2014-01-01 | F88: 2014-12-31 | G88: 116 | H88: 2015-01-01 | I88: 0
B89: =B79-DATE(YEAR(B79)-1,12,31.25) -> 1 | C89: 2014 | D89: =(G89-G90)*$B$16/365+G90 -> 107.0109589 | E89: 2013-01-01 | F89: 2013-12-31 | G89: 111 | H89: 2014-01-01 | I89: 0
B90: =B79-DATE(YEAR(B79)-1,12,31.25) -> 1 | C90: 2013 | D90: 103.0109589 | E90: 2012-01-01 | F90: 2012-12-31 | G90: 107 | H90: 2013-01-01 | I90: 0
B91: =B79-DATE(YEAR(B79)-1,12,31.25) -> 1 | C91: 2012 | D91: 102.0027397 | E91: 2011-01-01 | F91: 2011-12-31 | G91: 103 | H91: 2012-01-01 | I91: 0
B92: =B79-DATE(YEAR(B79)-1,12,31.25) -> 1 | C92: 2011 | D92: 100.0054795 | E92: 2010-01-01 | F92: 2010-12-31 | G92: 102 | H92: 2011-01-01 | I92: 0
B93: =B79-DATE(YEAR(B79)-1,12,31.25) -> 1 | C93: 2010 | D93: 99.00273973 | E93: 2009-01-01 | F93: 2009-12-31 | G93: 100 | H93: 2010-01-01 | I93: 0
B94: =B79-DATE(YEAR(B79)-1,12,31.25) -> 1 | C94: 2009 | D94: 99 | E94: 2008-01-01 | F94: 2008-12-31 | G94: 99 | H94: 2009-01-01 | I94: 0
B95: =B79-DATE(YEAR(B79)-1,12,31.25) -> 1 | C95: 2008 | D95: 99.99726027 | E95: 2007-01-01 | F95: 2007-12-31 | G95: 99 | H95: 2008-01-01 | I95: 0
B96: =B79-DATE(YEAR(B79)-1,12,31.25) -> 1 | C96: 2007 | D96: 98.00547945 | E96: 2006-01-01 | F96: 2006-12-31 | G96: 100 | H96: 2007-01-01 | I96: 0
B97: =B79-DATE(YEAR(B79)-1,12,31.25) -> 1 | C97: 2006 | D97: 0.2684931507 | E97: 2005-01-01 | F97: 2005-12-31 | G97: 98 | H97: 2006-01-01 | I97: 0
I98: =ROUND(SUM(I80:I97),0) -> 167 | J98: =IF(EingabeMaske!$D$43=3,'Vergleichsdaten 2021'!I98,0) -> 0 | K98: =IF(EingabeMaske!$D$43=3,G83,0) -> 0
J99: =B7 -> 2020-01-01 | K99: 2020-01-01
A101: Marktsegment 4
A102: Farblegende: | B102: =EingabeMaske!D$15 -> 2020-01-01 | E102: Interpolation! | G102: Index | H102: Stichtag | I102: Ergänzung
A103: Fester Wert | B103: =B102-DATE(YEAR(B102)-1,12,31.25) -> 1 | C103: 2023 | D103: =(G103-G104)*$B104/365+G104 -> 212 | E103: 2022-01-01 | F103: 2022-12-31 | G103: 212 | H103: 2023-01-01 | I103: =ROUND(IF(YEAR($B$7)+1=C103,D103,0),2) -> 0
B104: =B102-DATE(YEAR(B102)-1,12,31.25) -> 1 | C104: 2022 | D104: =(G104-G105)*$B106/365+G105 -> 212 | E104: 2021-01-01 | F104: 2021-12-31 | G104: 212 | H104: 2022-01-01 | I104: =ROUND(IF(YEAR($B$7)+1=C104,D104,0),2) -> 0
B105: =B102-DATE(YEAR(B102)-1,12,31.25) -> 1 | C105: 2021 | D105: =(G105-G106)*$B$16/365+G106 -> 193.0520548 | E105: 2020-01-01 | F105: 2020-12-31 | G105: 212 | H105: 2021-01-01 | I105: 193.05
B106: =B102-DATE(YEAR(B102)-1,12,31.25) -> 1 | C106: 2020 | D106: =(G106-G107)*$B107/365+G107 -> 176.0465753 | E106: 2019-01-01 | F106: 2019-12-31 | G106: 193 | H106: 2020-01-01 | I106: 0
B107: =B102-DATE(YEAR(B102)-1,12,31.25) -> 1 | C107: 2019 | D107: 159.0465753 | E107: 2018-01-01 | F107: 2018-12-31 | G107: 176 | H107: 2019-01-01 | I107: 0
B108: =B102-DATE(YEAR(B102)-1,12,31.25) -> 1 | C108: 2018 | D108: =(G108-G109)*$B110/365+G109 -> 145.0383562 | E108: 2017-01-01 | F108: 2017-12-31 | G108: 159 | H108: 2018-01-01 | I108: 0
B109: =B102-DATE(YEAR(B102)-1,12,31.25) -> 1 | C109: 2017 | D109: =(G109-G110)*$B$16/365+G110 -> 132.0356164 | E109: 2016-01-01 | F109: 2016-12-31 | G109: 145 | H109: 2017-01-01 | I109: 0
B110: =B102-DATE(YEAR(B102)-1,12,31.25) -> 1 | C110: 2016 | D110: =(G110-G111)*$B111/365+G111 -> 123.0246575 | E110: 2015-01-01 | F110: 2015-12-31 | G110: 132 | H110: 2016-01-01 | I110: 0
B111: =B102-DATE(YEAR(B102)-1,12,31.25) -> 1 | C111: 2015 | D111: =(G111-G112)*$B112/365+G112 -> 116.0191781 | E111: 2014-01-01 | F111: 2014-12-31 | G111: 123 | H111: 2015-01-01 | I111: 0
B112: =B102-DATE(YEAR(B102)-1,12,31.25) -> 1 | C112: 2014 | D112: =(G112-G113)*$B$16/365+G113 -> 111.0136986 | E112: 2013-01-01 | F112: 2013-12-31 | G112: 116 | H112: 2014-01-01 | I112: 0
B113: =B102-DATE(YEAR(B102)-1,12,31.25) -> 1 | C113: 2013 | D113: 107.0109589 | E113: 2012-01-01 | F113: 2012-12-31 | G113: 111 | H113: 2013-01-01 | I113: 0
B114: =B102-DATE(YEAR(B102)-1,12,31.25) -> 1 | C114: 2012 | D114: 103.0109589 | E114: 2011-01-01 | F114: 2011-12-31 | G114: 107 | H114: 2012-01-01 | I114: 0
B115: =B102-DATE(YEAR(B102)-1,12,31.25) -> 1 | C115: 2011 | D115: 100.0082192 | E115: 2010-01-01 | F115: 2010-12-31 | G115: 103 | H115: 2011-01-01 | I115: 0
B116: =B102-DATE(YEAR(B102)-1,12,31.25) -> 1 | C116: 2010 | D116: 99.00273973 | E116: 2009-01-01 | F116: 2009-12-31 | G116: 100 | H116: 2010-01-01 | I116: 0
B117: =B102-DATE(YEAR(B102)-1,12,31.25) -> 1 | C117: 2009 | D117: 99 | E117: 2008-01-01 | F117: 2008-12-31 | G117: 99 | H117: 2009-01-01 | I117: 0
B118: =B102-DATE(YEAR(B102)-1,12,31.25) -> 1 | C118: 2008 | D118: 99.99726027 | E118: 2007-01-01 | F118: 2007-12-31 | G118: 99 | H118: 2008-01-01 | I118: 0
B119: =B102-DATE(YEAR(B102)-1,12,31.25) -> 1 | C119: 2007 | D119: 98.00547945 | E119: 2006-01-01 | F119: 2006-12-31 | G119: 100 | H119: 2007-01-01 | I119: 0
B120: =B102-DATE(YEAR(B102)-1,12,31.25) -> 1 | C120: 2006 | D120: 0.2684931507 | E120: 2005-01-01 | F120: 2005-12-31 | G120: 98 | H120: 2006-01-01 | I120: 0
I121: =ROUND(SUM(I103:I120),0) -> 193 | J121: =IF(EingabeMaske!$D$43=4,'Vergleichsdaten 2021'!I121,0) -> 0 | K121: =IF(EingabeMaske!$D$43=4,G106,0) -> 0
J122: =B7 -> 2020-01-01 | K122: 2020-01-01
A124: Marktsegment 5
A125: Farblegende: | B125: =EingabeMaske!D$15 -> 2020-01-01 | E125: Interpolation! | G125: Index | H125: Stichtag | I125: Ergänzung
A126: Fester Wert | B126: =B125-DATE(YEAR(B125)-1,12,31.25) -> 1 | C126: 2023 | D126: =(G126-G127)*$B127/365+G127 -> 228 | E126: 2022-01-01 | F126: 2022-12-31 | G126: 228 | H126: 2023-01-01 | I126: =ROUND(IF(YEAR($B$7)+1=C126,D126,0),2) -> 0
B127: =B125-DATE(YEAR(B125)-1,12,31.25) -> 1 | C127: 2022 | D127: =(G127-G128)*$B129/365+G128 -> 228 | E127: 2021-01-01 | F127: 2021-12-31 | G127: 228 | H127: 2022-01-01 | I127: =ROUND(IF(YEAR($B$7)+1=C127,D127,0),2) -> 0
B128: =B125-DATE(YEAR(B125)-1,12,31.25) -> 1 | C128: 2021 | D128: =(G128-G129)*$B$16/365+G129 -> 204.0657534 | E128: 2020-01-01 | F128: 2020-12-31 | G128: 228 | H128: 2021-01-01 | I128: 204.07
B129: =B125-DATE(YEAR(B125)-1,12,31.25) -> 1 | C129: 2020 | D129: =(G129-G130)*$B130/365+G130 -> 183.0575342 | E129: 2019-01-01 | F129: 2019-12-31 | G129: 204 | H129: 2020-01-01 | I129: 0
B130: =B125-DATE(YEAR(B125)-1,12,31.25) -> 1 | C130: 2019 | D130: 166.0465753 | E130: 2018-01-01 | F130: 2018-12-31 | G130: 183 | H130: 2019-01-01 | I130: 0
B131: =B125-DATE(YEAR(B125)-1,12,31.25) -> 1 | C131: 2018 | D131: =(G131-G132)*$B133/365+G132 -> 154.0328767 | E131: 2017-01-01 | F131: 2017-12-31 | G131: 166 | H131: 2018-01-01 | I131: 0
B132: =B125-DATE(YEAR(B125)-1,12,31.25) -> 1 | C132: 2017 | D132: =(G132-G133)*$B$16/365+G133 -> 143.030137 | E132: 2016-01-01 | F132: 2016-12-31 | G132: 154 | H132: 2017-01-01 | I132: 0
B133: =B125-DATE(YEAR(B125)-1,12,31.25) -> 1 | C133: 2016 | D133: =(G133-G134)*$B134/365+G134 -> 132.030137 | E133: 2015-01-01 | F133: 2015-12-31 | G133: 143 | H133: 2016-01-01 | I133: 0
B134: =B125-DATE(YEAR(B125)-1,12,31.25) -> 1 | C134: 2015 | D134: =(G134-G135)*$B135/365+G135 -> 123.0246575 | E134: 2014-01-01 | F134: 2014-12-31 | G134: 132 | H134: 2015-01-01 | I134: 0
B135: =B125-DATE(YEAR(B125)-1,12,31.25) -> 1 | C135: 2014 | D135: =(G135-G136)*$B$16/365+G136 -> 114.0246575 | E135: 2013-01-01 | F135: 2013-12-31 | G135: 123 | H135: 2014-01-01 | I135: 0
B136: =B125-DATE(YEAR(B125)-1,12,31.25) -> 1 | C136: 2013 | D136: 107.0191781 | E136: 2012-01-01 | F136: 2012-12-31 | G136: 114 | H136: 2013-01-01 | I136: 0
B137: =B125-DATE(YEAR(B125)-1,12,31.25) -> 1 | C137: 2012 | D137: 102.0136986 | E137: 2011-01-01 | F137: 2011-12-31 | G137: 107 | H137: 2012-01-01 | I137: 0
B138: =B125-DATE(YEAR(B125)-1,12,31.25) -> 1 | C138: 2011 | D138: 100.0054795 | E138: 2010-01-01 | F138: 2010-12-31 | G138: 102 | H138: 2011-01-01 | I138: 0
B139: =B125-DATE(YEAR(B125)-1,12,31.25) -> 1 | C139: 2010 | D139: 99.00273973 | E139: 2009-01-01 | F139: 2009-12-31 | G139: 100 | H139: 2010-01-01 | I139: 0
B140: =B125-DATE(YEAR(B125)-1,12,31.25) -> 1 | C140: 2009 | D140: 99 | E140: 2008-01-01 | F140: 2008-12-31 | G140: 99 | H140: 2009-01-01 | I140: 0
B141: =B125-DATE(YEAR(B125)-1,12,31.25) -> 1 | C141: 2008 | D141: 99.99726027 | E141: 2007-01-01 | F141: 2007-12-31 | G141: 99 | H141: 2008-01-01 | I141: 0
B142: =B125-DATE(YEAR(B125)-1,12,31.25) -> 1 | C142: 2007 | D142: 98.00547945 | E142: 2006-01-01 | F142: 2006-12-31 | G142: 100 | H142: 2007-01-01 | I142: 0
B143: =B125-DATE(YEAR(B125)-1,12,31.25) -> 1 | C143: 2006 | D143: 0.2684931507 | E143: 2005-01-01 | F143: 2005-12-31 | G143: 98 | H143: 2006-01-01 | I143: 0
I144: =ROUND(SUM(I126:I143),0) -> 204 | J144: =IF(EingabeMaske!$D$43=5,'Vergleichsdaten 2021'!I144,0) -> 0 | K144: =IF(EingabeMaske!$D$43=5,G129,0) -> 0
J145: =B7 -> 2020-01-01 | K145: 2020-01-01
A148: Marktsegment 6
A149: Farblegende: | B149: =EingabeMaske!D$15 -> 2020-01-01 | E149: Interpolation! | G149: Index | H149: Stichtag | I149: Ergänzung
A150: Fester Wert | B150: =B149-DATE(YEAR(B149)-1,12,31.25) -> 1 | C150: 2023 | D150: =(G150-G151)*$B151/365+G151 -> 243 | E150: 2022-01-01 | F150: 2022-12-31 | G150: 243 | H150: 2023-01-01 | I150: =ROUND(IF(YEAR($B$7)+1=C150,D150,0),2) -> 0
B151: =B149-DATE(YEAR(B149)-1,12,31.25) -> 1 | C151: 2022 | D151: =(G151-G152)*$B153/365+G152 -> 243 | E151: 2021-01-01 | F151: 2021-12-31 | G151: 243 | H151: 2022-01-01 | I151: =ROUND(IF(YEAR($B$7)+1=C151,D151,0),2) -> 0
B152: =B149-DATE(YEAR(B149)-1,12,31.25) -> 1 | C152: 2021 | D152: =(G152-G153)*$B$16/365+G153 -> 223.0547945 | E152: 2020-01-01 | F152: 2020-12-31 | G152: 243 | H152: 2021-01-01 | I152: 223.05
B153: =B149-DATE(YEAR(B149)-1,12,31.25) -> 1 | C153: 2020 | D153: =(G153-G154)*$B154/365+G154 -> 207.0438356 | E153: 2019-01-01 | F153: 2019-12-31 | G153: 223 | H153: 2020-01-01 | I153: 0
B154: =B149-DATE(YEAR(B149)-1,12,31.25) -> 1 | C154: 2019 | D154: 192.0410959 | E154: 2018-01-01 | F154: 2018-12-31 | G154: 207 | H154: 2019-01-01 | I154: 0
B155: =B149-DATE(YEAR(B149)-1,12,31.25) -> 1 | C155: 2018 | D155: =(G155-G156)*$B157/365+G156 -> 176.0438356 | E155: 2017-01-01 | F155: 2017-12-31 | G155: 192 | H155: 2018-01-01 | I155: 0
B156: =B149-DATE(YEAR(B149)-1,12,31.25) -> 1 | C156: 2017 | D156: =(G156-G157)*$B$16/365+G157 -> 157.0520548 | E156: 2016-01-01 | F156: 2016-12-31 | G156: 176 | H156: 2017-01-01 | I156: 0
B157: =B149-DATE(YEAR(B149)-1,12,31.25) -> 1 | C157: 2016 | D157: =(G157-G158)*$B158/365+G158 -> 143.0383562 | E157: 2015-01-01 | F157: 2015-12-31 | G157: 157 | H157: 2016-01-01 | I157: 0
B158: =B149-DATE(YEAR(B149)-1,12,31.25) -> 1 | C158: 2015 | D158: =(G158-G159)*$B159/365+G159 -> 130.0356164 | E158: 2014-01-01 | F158: 2014-12-31 | G158: 143 | H158: 2015-01-01 | I158: 0
B159: =B149-DATE(YEAR(B149)-1,12,31.25) -> 1 | C159: 2014 | D159: =(G159-G160)*$B$16/365+G160 -> 121.0246575 | E159: 2013-01-01 | F159: 2013-12-31 | G159: 130 | H159: 2014-01-01 | I159: 0
B160: =B149-DATE(YEAR(B149)-1,12,31.25) -> 1 | C160: 2013 | D160: 109.0328767 | E160: 2012-01-01 | F160: 2012-12-31 | G160: 121 | H160: 2013-01-01 | I160: 0
B161: =B149-DATE(YEAR(B149)-1,12,31.25) -> 1 | C161: 2012 | D161: 104.0136986 | E161: 2011-01-01 | F161: 2011-12-31 | G161: 109 | H161: 2012-01-01 | I161: 0
B162: =B149-DATE(YEAR(B149)-1,12,31.25) -> 1 | C162: 2011 | D162: 100.0109589 | E162: 2010-01-01 | F162: 2010-12-31 | G162: 104 | H162: 2011-01-01 | I162: 0
B163: =B149-DATE(YEAR(B149)-1,12,31.25) -> 1 | C163: 2010 | D163: 99.00273973 | E163: 2009-01-01 | F163: 2009-12-31 | G163: 100 | H163: 2010-01-01 | I163: 0
B164: =B149-DATE(YEAR(B149)-1,12,31.25) -> 1 | C164: 2009 | D164: 99 | E164: 2008-01-01 | F164: 2008-12-31 | G164: 99 | H164: 2009-01-01 | I164: 0
B165: =B149-DATE(YEAR(B149)-1,12,31.25) -> 1 | C165: 2008 | D165: 99.99726027 | E165: 2007-01-01 | F165: 2007-12-31 | G165: 99 | H165: 2008-01-01 | I165: 0
B166: =B149-DATE(YEAR(B149)-1,12,31.25) -> 1 | C166: 2007 | D166: 98.00547945 | E166: 2006-01-01 | F166: 2006-12-31 | G166: 100 | H166: 2007-01-01 | I166: 0
B167: =B149-DATE(YEAR(B149)-1,12,31.25) -> 1 | C167: 2006 | D167: 0.2684931507 | E167: 2005-01-01 | F167: 2005-12-31 | G167: 98 | H167: 2006-01-01 | I167: 0
I168: =ROUND(SUM(I150:I167),0) -> 223 | J168: =IF(EingabeMaske!$D$43=6,'Vergleichsdaten 2021'!I168,0) -> 0 | K168: =IF(EingabeMaske!$D$43=6,G153,0) -> 0
J169: =B7 -> 2020-01-01 | K169: 2020-01-01
J170: =J52+J75+J98+J121+J144+J168 -> 0 | K170: =K52+K75+K98+K121+K144+K168 -> 0
A175: Anpassung an die Mietsituation | E175: UK
B176: unvermietet | C176: Kennziffer | D176: 1 | E176: 1
B177: vermietet | C177: Kennziffer | D177: 2 | E177: 0.93

Sheet Vergleichsdaten 2022 (hidden)
A2: =EingabeMaske!A57 -> Quelle: Oberer Gutachterausschuss für Grundstückswerte Rheinland-Pfalz gem. Landesgrundstückmarktbericht 2021
A4: Sachwertfaktoren für Wohnungseigentume | H4: =EingabeMaske!E1 -> WE-Rechner 1 - 2023
A6: Objektart | B6: Wohnungseigentum
A7: Bodenwertniveau | B7: =EingabeMaske!D30 -> 300 | C7: 45 | D7: 75 | E7: 130 | F7: 230 | G7: 230 | H7: 430
A8: vorläufiger Sachwert | B8: ='Berechnung und Ergebnis'!D12*'Berechnung und Ergebnis'!D56 ->  | C8: 150000 | D8: 150000 | E8: 150000 | F8: 150000 | G8: 150000 | H8: 150000
A9: Stichtag | B9: 2020-01-01 | C9: 2020-01-01 | D9: 2020-01-01 | E9: 2020-01-01 | F9: 2020-01-01 | G9: 2020-01-01 | H9: 2020-01-01
A10: Stichtag als Zahl | B10: =B9 -> 43831 | C10: =C9 -> 43831 | D10: =D9 -> 43831 | E10: 43831 | F10: 43831 | G10: 43831 | H10: 43831
A12: Marktsegment | B12: =VLOOKUP(EingabeMaske!B$11,'Vergleichsfaktoren 2021 (2)'!A7:I3022,6) -> 0 | C12: 1 | D12: 2 | E12: 3 | F12: 4 | G12: 5 | H12: 6
A13: a | B13: =IF(B$12=C$12,C13,IF(B$12=D$12,D13,IF(B$12=E$12,E13,IF(B$12=F$12,F13,IF(B$12=G$12,G13,IF(B$12=H$12,H13)))))) -> FALSE | C13: 0.01580021 | D13: 0.0095812 | E13: 0.00703614 | F13: 0.01506292 | G13: 0.01506292 | H13: 0.01288152
A14: b | B14: =IF(B$12=C$12,C14,IF(B$12=D$12,D14,IF(B$12=E$12,E14,IF(B$12=F$12,F14,IF(B$12=G$12,G14,IF(B$12=H$12,H14)))))) -> FALSE | C14: 0.31835324 | D14: 0.26586795 | E14: 0.13237352 | F14: 0.0693987 | G14: 0.0693987 | H14: 0.07605942
A15: c | B15: FALSE | C15: -0.18530284 | D15: -0.11846822 | E15: -0.10712051 | F15: -0.07863881 | G15: -0.07863881 | H15: -0.22657313
A16: d | B16: FALSE | C16: 0.00011197 | D16: 0.0001109 | E16: 0.00013198 | F16: 0.00011591 | G16: 0.00011591 | H16: 0.00016358
A17: e | B17: FALSE | C17: 2.718281828 | D17: 2.718281828 | E17: 2.718281828 | F17: 2.718281828 | G17: 2.718281828 | H17: 2.718281828
A19: Sachwertfaktor | B19: =B13*B7^B14*B8^B15*B17^(B16*B10) ->  | C19: =C13*C7^C14*C8^C15*C17^(C16*C10) -> 0.7892885868 | D19: =D13*D7^D14*D8^D15*D17^(D16*D10) -> 0.950123468 | E19: 1.216220887 | F19: 1.384140831 | G19: 1.384140831 | H19: 1.783779372
A20: gerundet auf 2 Stellen | B20: =ROUND(B19,2) ->  | C20: =ROUND(C19,2) -> 0.79 | D20: =ROUND(D19,2) -> 0.95 | E20: 1.22 | F20: 1.38 | G20: 1.38 | H20: 1.78
A23: SWF=a*BW^b*vSW^c
A24: a= | B24: 1.1639
A25: b= | B25: 0.2776
A26: c= | B26: -0.1193
A30: Umrechnungskoeffizienten Gebäudestandard (UKGS)
C32: GST | D32: UK
A33: a= | B33: 0.0303 | C33: 1 | D33: =B$33*C33^2+B$34*C33+B$35 -> 0.80041
A34: b= | B34: -0.0214 | C34: 1.5 | D34: 0.827585
A35: c= | B35: 0.79151 | C35: 2 | D35: 0.86991
C36: 2.5 | D36: 0.927385
C37: 3 | D37: 1.00001
C38: 3.5 | D38: 1.087785
C39: 4 | D39: 1.19071
B40: 2.5 | C40: 4.5 | D40: 1.308785
C41: 5 | D41: 1.44201
A59: Umrechnungskoeffizienten rel. Restnutzungsdauer
C61: rel. RND [%] | D61: UK
A62: a= | B62: 0.01629 | C62: 0 | D62: 0
A63: b= | B63: 0 | C63: 10 | D63: 0.1629
C64: 20 | D64: =D63*2 -> 0.3258
C65: 30 | D65: =D63*3 -> 0.4887
C66: 40 | D66: =D63*4 -> 0.6516
C67: 50 | D67: =D63*5 -> 0.8145
C68: 60 | D68: =D63*6 -> 0.9774
C69: 70 | D69: =D63*7 -> 1.1403
C70: 80 | D70: =D63*8 -> 1.3032
C71: 90 | D71: =D63*9 -> 1.4661
C72: 100 | D72: =D63*10 -> 1.629
A98: Umrechnungskoeffizienten Wohnungsgröße
C99: WF [m²] | D99: UK
A100: UKWF = a*ln(WF) + b | C100: 20 | D100: =B$102*C100^2+B$103*C100+B$104 -> 0.904676
C101: 40 | D101: =B$102*C101^2+B$103*C101+B$104 -> 0.947318
A102: a= | B102: -1.358e-05 | C102: 60 | D102: 0.979096
A103: b= | B103: 0.0029469 | C103: 80 | D103: 1.00001
A104: c= | B104: 0.85117 | C104: 100 | D104: 1.01006
C105: 120 | D105: 1.009246
C106: 140 | D106: 0.997568
C107: 160 | D107: 0.975026
C108: 180 | D108: 0.94162
C109: 200 | D109: 0.89735
A134: Umrechnungskoeffizienten Anzahl der WE in der Anlage
C136: Anzahl WE | D136: UK
A137: a | B137: 1.083059 | C137: 3 | D137: =IF(C137<=40,B$137*C137^B$138,B$144*C137^4+B$145*C137^3+B$146*C137^2+B$147*C137+B$148) -> 1.042618891
A138: b | B138: -0.034638 | C138: 6 | D138: 1.017884527
C139: 10 | D139: 1.000032503
C140: 15 | D140: 0.9860857131
C141: 20 | D141: 0.9763084285
C142: 30 | D142: 0.9626925026
C143: 40 | D143: 0.9531471676
A144: a | B144: 4.83179e-12 | C144: 41 | D144: 0.9496256629
A145: b | B145: -6.29777e-09 | C145: 50 | D145: 0.9465929774
A146: c | B146: 2.918e-06 | C146: 60 | D146: 0.9436111017
A147: d | B147: -0.0005651 | C147: 75 | D147: 0.9398372591
A148: e | B148: 0.96831 | C148: 90 | D148: 0.9368127394
C149: 100 | D149: 0.935165409
C150: 120 | D150: 0.9326365734
C151: 140 | D151: 0.9309638996
C152: 160 | D152: 0.929965696
C153: 180 | D153: 0.9294788252
C154: 200 | D154: 0.929358704
C155: 220 | D155: 0.929479303
C156: 250 | D156: 0.9298815234
C157: 300 | D157: 0.930497709
C158: 400 | D158: 0.929786544
C159: 500 | D159: 0.930025625
A187: Marktanpassung SMK
A189: kSMK=a*BW+b
C190: BW | D190: kSMK | E190: Kontrolle
A191: a= | B191: -0.0005166036 | C191: 20 | D191: 1 | E191: =C191*$B$191+$B$192 -> 0.997751484
A192: b= | B192: 1.008083556 | C192: 50 | D192: 0.98 | E192: 0.982253376
C193: 100 | D193: 0.96 | E193: 0.956423196
C194: 150 | D194: 0.93 | E194: 0.930593016
C195: 200 | D195: 0.9 | E195: 0.904762836
C196: 250 | D196: 0.88 | E196: 0.878932656
C197: 300 | D197: 0.85 | E197: 0.853102476
C198: 350 | D198: 0.83 | E198: 0.827272296
C199: 400 | D199: 0.8 | E199: 0.801442116
C200: 450 | D200: 0.78 | E200: 0.775611936
C201: 500 | D201: 0.75 | E201: 0.749781756
B202: 0 | C202: 550 | D202: 0.72 | E202: 0.723951576
C203: 600 | D203: 0.7 | E203: 0.698121396
A227: Berücksichtigung der Wertverhältnisse zwischen dem Richtwertstichtag
A228: und dem Wertermittlungsstichtag
A229: RLP
A230: Farblegende: | B230: =EingabeMaske!D$15 -> 2020-01-01 | E230: Interpolation! | G230: Index | H230: Stichtag | I230: Ergänzung
A231: Fester Wert | B231: =B230-DATE(YEAR(B230)-1,12,31.25) -> 1 | C231: 2023 | D231: =(G231-G232)*$B232/365+G232 -> 232 | E231: 2022-01-01 | F231: 2022-12-31 | G231: 232 | H231: 2023-01-01 | I231: =ROUND(IF(YEAR($B$230)+1=C231,D231,0),2) -> 0
B232: =B230-DATE(YEAR(B230)-1,12,31.25) -> 1 | C232: 2022 | D232: =(G232-G233)*$B234/365+G233 -> 211.0575342 | E232: 2021-01-01 | F232: 2021-12-31 | G232: 232 | H232: 2022-01-01 | I232: =ROUND(IF(YEAR($B$230)+1=C232,D232,0),2) -> 0
B233: =B230-DATE(YEAR(B230)-1,12,31.25) -> 1 | C233: 2021 | D233: =(G233-G234)*$B$239/365+G234 -> 189.060274 | E233: 2020-01-01 | F233: 2020-12-31 | G233: 211 | H233: 2021-01-01 | I233: 189.06
B234: =B230-DATE(YEAR(B230)-1,12,31.25) -> 1 | C234: 2020 | D234: =(G234-G235)*$B235/365+G235 -> 172.0465753 | E234: 2019-01-01 | F234: 2019-12-31 | G234: 189 | H234: 2020-01-01 | I234: 0
B235: =B230-DATE(YEAR(B230)-1,12,31.25) -> 1 | C235: 2019 | D235: 157.0410959 | E235: 2018-01-01 | F235: 2018-12-31 | G235: 172 | H235: 2019-01-01 | I235: 0
B236: =B230-DATE(YEAR(B230)-1,12,31.25) -> 1 | C236: 2018 | D236: =(G236-G237)*$B238/365+G237 -> 144.0356164 | E236: 2017-01-01 | F236: 2017-12-31 | G236: 157 | H236: 2018-01-01 | I236: 0
B237: =B230-DATE(YEAR(B230)-1,12,31.25) -> 1 | C237: 2017 | D237: =(G237-G238)*$B$239/365+G238 -> 132.0328767 | E237: 2016-01-01 | F237: 2016-12-31 | G237: 144 | H237: 2017-01-01 | I237: 0
B238: =B230-DATE(YEAR(B230)-1,12,31.25) -> 1 | C238: 2016 | D238: =(G238-G239)*$B239/365+G239 -> 122.0273973 | E238: 2015-01-01 | F238: 2015-12-31 | G238: 132 | H238: 2016-01-01 | I238: 0
B239: =B230-DATE(YEAR(B230)-1,12,31.25) -> 1 | C239: 2015 | D239: =(G239-G240)*$B240/365+G240 -> 116.0164384 | E239: 2014-01-01 | F239: 2014-12-31 | G239: 122 | H239: 2015-01-01 | I239: 0
B240: =B230-DATE(YEAR(B230)-1,12,31.25) -> 1 | C240: 2014 | D240: =(G240-G241)*$B$239/365+G241 -> 110.0164384 | E240: 2013-01-01 | F240: 2013-12-31 | G240: 116 | H240: 2014-01-01 | I240: 0
B241: =B230-DATE(YEAR(B230)-1,12,31.25) -> 1 | C241: 2013 | D241: 105.0136986 | E241: 2012-01-01 | F241: 2012-12-31 | G241: 110 | H241: 2013-01-01 | I241: 0
B242: =B230-DATE(YEAR(B230)-1,12,31.25) -> 1 | C242: 2012 | D242: 102.0082192 | E242: 2011-01-01 | F242: 2011-12-31 | G242: 105 | H242: 2012-01-01 | I242: 0
B243: =B230-DATE(YEAR(B230)-1,12,31.25) -> 1 | C243: 2011 | D243: 100.0054795 | E243: 2010-01-01 | F243: 2010-12-31 | G243: 102 | H243: 2011-01-01 | I243: 0
B244: =B230-DATE(YEAR(B230)-1,12,31.25) -> 1 | C244: 2010 | D244: 99.00273973 | E244: 2009-01-01 | F244: 2009-12-31 | G244: 100 | H244: 2010-01-01 | I244: 0
B245: =B230-DATE(YEAR(B230)-1,12,31.25) -> 1 | C245: 2009 | D245: 99 | E245: 2008-01-01 | F245: 2008-12-31 | G245: 99 | H245: 2009-01-01 | I245: 0
B246: =B230-DATE(YEAR(B230)-1,12,31.25) -> 1 | C246: 2008 | D246: 99.99726027 | E246: 2007-01-01 | F246: 2007-12-31 | G246: 99 | H246: 2008-01-01 | I246: 0
B247: =B230-DATE(YEAR(B230)-1,12,31.25) -> 1 | C247: 2007 | D247: 98.00547945 | E247: 2006-01-01 | F247: 2006-12-31 | G247: 100 | H247: 2007-01-01 | I247: 0
B248: =B230-DATE(YEAR(B230)-1,12,31.25) -> 1 | C248: 2006 | D248: 0.2684931507 | E248: 2005-01-01 | F248: 2005-12-31 | G248: 98 | H248: 2006-01-01 | I248: 0
I249: =ROUND(SUM(I231:I248),0) -> 189
A251: Anpassung an die Mietsituation | E251: UK
B252: unvermietet | C252: Kennziffer | D252: 1 | E252: 1
B253: vermietet | C253: Kennziffer | D253: 2 | E253: 0.93
A255: Marktsegment 1
A256: Farblegende: | B256: =EingabeMaske!D$15 -> 2020-01-01 | E256: Interpolation! | G256: Index | H256: Stichtag | I256: Ergänzung
A257: Fester Wert | B257: =B256-DATE(YEAR(B256)-1,12,31.25) -> 1 | C257: 2023 | D257: =(G257-G258)*$B258/365+G258 -> 155 | E257: 2022-01-01 | F257: 2022-12-31 | G257: 155 | H257: 2023-01-01 | I257: =ROUND(IF(YEAR($B$230)+1=C257,D257,0),2) -> 0
B258: =B256-DATE(YEAR(B256)-1,12,31.25) -> 1 | C258: 2022 | D258: =(G258-G259)*$B260/365+G259 -> 148.0191781 | E258: 2021-01-01 | F258: 2021-12-31 | G258: 155 | H258: 2022-01-01 | I258: =ROUND(IF(YEAR($B$230)+1=C258,D258,0),2) -> 0
B259: =B256-DATE(YEAR(B256)-1,12,31.25) -> 1 | C259: 2021 | D259: =(G259-G260)*$B$239/365+G260 -> 137.030137 | E259: 2020-01-01 | F259: 2020-12-31 | G259: 148 | H259: 2021-01-01 | I259: 137.03
B260: =B256-DATE(YEAR(B256)-1,12,31.25) -> 1 | C260: 2020 | D260: =(G260-G261)*$B261/365+G261 -> 127.0273973 | E260: 2019-01-01 | F260: 2019-12-31 | G260: 137 | H260: 2020-01-01 | I260: 0
B261: =B256-DATE(YEAR(B256)-1,12,31.25) -> 1 | C261: 2019 | D261: 118.0246575 | E261: 2018-01-01 | F261: 2018-12-31 | G261: 127 | H261: 2019-01-01 | I261: 0
B262: =B256-DATE(YEAR(B256)-1,12,31.25) -> 1 | C262: 2018 | D262: =(G262-G263)*$B264/365+G263 -> 113.0136986 | E262: 2017-01-01 | F262: 2017-12-31 | G262: 118 | H262: 2018-01-01 | I262: 0
B263: =B256-DATE(YEAR(B256)-1,12,31.25) -> 1 | C263: 2017 | D263: =(G263-G264)*$B$239/365+G264 -> 102.030137 | E263: 2016-01-01 | F263: 2016-12-31 | G263: 113 | H263: 2017-01-01 | I263: 0
B264: =B256-DATE(YEAR(B256)-1,12,31.25) -> 1 | C264: 2016 | D264: =(G264-G265)*$B265/365+G265 -> 97.01369863 | E264: 2015-01-01 | F264: 2015-12-31 | G264: 102 | H264: 2016-01-01 | I264: 0
B265: =B256-DATE(YEAR(B256)-1,12,31.25) -> 1 | C265: 2015 | D265: =(G265-G266)*$B266/365+G266 -> 97.99726027 | E265: 2014-01-01 | F265: 2014-12-31 | G265: 97 | H265: 2015-01-01 | I265: 0
B266: =B256-DATE(YEAR(B256)-1,12,31.25) -> 1 | C266: 2014 | D266: =(G266-G267)*$B$239/365+G267 -> 92.01643836 | E266: 2013-01-01 | F266: 2013-12-31 | G266: 98 | H266: 2014-01-01 | I266: 0
B267: =B256-DATE(YEAR(B256)-1,12,31.25) -> 1 | C267: 2013 | D267: 89.00821918 | E267: 2012-01-01 | F267: 2012-12-31 | G267: 92 | H267: 2013-01-01 | I267: 0
B268: =B256-DATE(YEAR(B256)-1,12,31.25) -> 1 | C268: 2012 | D268: 86.00821918 | E268: 2011-01-01 | F268: 2011-12-31 | G268: 89 | H268: 2012-01-01 | I268: 0
B269: =B256-DATE(YEAR(B256)-1,12,31.25) -> 1 | C269: 2011 | D269: 99.96164384 | E269: 2010-01-01 | F269: 2010-12-31 | G269: 86 | H269: 2011-01-01 | I269: 0
B270: =B256-DATE(YEAR(B256)-1,12,31.25) -> 1 | C270: 2010 | D270: 99.00273973 | E270: 2009-01-01 | F270: 2009-12-31 | G270: 100 | H270: 2010-01-01 | I270: 0
B271: =B256-DATE(YEAR(B256)-1,12,31.25) -> 1 | C271: 2009 | D271: 99 | E271: 2008-01-01 | F271: 2008-12-31 | G271: 99 | H271: 2009-01-01 | I271: 0
B272: =B256-DATE(YEAR(B256)-1,12,31.25) -> 1 | C272: 2008 | D272: 99.99726027 | E272: 2007-01-01 | F272: 2007-12-31 | G272: 99 | H272: 2008-01-01 | I272: 0
B273: =B256-DATE(YEAR(B256)-1,12,31.25) -> 1 | C273: 2007 | D273: 98.00547945 | E273: 2006-01-01 | F273: 2006-12-31 | G273: 100 | H273: 2007-01-01 | I273: 0
B274: =B256-DATE(YEAR(B256)-1,12,31.25) -> 1 | C274: 2006 | D274: 0.2684931507 | E274: 2005-01-01 | F274: 2005-12-31 | G274: 98 | H274: 2006-01-01 | I274: 0
I275: =ROUND(SUM(I257:I274),0) -> 137 | J275: =IF(EingabeMaske!D$43=1,'Vergleichsdaten 2022'!I275,0) -> 0 | K275: =IF(EingabeMaske!D$43=1,G260,0) -> 0
J276: =B230 -> 2020-01-01 | K276: 2020-01-01
A278: Marktsegment 2
A279: Farblegende: | B279: =EingabeMaske!D$15 -> 2020-01-01 | E279: Interpolation! | G279: Index | H279: Stichtag | I279: Ergänzung
A280: Fester Wert | B280: =B279-DATE(YEAR(B279)-1,12,31.25) -> 1 | C280: 2023 | D280: =(G280-G281)*$B281/365+G281 -> 160 | E280: 2022-01-01 | F280: 2022-12-31 | G280: 160 | H280: 2023-01-01 | I280: =ROUND(IF(YEAR($B$230)+1=C280,D280,0),2) -> 0
B281: =B279-DATE(YEAR(B279)-1,12,31.25) -> 1 | C281: 2022 | D281: =(G281-G282)*$B283/365+G282 -> 149.030137 | E281: 2021-01-01 | F281: 2021-12-31 | G281: 160 | H281: 2022-01-01 | I281: =ROUND(IF(YEAR($B$230)+1=C281,D281,0),2) -> 0
B282: =B279-DATE(YEAR(B279)-1,12,31.25) -> 1 | C282: 2021 | D282: =(G282-G283)*$B$239/365+G283 -> 140.0246575 | E282: 2020-01-01 | F282: 2020-12-31 | G282: 149 | H282: 2021-01-01 | I282: 140.02
B283: =B279-DATE(YEAR(B279)-1,12,31.25) -> 1 | C283: 2020 | D283: =(G283-G284)*$B284/365+G284 -> 128.0328767 | E283: 2019-01-01 | F283: 2019-12-31 | G283: 140 | H283: 2020-01-01 | I283: 0
B284: =B279-DATE(YEAR(B279)-1,12,31.25) -> 1 | C284: 2019 | D284: 119.0246575 | E284: 2018-01-01 | F284: 2018-12-31 | G284: 128 | H284: 2019-01-01 | I284: 0
B285: =B279-DATE(YEAR(B279)-1,12,31.25) -> 1 | C285: 2018 | D285: =(G285-G286)*$B287/365+G286 -> 112.0191781 | E285: 2017-01-01 | F285: 2017-12-31 | G285: 119 | H285: 2018-01-01 | I285: 0
B286: =B279-DATE(YEAR(B279)-1,12,31.25) -> 1 | C286: 2017 | D286: =(G286-G287)*$B$239/365+G287 -> 106.0164384 | E286: 2016-01-01 | F286: 2016-12-31 | G286: 112 | H286: 2017-01-01 | I286: 0
B287: =B279-DATE(YEAR(B279)-1,12,31.25) -> 1 | C287: 2016 | D287: =(G287-G288)*$B288/365+G288 -> 102.0109589 | E287: 2015-01-01 | F287: 2015-12-31 | G287: 106 | H287: 2016-01-01 | I287: 0
B288: =B279-DATE(YEAR(B279)-1,12,31.25) -> 1 | C288: 2015 | D288: =(G288-G289)*$B289/365+G289 -> 99.00821918 | E288: 2014-01-01 | F288: 2014-12-31 | G288: 102 | H288: 2015-01-01 | I288: 0
B289: =B279-DATE(YEAR(B279)-1,12,31.25) -> 1 | C289: 2014 | D289: =(G289-G290)*$B$239/365+G290 -> 99 | E289: 2013-01-01 | F289: 2013-12-31 | G289: 99 | H289: 2014-01-01 | I289: 0
B290: =B279-DATE(YEAR(B279)-1,12,31.25) -> 1 | C290: 2013 | D290: 98.00273973 | E290: 2012-01-01 | F290: 2012-12-31 | G290: 99 | H290: 2013-01-01 | I290: 0
B291: =B279-DATE(YEAR(B279)-1,12,31.25) -> 1 | C291: 2012 | D291: 98.99726027 | E291: 2011-01-01 | F291: 2011-12-31 | G291: 98 | H291: 2012-01-01 | I291: 0
B292: =B279-DATE(YEAR(B279)-1,12,31.25) -> 1 | C292: 2011 | D292: 99.99726027 | E292: 2010-01-01 | F292: 2010-12-31 | G292: 99 | H292: 2011-01-01 | I292: 0
B293: =B279-DATE(YEAR(B279)-1,12,31.25) -> 1 | C293: 2010 | D293: 99.00273973 | E293: 2009-01-01 | F293: 2009-12-31 | G293: 100 | H293: 2010-01-01 | I293: 0
B294: =B279-DATE(YEAR(B279)-1,12,31.25) -> 1 | C294: 2009 | D294: 99 | E294: 2008-01-01 | F294: 2008-12-31 | G294: 99 | H294: 2009-01-01 | I294: 0
B295: =B279-DATE(YEAR(B279)-1,12,31.25) -> 1 | C295: 2008 | D295: 99.99726027 | E295: 2007-01-01 | F295: 2007-12-31 | G295: 99 | H295: 2008-01-01 | I295: 0
B296: =B279-DATE(YEAR(B279)-1,12,31.25) -> 1 | C296: 2007 | D296: 98.00547945 | E296: 2006-01-01 | F296: 2006-12-31 | G296: 100 | H296: 2007-01-01 | I296: 0
B297: =B279-DATE(YEAR(B279)-1,12,31.25) -> 1 | C297: 2006 | D297: 0.2684931507 | E297: 2005-01-01 | F297: 2005-12-31 | G297: 98 | H297: 2006-01-01 | I297: 0
I298: =ROUND(SUM(I280:I297),0) -> 140 | J298: =IF(EingabeMaske!D$43=2,'Vergleichsdaten 2022'!I298,0) -> 0 | K298: =IF(EingabeMaske!D$43=2,G283,0) -> 0
J299: =B230 -> 2020-01-01 | K299: 2020-01-01
A301: Marktsegment 3
A302: Farblegende: | B302: =EingabeMaske!D$15 -> 2020-01-01 | E302: Interpolation! | G302: Index | H302: Stichtag | I302: Ergänzung
A303: Fester Wert | B303: =B302-DATE(YEAR(B302)-1,12,31.25) -> 1 | C303: 2023 | D303: =(G303-G304)*$B304/365+G304 -> 218 | E303: 2022-01-01 | F303: 2022-12-31 | G303: 218 | H303: 2023-01-01 | I303: =ROUND(IF(YEAR($B$230)+1=C303,D303,0),2) -> 0
B304: =B302-DATE(YEAR(B302)-1,12,31.25) -> 1 | C304: 2022 | D304: =(G304-G305)*$B306/365+G305 -> 189.0794521 | E304: 2021-01-01 | F304: 2021-12-31 | G304: 218 | H304: 2022-01-01 | I304: =ROUND(IF(YEAR($B$230)+1=C304,D304,0),2) -> 0
B305: =B302-DATE(YEAR(B302)-1,12,31.25) -> 1 | C305: 2021 | D305: =(G305-G306)*$B$239/365+G306 -> 167.060274 | E305: 2020-01-01 | F305: 2020-12-31 | G305: 189 | H305: 2021-01-01 | I305: 167.06
B306: =B302-DATE(YEAR(B302)-1,12,31.25) -> 1 | C306: 2020 | D306: =(G306-G307)*$B307/365+G307 -> 151.0438356 | E306: 2019-01-01 | F306: 2019-12-31 | G306: 167 | H306: 2020-01-01 | I306: 0
B307: =B302-DATE(YEAR(B302)-1,12,31.25) -> 1 | C307: 2019 | D307: 142.0246575 | E307: 2018-01-01 | F307: 2018-12-31 | G307: 151 | H307: 2019-01-01 | I307: 0
B308: =B302-DATE(YEAR(B302)-1,12,31.25) -> 1 | C308: 2018 | D308: =(G308-G309)*$B310/365+G309 -> 132.0273973 | E308: 2017-01-01 | F308: 2017-12-31 | G308: 142 | H308: 2018-01-01 | I308: 0
B309: =B302-DATE(YEAR(B302)-1,12,31.25) -> 1 | C309: 2017 | D309: =(G309-G310)*$B$239/365+G310 -> 123.0246575 | E309: 2016-01-01 | F309: 2016-12-31 | G309: 132 | H309: 2017-01-01 | I309: 0
B310: =B302-DATE(YEAR(B302)-1,12,31.25) -> 1 | C310: 2016 | D310: =(G310-G311)*$B311/365+G311 -> 115.0219178 | E310: 2015-01-01 | F310: 2015-12-31 | G310: 123 | H310: 2016-01-01 | I310: 0
B311: =B302-DATE(YEAR(B302)-1,12,31.25) -> 1 | C311: 2015 | D311: =(G311-G312)*$B312/365+G312 -> 112.0082192 | E311: 2014-01-01 | F311: 2014-12-31 | G311: 115 | H311: 2015-01-01 | I311: 0
B312: =B302-DATE(YEAR(B302)-1,12,31.25) -> 1 | C312: 2014 | D312: =(G312-G313)*$B$239/365+G313 -> 109.0082192 | E312: 2013-01-01 | F312: 2013-12-31 | G312: 112 | H312: 2014-01-01 | I312: 0
B313: =B302-DATE(YEAR(B302)-1,12,31.25) -> 1 | C313: 2013 | D313: 106.0082192 | E313: 2012-01-01 | F313: 2012-12-31 | G313: 109 | H313: 2013-01-01 | I313: 0
B314: =B302-DATE(YEAR(B302)-1,12,31.25) -> 1 | C314: 2012 | D314: 100.0164384 | E314: 2011-01-01 | F314: 2011-12-31 | G314: 106 | H314: 2012-01-01 | I314: 0
B315: =B302-DATE(YEAR(B302)-1,12,31.25) -> 1 | C315: 2011 | D315: 100 | E315: 2010-01-01 | F315: 2010-12-31 | G315: 100 | H315: 2011-01-01 | I315: 0
B316: =B302-DATE(YEAR(B302)-1,12,31.25) -> 1 | C316: 2010 | D316: 99.00273973 | E316: 2009-01-01 | F316: 2009-12-31 | G316: 100 | H316: 2010-01-01 | I316: 0
B317: =B302-DATE(YEAR(B302)-1,12,31.25) -> 1 | C317: 2009 | D317: 99 | E317: 2008-01-01 | F317: 2008-12-31 | G317: 99 | H317: 2009-01-01 | I317: 0
B318: =B302-DATE(YEAR(B302)-1,12,31.25) -> 1 | C318: 2008 | D318: 99.99726027 | E318: 2007-01-01 | F318: 2007-12-31 | G318: 99 | H318: 2008-01-01 | I318: 0
B319: =B302-DATE(YEAR(B302)-1,12,31.25) -> 1 | C319: 2007 | D319: 98.00547945 | E319: 2006-01-01 | F319: 2006-12-31 | G319: 100 | H319: 2007-01-01 | I319: 0
B320: =B302-DATE(YEAR(B302)-1,12,31.25) -> 1 | C320: 2006 | D320: 0.2684931507 | E320: 2005-01-01 | F320: 2005-12-31 | G320: 98 | H320: 2006-01-01 | I320: 0
I321: =ROUND(SUM(I303:I320),0) -> 167 | J321: =IF(EingabeMaske!D$43=3,'Vergleichsdaten 2022'!I321,0) -> 0 | K321: =IF(EingabeMaske!D$43=3,G306,0) -> 0
J322: =B230 -> 2020-01-01 | K322: 2020-01-01
A324: Marktsegment 4
A325: Farblegende: | B325: =EingabeMaske!D$15 -> 2020-01-01 | E325: Interpolation! | G325: Index | H325: Stichtag | I325: Ergänzung
A326: Fester Wert | B326: =B325-DATE(YEAR(B325)-1,12,31.25) -> 1 | C326: 2023 | D326: =(G326-G327)*$B327/365+G327 -> 233 | E326: 2022-01-01 | F326: 2022-12-31 | G326: 233 | H326: 2023-01-01 | I326: =ROUND(IF(YEAR($B$230)+1=C326,D326,0),2) -> 0
B327: =B325-DATE(YEAR(B325)-1,12,31.25) -> 1 | C327: 2022 | D327: =(G327-G328)*$B329/365+G328 -> 211.060274 | E327: 2021-01-01 | F327: 2021-12-31 | G327: 233 | H327: 2022-01-01 | I327: =ROUND(IF(YEAR($B$230)+1=C327,D327,0),2) -> 0
B328: =B325-DATE(YEAR(B325)-1,12,31.25) -> 1 | C328: 2021 | D328: =(G328-G329)*$B$239/365+G329 -> 190.0575342 | E328: 2020-01-01 | F328: 2020-12-31 | G328: 211 | H328: 2021-01-01 | I328: 190.06
B329: =B325-DATE(YEAR(B325)-1,12,31.25) -> 1 | C329: 2020 | D329: =(G329-G330)*$B330/365+G330 -> 173.0465753 | E329: 2019-01-01 | F329: 2019-12-31 | G329: 190 | H329: 2020-01-01 | I329: 0
B330: =B325-DATE(YEAR(B325)-1,12,31.25) -> 1 | C330: 2019 | D330: 156.0465753 | E330: 2018-01-01 | F330: 2018-12-31 | G330: 173 | H330: 2019-01-01 | I330: 0
B331: =B325-DATE(YEAR(B325)-1,12,31.25) -> 1 | C331: 2018 | D331: =(G331-G332)*$B333/365+G332 -> 142.0383562 | E331: 2017-01-01 | F331: 2017-12-31 | G331: 156 | H331: 2018-01-01 | I331: 0
B332: =B325-DATE(YEAR(B325)-1,12,31.25) -> 1 | C332: 2017 | D332: =(G332-G333)*$B$239/365+G333 -> 128.0383562 | E332: 2016-01-01 | F332: 2016-12-31 | G332: 142 | H332: 2017-01-01 | I332: 0
B333: =B325-DATE(YEAR(B325)-1,12,31.25) -> 1 | C333: 2016 | D333: =(G333-G334)*$B334/365+G334 -> 120.0219178 | E333: 2015-01-01 | F333: 2015-12-31 | G333: 128 | H333: 2016-01-01 | I333: 0
B334: =B325-DATE(YEAR(B325)-1,12,31.25) -> 1 | C334: 2015 | D334: =(G334-G335)*$B335/365+G335 -> 113.0191781 | E334: 2014-01-01 | F334: 2014-12-31 | G334: 120 | H334: 2015-01-01 | I334: 0
B335: =B325-DATE(YEAR(B325)-1,12,31.25) -> 1 | C335: 2014 | D335: =(G335-G336)*$B$239/365+G336 -> 108.0136986 | E335: 2013-01-01 | F335: 2013-12-31 | G335: 113 | H335: 2014-01-01 | I335: 0
... 58 more rows

Sheet Vergleichsdaten 2023 (hidden)
A2: =EingabeMaske!A57 -> Quelle: Oberer Gutachterausschuss für Grundstückswerte Rheinland-Pfalz gem. Landesgrundstückmarktbericht 2021
A4: Berücksichtigung der Wertverhältnisse zwischen dem Richtwertstichtag
A5: und dem Wertermittlungsstichtag
A6: RLP
A7: Farblegende: | B7: =EingabeMaske!$D$15 -> 2020-01-01 | E7: Interpolation! | G7: Index | H7: Stichtag | I7: Ergänzung
A8: Fester Wert | B8: =B7-DATE(YEAR(B7)-1,12,31.25) -> 1 | C8: 2025 | D8: =(G8-G11)*$B11/365+G11 -> 231.0465753 | E8: 2024-01-01 | F8: 2024-12-31 | G8: 248 | H8: 2025-01-01 | I8: =ROUND(IF(YEAR($B$7)+1=C8,D8,0),2) -> 0
B9: =B7-DATE(YEAR(B7)-1,12,31.25) -> 1 | C9: 2024 | D9: =(G9-G10)*$B11/365+G10 -> 248 | E9: 2023-01-01 | F9: 2023-12-31 | G9: 248 | H9: 2024-01-01
B10: =B7-DATE(YEAR(B7)-1,12,31.25) -> 1 | C10: 2023 | D10: 231.0465753 | E10: 2022-01-01 | F10: 2022-12-31 | G10: 248 | H10: 2023-01-01 | I10: =ROUND(IF(YEAR($B$7)+1=C10,D10,0),2) -> 0
B11: =B7-DATE(YEAR(B7)-1,12,31.25) -> 1 | C11: 2022 | D11: 212.0520548 | E11: 2021-01-01 | F11: 2021-12-31 | G11: 231 | H11: 2022-01-01 | I11: 0
B12: =B7-DATE(YEAR(B7)-1,12,31.25) -> 1 | C12: 2021 | D12: =(G12-G13)*$B$18/365+G13 -> 190.060274 | E12: 2020-01-01 | F12: 2020-12-31 | G12: 212 | H12: 2021-01-01 | I12: 190.06
B13: =B7-DATE(YEAR(B7)-1,12,31.25) -> 1 | C13: 2020 | D13: =(G13-G14)*$B14/365+G14 -> 172.0493151 | E13: 2019-01-01 | F13: 2019-12-31 | G13: 190 | H13: 2020-01-01 | I13: 0
B14: =B7-DATE(YEAR(B7)-1,12,31.25) -> 1 | C14: 2019 | D14: 157.0410959 | E14: 2018-01-01 | F14: 2018-12-31 | G14: 172 | H14: 2019-01-01 | I14: 0
B15: =B7-DATE(YEAR(B7)-1,12,31.25) -> 1 | C15: 2018 | D15: =(G15-G16)*$B17/365+G16 -> 144.0356164 | E15: 2017-01-01 | F15: 2017-12-31 | G15: 157 | H15: 2018-01-01 | I15: 0
B16: =B7-DATE(YEAR(B7)-1,12,31.25) -> 1 | C16: 2017 | D16: =(G16-G17)*$B$18/365+G17 -> 132.0328767 | E16: 2016-01-01 | F16: 2016-12-31 | G16: 144 | H16: 2017-01-01 | I16: 0
B17: =B7-DATE(YEAR(B7)-1,12,31.25) -> 1 | C17: 2016 | D17: =(G17-G18)*$B18/365+G18 -> 122.0273973 | E17: 2015-01-01 | F17: 2015-12-31 | G17: 132 | H17: 2016-01-01 | I17: 0
B18: =B7-DATE(YEAR(B7)-1,12,31.25) -> 1 | C18: 2015 | D18: =(G18-G19)*$B19/365+G19 -> 116.0164384 | E18: 2014-01-01 | F18: 2014-12-31 | G18: 122 | H18: 2015-01-01 | I18: 0
B19: =B7-DATE(YEAR(B7)-1,12,31.25) -> 1 | C19: 2014 | D19: =(G19-G20)*$B$18/365+G20 -> 110.0164384 | E19: 2013-01-01 | F19: 2013-12-31 | G19: 116 | H19: 2014-01-01 | I19: 0
B20: =B7-DATE(YEAR(B7)-1,12,31.25) -> 1 | C20: 2013 | D20: 105.0136986 | E20: 2012-01-01 | F20: 2012-12-31 | G20: 110 | H20: 2013-01-01 | I20: 0
B21: =B7-DATE(YEAR(B7)-1,12,31.25) -> 1 | C21: 2012 | D21: 102.0082192 | E21: 2011-01-01 | F21: 2011-12-31 | G21: 105 | H21: 2012-01-01 | I21: 0
B22: =B7-DATE(YEAR(B7)-1,12,31.25) -> 1 | C22: 2011 | D22: 100.0054795 | E22: 2010-01-01 | F22: 2010-12-31 | G22: 102 | H22: 2011-01-01 | I22: 0
B23: =B7-DATE(YEAR(B7)-1,12,31.25) -> 1 | C23: 2010 | D23: 99.00273973 | E23: 2009-01-01 | F23: 2009-12-31 | G23: 100 | H23: 2010-01-01 | I23: 0
B24: =B7-DATE(YEAR(B7)-1,12,31.25) -> 1 | C24: 2009 | D24: 99 | E24: 2008-01-01 | F24: 2008-12-31 | G24: 99 | H24: 2009-01-01 | I24: 0
B25: =B7-DATE(YEAR(B7)-1,12,31.25) -> 1 | C25: 2008 | D25: 99.99726027 | E25: 2007-01-01 | F25: 2007-12-31 | G25: 99 | H25: 2008-01-01 | I25: 0
B26: =B7-DATE(YEAR(B7)-1,12,31.25) -> 1 | C26: 2007 | D26: 98.00547945 | E26: 2006-01-01 | F26: 2006-12-31 | G26: 100 | H26: 2007-01-01 | I26: 0
B27: =B7-DATE(YEAR(B7)-1,12,31.25) -> 1 | C27: 2006 | D27: 0.2684931507 | E27: 2005-01-01 | F27: 2005-12-31 | G27: 98 | H27: 2006-01-01 | I27: 0
I28: =ROUND(SUM(I8:I27),0) -> 190
A34: Marktsegment 1
A35: Farblegende: | B35: =EingabeMaske!$D$15 -> 2020-01-01 | E35: Interpolation! | G35: Index | H35: Stichtag | I35: Ergänzung
A36: Fester Wert | B36: =B35-DATE(YEAR(B35)-1,12,31.25) -> 1 | C36: 2025 | D36: =(G36-G39)*$B39/365+G39 -> 177.0520548 | E36: 2024-01-01 | F36: 2024-12-31 | G36: 196 | H36: 2025-01-01 | I36: =ROUND(IF(YEAR($B$7)+1=C36,D36,0),2) -> 0
B37: =B35-DATE(YEAR(B35)-1,12,31.25) -> 1 | C37: 2024 | D37: =(G37-G38)*$B39/365+G38 -> 196 | E37: 2023-01-01 | F37: 2023-12-31 | G37: 196 | H37: 2024-01-01 | I37: =ROUND(IF(YEAR($B$7)+1=C37,D37,0),2) -> 0
B38: =B35-DATE(YEAR(B35)-1,12,31.25) -> 1 | C38: 2023 | D38: 177.0520548 | E38: 2022-01-01 | F38: 2022-12-31 | G38: 196 | H38: 2023-01-01 | I38: 0
B39: =B35-DATE(YEAR(B35)-1,12,31.25) -> 1 | C39: 2022 | D39: 159.0493151 | E39: 2021-01-01 | F39: 2021-12-31 | G39: 177 | H39: 2022-01-01 | I39: 0
B40: =B35-DATE(YEAR(B35)-1,12,31.25) -> 1 | C40: 2021 | D40: =(G40-G41)*$B$18/365+G41 -> 138.0575342 | E40: 2020-01-01 | F40: 2020-12-31 | G40: 159 | H40: 2021-01-01 | I40: 138.06
B41: =B35-DATE(YEAR(B35)-1,12,31.25) -> 1 | C41: 2020 | D41: =(G41-G42)*$B42/365+G42 -> 127.030137 | E41: 2019-01-01 | F41: 2019-12-31 | G41: 138 | H41: 2020-01-01 | I41: 0
B42: =B35-DATE(YEAR(B35)-1,12,31.25) -> 1 | C42: 2019 | D42: 118.0246575 | E42: 2018-01-01 | F42: 2018-12-31 | G42: 127 | H42: 2019-01-01 | I42: 0
B43: =B35-DATE(YEAR(B35)-1,12,31.25) -> 1 | C43: 2018 | D43: =(G43-G44)*$B45/365+G44 -> 113.0136986 | E43: 2017-01-01 | F43: 2017-12-31 | G43: 118 | H43: 2018-01-01 | I43: 0
B44: =B35-DATE(YEAR(B35)-1,12,31.25) -> 1 | C44: 2017 | D44: =(G44-G45)*$B$18/365+G45 -> 102.030137 | E44: 2016-01-01 | F44: 2016-12-31 | G44: 113 | H44: 2017-01-01 | I44: 0
B45: =B35-DATE(YEAR(B35)-1,12,31.25) -> 1 | C45: 2016 | D45: =(G45-G46)*$B46/365+G46 -> 97.01369863 | E45: 2015-01-01 | F45: 2015-12-31 | G45: 102 | H45: 2016-01-01 | I45: 0
B46: =B35-DATE(YEAR(B35)-1,12,31.25) -> 1 | C46: 2015 | D46: =(G46-G47)*$B47/365+G47 -> 97.99726027 | E46: 2014-01-01 | F46: 2014-12-31 | G46: 97 | H46: 2015-01-01 | I46: 0
B47: =B35-DATE(YEAR(B35)-1,12,31.25) -> 1 | C47: 2014 | D47: =(G47-G48)*$B$18/365+G48 -> 92.01643836 | E47: 2013-01-01 | F47: 2013-12-31 | G47: 98 | H47: 2014-01-01 | I47: 0
B48: =B35-DATE(YEAR(B35)-1,12,31.25) -> 1 | C48: 2013 | D48: 89.00821918 | E48: 2012-01-01 | F48: 2012-12-31 | G48: 92 | H48: 2013-01-01 | I48: 0
B49: =B35-DATE(YEAR(B35)-1,12,31.25) -> 1 | C49: 2012 | D49: 86.00821918 | E49: 2011-01-01 | F49: 2011-12-31 | G49: 89 | H49: 2012-01-01 | I49: 0
B50: =B35-DATE(YEAR(B35)-1,12,31.25) -> 1 | C50: 2011 | D50: 99.96164384 | E50: 2010-01-01 | F50: 2010-12-31 | G50: 86 | H50: 2011-01-01 | I50: 0
B51: =B35-DATE(YEAR(B35)-1,12,31.25) -> 1 | C51: 2010 | D51: 99.00273973 | E51: 2009-01-01 | F51: 2009-12-31 | G51: 100 | H51: 2010-01-01 | I51: 0
B52: =B35-DATE(YEAR(B35)-1,12,31.25) -> 1 | C52: 2009 | D52: 99 | E52: 2008-01-01 | F52: 2008-12-31 | G52: 99 | H52: 2009-01-01 | I52: 0
B53: =B35-DATE(YEAR(B35)-1,12,31.25) -> 1 | C53: 2008 | D53: 99.99726027 | E53: 2007-01-01 | F53: 2007-12-31 | G53: 99 | H53: 2008-01-01 | I53: 0
B54: =B35-DATE(YEAR(B35)-1,12,31.25) -> 1 | C54: 2007 | D54: 98.00547945 | E54: 2006-01-01 | F54: 2006-12-31 | G54: 100 | H54: 2007-01-01 | I54: 0
B55: =B35-DATE(YEAR(B35)-1,12,31.25) -> 1 | C55: 2006 | D55: 0.2684931507 | E55: 2005-01-01 | F55: 2005-12-31 | G55: 98 | H55: 2006-01-01 | I55: 0
I56: =ROUND(SUM(I36:I55),0) -> 138 | J56: =IF(EingabeMaske!$D$43=1,I56,0) -> 0 | K56: =IF(EingabeMaske!$D$43=1,G41,0) -> 0
J57: =B7 -> 2020-01-01 | K57: 2020-01-01
A59: Marktsegment 2
A60: Farblegende: | B60: =EingabeMaske!$D$15 -> 2020-01-01 | E60: Interpolation! | G60: Index | H60: Stichtag | I60: Ergänzung
A61: Fester Wert | B61: =B60-DATE(YEAR(B60)-1,12,31.25) -> 1 | C61: 2025 | D61: =(G61-G64)*$B64/365+G64 -> 173.0493151 | E61: 2024-01-01 | F61: 2024-12-31 | G61: 191 | H61: 2025-01-01 | I61: =ROUND(IF(YEAR($B$7)+1=C61,D61,0),2) -> 0
B62: =B60-DATE(YEAR(B60)-1,12,31.25) -> 1 | C62: 2024 | D62: =(G62-G63)*$B64/365+G63 -> 191 | E62: 2023-01-01 | F62: 2023-12-31 | G62: 191 | H62: 2024-01-01 | I62: =ROUND(IF(YEAR($B$7)+1=C62,D62,0),2) -> 0
B63: =B60-DATE(YEAR(B60)-1,12,31.25) -> 1 | C63: 2023 | D63: 173.0493151 | E63: 2022-01-01 | F63: 2022-12-31 | G63: 191 | H63: 2023-01-01 | I63: 0
B64: =B60-DATE(YEAR(B60)-1,12,31.25) -> 1 | C64: 2022 | D64: 156.0465753 | E64: 2021-01-01 | F64: 2021-12-31 | G64: 173 | H64: 2022-01-01 | I64: 0
B65: =B60-DATE(YEAR(B60)-1,12,31.25) -> 1 | C65: 2021 | D65: =(G65-G66)*$B$18/365+G66 -> 140.0438356 | E65: 2020-01-01 | F65: 2020-12-31 | G65: 156 | H65: 2021-01-01 | I65: 140.04
B66: =B60-DATE(YEAR(B60)-1,12,31.25) -> 1 | C66: 2020 | D66: =(G66-G67)*$B67/365+G67 -> 128.0328767 | E66: 2019-01-01 | F66: 2019-12-31 | G66: 140 | H66: 2020-01-01 | I66: 0
B67: =B60-DATE(YEAR(B60)-1,12,31.25) -> 1 | C67: 2019 | D67: 119.0246575 | E67: 2018-01-01 | F67: 2018-12-31 | G67: 128 | H67: 2019-01-01 | I67: 0
B68: =B60-DATE(YEAR(B60)-1,12,31.25) -> 1 | C68: 2018 | D68: =(G68-G69)*$B70/365+G69 -> 112.0191781 | E68: 2017-01-01 | F68: 2017-12-31 | G68: 119 | H68: 2018-01-01 | I68: 0
B69: =B60-DATE(YEAR(B60)-1,12,31.25) -> 1 | C69: 2017 | D69: =(G69-G70)*$B$18/365+G70 -> 106.0164384 | E69: 2016-01-01 | F69: 2016-12-31 | G69: 112 | H69: 2017-01-01 | I69: 0
B70: =B60-DATE(YEAR(B60)-1,12,31.25) -> 1 | C70: 2016 | D70: =(G70-G71)*$B71/365+G71 -> 102.0109589 | E70: 2015-01-01 | F70: 2015-12-31 | G70: 106 | H70: 2016-01-01 | I70: 0
B71: =B60-DATE(YEAR(B60)-1,12,31.25) -> 1 | C71: 2015 | D71: =(G71-G72)*$B72/365+G72 -> 99.00821918 | E71: 2014-01-01 | F71: 2014-12-31 | G71: 102 | H71: 2015-01-01 | I71: 0
B72: =B60-DATE(YEAR(B60)-1,12,31.25) -> 1 | C72: 2014 | D72: =(G72-G73)*$B$18/365+G73 -> 99 | E72: 2013-01-01 | F72: 2013-12-31 | G72: 99 | H72: 2014-01-01 | I72: 0
B73: =B60-DATE(YEAR(B60)-1,12,31.25) -> 1 | C73: 2013 | D73: 98.00273973 | E73: 2012-01-01 | F73: 2012-12-31 | G73: 99 | H73: 2013-01-01 | I73: 0
B74: =B60-DATE(YEAR(B60)-1,12,31.25) -> 1 | C74: 2012 | D74: 98.99726027 | E74: 2011-01-01 | F74: 2011-12-31 | G74: 98 | H74: 2012-01-01 | I74: 0
B75: =B60-DATE(YEAR(B60)-1,12,31.25) -> 1 | C75: 2011 | D75: 99.99726027 | E75: 2010-01-01 | F75: 2010-12-31 | G75: 99 | H75: 2011-01-01 | I75: 0
B76: =B60-DATE(YEAR(B60)-1,12,31.25) -> 1 | C76: 2010 | D76: 99.00273973 | E76: 2009-01-01 | F76: 2009-12-31 | G76: 100 | H76: 2010-01-01 | I76: 0
B77: =B60-DATE(YEAR(B60)-1,12,31.25) -> 1 | C77: 2009 | D77: 99 | E77: 2008-01-01 | F77: 2008-12-31 | G77: 99 | H77: 2009-01-01 | I77: 0
B78: =B60-DATE(YEAR(B60)-1,12,31.25) -> 1 | C78: 2008 | D78: 99.99726027 | E78: 2007-01-01 | F78: 2007-12-31 | G78: 99 | H78: 2008-01-01 | I78: 0
B79: =B60-DATE(YEAR(B60)-1,12,31.25) -> 1 | C79: 2007 | D79: 98.00547945 | E79: 2006-01-01 | F79: 2006-12-31 | G79: 100 | H79: 2007-01-01 | I79: 0
B80: =B60-DATE(YEAR(B60)-1,12,31.25) -> 1 | C80: 2006 | D80: 0.2684931507 | E80: 2005-01-01 | F80: 2005-12-31 | G80: 98 | H80: 2006-01-01 | I80: 0
I81: =ROUND(SUM(I61:I80),0) -> 140 | J81: =IF(EingabeMaske!$D$43=2,I81,0) -> 0 | K81: =IF(EingabeMaske!$D$43=2,G66,0) -> 0
J82: =B7 -> 2020-01-01 | K82: 2020-01-01
A84: Marktsegment 3
A85: Farblegende: | B85: =EingabeMaske!$D$15 -> 2020-01-01 | E85: Interpolation! | G85: Index | H85: Stichtag | I85: Ergänzung
A86: Fester Wert | B86: =B85-DATE(YEAR(B85)-1,12,31.25) -> 1 | C86: 2025 | D86: =(G86-G89)*$B89/365+G89 -> 214.0520548 | E86: 2024-01-01 | F86: 2024-12-31 | G86: 233 | H86: 2025-01-01 | I86: =ROUND(IF(YEAR($B$7)+1=C86,D86,0),2) -> 0
B87: =B85-DATE(YEAR(B85)-1,12,31.25) -> 1 | C87: 2024 | D87: =(G87-G88)*$B89/365+G88 -> 233 | E87: 2023-01-01 | F87: 2023-12-31 | G87: 233 | H87: 2024-01-01 | I87: =ROUND(IF(YEAR($B$7)+1=C87,D87,0),2) -> 0
B88: =B85-DATE(YEAR(B85)-1,12,31.25) -> 1 | C88: 2023 | D88: 214.0520548 | E88: 2022-01-01 | F88: 2022-12-31 | G88: 233 | H88: 2023-01-01 | I88: 0
B89: =B85-DATE(YEAR(B85)-1,12,31.25) -> 1 | C89: 2022 | D89: 190.0657534 | E89: 2021-01-01 | F89: 2021-12-31 | G89: 214 | H89: 2022-01-01 | I89: 0
B90: =B85-DATE(YEAR(B85)-1,12,31.25) -> 1 | C90: 2021 | D90: =(G90-G91)*$B$18/365+G91 -> 167.0630137 | E90: 2020-01-01 | F90: 2020-12-31 | G90: 190 | H90: 2021-01-01 | I90: 167.06
B91: =B85-DATE(YEAR(B85)-1,12,31.25) -> 1 | C91: 2020 | D91: =(G91-G92)*$B92/365+G92 -> 151.0438356 | E91: 2019-01-01 | F91: 2019-12-31 | G91: 167 | H91: 2020-01-01 | I91: 0
B92: =B85-DATE(YEAR(B85)-1,12,31.25) -> 1 | C92: 2019 | D92: 142.0246575 | E92: 2018-01-01 | F92: 2018-12-31 | G92: 151 | H92: 2019-01-01 | I92: 0
B93: =B85-DATE(YEAR(B85)-1,12,31.25) -> 1 | C93: 2018 | D93: =(G93-G94)*$B95/365+G94 -> 132.0273973 | E93: 2017-01-01 | F93: 2017-12-31 | G93: 142 | H93: 2018-01-01 | I93: 0
B94: =B85-DATE(YEAR(B85)-1,12,31.25) -> 1 | C94: 2017 | D94: =(G94-G95)*$B$18/365+G95 -> 123.0246575 | E94: 2016-01-01 | F94: 2016-12-31 | G94: 132 | H94: 2017-01-01 | I94: 0
B95: =B85-DATE(YEAR(B85)-1,12,31.25) -> 1 | C95: 2016 | D95: =(G95-G96)*$B96/365+G96 -> 115.0219178 | E95: 2015-01-01 | F95: 2015-12-31 | G95: 123 | H95: 2016-01-01 | I95: 0
B96: =B85-DATE(YEAR(B85)-1,12,31.25) -> 1 | C96: 2015 | D96: =(G96-G97)*$B97/365+G97 -> 112.0082192 | E96: 2014-01-01 | F96: 2014-12-31 | G96: 115 | H96: 2015-01-01 | I96: 0
B97: =B85-DATE(YEAR(B85)-1,12,31.25) -> 1 | C97: 2014 | D97: =(G97-G98)*$B$18/365+G98 -> 109.0082192 | E97: 2013-01-01 | F97: 2013-12-31 | G97: 112 | H97: 2014-01-01 | I97: 0
B98: =B85-DATE(YEAR(B85)-1,12,31.25) -> 1 | C98: 2013 | D98: 106.0082192 | E98: 2012-01-01 | F98: 2012-12-31 | G98: 109 | H98: 2013-01-01 | I98: 0
B99: =B85-DATE(YEAR(B85)-1,12,31.25) -> 1 | C99: 2012 | D99: 100.0164384 | E99: 2011-01-01 | F99: 2011-12-31 | G99: 106 | H99: 2012-01-01 | I99: 0
B100: =B85-DATE(YEAR(B85)-1,12,31.25) -> 1 | C100: 2011 | D100: 100 | E100: 2010-01-01 | F100: 2010-12-31 | G100: 100 | H100: 2011-01-01 | I100: 0
B101: =B85-DATE(YEAR(B85)-1,12,31.25) -> 1 | C101: 2010 | D101: 99.00273973 | E101: 2009-01-01 | F101: 2009-12-31 | G101: 100 | H101: 2010-01-01 | I101: 0
B102: =B85-DATE(YEAR(B85)-1,12,31.25) -> 1 | C102: 2009 | D102: 99 | E102: 2008-01-01 | F102: 2008-12-31 | G102: 99 | H102: 2009-01-01 | I102: 0
B103: =B85-DATE(YEAR(B85)-1,12,31.25) -> 1 | C103: 2008 | D103: 99.99726027 | E103: 2007-01-01 | F103: 2007-12-31 | G103: 99 | H103: 2008-01-01 | I103: 0
B104: =B85-DATE(YEAR(B85)-1,12,31.25) -> 1 | C104: 2007 | D104: 98.00547945 | E104: 2006-01-01 | F104: 2006-12-31 | G104: 100 | H104: 2007-01-01 | I104: 0
B105: =B85-DATE(YEAR(B85)-1,12,31.25) -> 1 | C105: 2006 | D105: 0.2684931507 | E105: 2005-01-01 | F105: 2005-12-31 | G105: 98 | H105: 2006-01-01 | I105: 0
I106: =ROUND(SUM(I86:I105),0) -> 167 | J106: =IF(EingabeMaske!$D$43=3,I106,0) -> 0 | K106: =IF(EingabeMaske!$D$43=3,G91,0) -> 0
J107: =B7 -> 2020-01-01 | K107: 2020-01-01
A109: Marktsegment 4
A110: Farblegende: | B110: =EingabeMaske!$D$15 -> 2020-01-01 | E110: Interpolation! | G110: Index | H110: Stichtag | I110: Ergänzung
A111: Fester Wert | B111: =B110-DATE(YEAR(B110)-1,12,31.25) -> 1 | C111: 2025 | D111: =(G111-G114)*$B114/365+G114 -> 245.9643836 | E111: 2024-01-01 | F111: 2024-12-31 | G111: 233 | H111: 2025-01-01 | I111: =ROUND(IF(YEAR($B$7)+1=C111,D111,0),2) -> 0
B112: =B110-DATE(YEAR(B110)-1,12,31.25) -> 1 | C112: 2024 | D112: =(G112-G113)*$B114/365+G113 -> 273 | E112: 2023-01-01 | F112: 2023-12-31 | G112: 273 | H112: 2024-01-01 | I112: =ROUND(IF(YEAR($B$7)+1=C112,D112,0),2) -> 0
B113: =B110-DATE(YEAR(B110)-1,12,31.25) -> 1 | C113: 2023 | D113: 246.0739726 | E113: 2022-01-01 | F113: 2022-12-31 | G113: 273 | H113: 2023-01-01 | I113: 0
B114: =B110-DATE(YEAR(B110)-1,12,31.25) -> 1 | C114: 2022 | D114: 218.0767123 | E114: 2021-01-01 | F114: 2021-12-31 | G114: 246 | H114: 2022-01-01 | I114: 0
B115: =B110-DATE(YEAR(B110)-1,12,31.25) -> 1 | C115: 2021 | D115: =(G115-G116)*$B$18/365+G116 -> 191.0739726 | E115: 2020-01-01 | F115: 2020-12-31 | G115: 218 | H115: 2021-01-01 | I115: 191.07
B116: =B110-DATE(YEAR(B110)-1,12,31.25) -> 1 | C116: 2020 | D116: =(G116-G117)*$B117/365+G117 -> 173.0493151 | E116: 2019-01-01 | F116: 2019-12-31 | G116: 191 | H116: 2020-01-01 | I116: 0
B117: =B110-DATE(YEAR(B110)-1,12,31.25) -> 1 | C117: 2019 | D117: 156.0465753 | E117: 2018-01-01 | F117: 2018-12-31 | G117: 173 | H117: 2019-01-01 | I117: 0
B118: =B110-DATE(YEAR(B110)-1,12,31.25) -> 1 | C118: 2018 | D118: =(G118-G119)*$B120/365+G119 -> 142.0383562 | E118: 2017-01-01 | F118: 2017-12-31 | G118: 156 | H118: 2018-01-01 | I118: 0
B119: =B110-DATE(YEAR(B110)-1,12,31.25) -> 1 | C119: 2017 | D119: =(G119-G120)*$B$18/365+G120 -> 128.0383562 | E119: 2016-01-01 | F119: 2016-12-31 | G119: 142 | H119: 2017-01-01 | I119: 0
B120: =B110-DATE(YEAR(B110)-1,12,31.25) -> 1 | C120: 2016 | D120: =(G120-G121)*$B121/365+G121 -> 120.0219178 | E120: 2015-01-01 | F120: 2015-12-31 | G120: 128 | H120: 2016-01-01 | I120: 0
B121: =B110-DATE(YEAR(B110)-1,12,31.25) -> 1 | C121: 2015 | D121: =(G121-G122)*$B122/365+G122 -> 113.0191781 | E121: 2014-01-01 | F121: 2014-12-31 | G121: 120 | H121: 2015-01-01 | I121: 0
B122: =B110-DATE(YEAR(B110)-1,12,31.25) -> 1 | C122: 2014 | D122: =(G122-G123)*$B$18/365+G123 -> 108.0136986 | E122: 2013-01-01 | F122: 2013-12-31 | G122: 113 | H122: 2014-01-01 | I122: 0
B123: =B110-DATE(YEAR(B110)-1,12,31.25) -> 1 | C123: 2013 | D123: 104.0109589 | E123: 2012-01-01 | F123: 2012-12-31 | G123: 108 | H123: 2013-01-01 | I123: 0
B124: =B110-DATE(YEAR(B110)-1,12,31.25) -> 1 | C124: 2012 | D124: 102.0054795 | E124: 2011-01-01 | F124: 2011-12-31 | G124: 104 | H124: 2012-01-01 | I124: 0
B125: =B110-DATE(YEAR(B110)-1,12,31.25) -> 1 | C125: 2011 | D125: 100.0054795 | E125: 2010-01-01 | F125: 2010-12-31 | G125: 102 | H125: 2011-01-01 | I125: 0
B126: =B110-DATE(YEAR(B110)-1,12,31.25) -> 1 | C126: 2010 | D126: 99.00273973 | E126: 2009-01-01 | F126: 2009-12-31 | G126: 100 | H126: 2010-01-01 | I126: 0
B127: =B110-DATE(YEAR(B110)-1,12,31.25) -> 1 | C127: 2009 | D127: 99 | E127: 2008-01-01 | F127: 2008-12-31 | G127: 99 | H127: 2009-01-01 | I127: 0
B128: =B110-DATE(YEAR(B110)-1,12,31.25) -> 1 | C128: 2008 | D128: 99.99726027 | E128: 2007-01-01 | F128: 2007-12-31 | G128: 99 | H128: 2008-01-01 | I128: 0
B129: =B110-DATE(YEAR(B110)-1,12,31.25) -> 1 | C129: 2007 | D129: 98.00547945 | E129: 2006-01-01 | F129: 2006-12-31 | G129: 100 | H129: 2007-01-01 | I129: 0
B130: =B110-DATE(YEAR(B110)-1,12,31.25) -> 1 | C130: 2006 | D130: 0.2684931507 | E130: 2005-01-01 | F130: 2005-12-31 | G130: 98 | H130: 2006-01-01 | I130: 0
I131: =ROUND(SUM(I111:I130),0) -> 191 | J131: =IF(EingabeMaske!D$43=4,I131,0) -> 0 | K131: =IF(EingabeMaske!E$43=4,G116,0) -> 0
J132: =B7 -> 2020-01-01 | K132: 2020-01-01
A134: Marktsegment 5
A135: Farblegende: | B135: =EingabeMaske!$D$15 -> 2020-01-01 | E135: Interpolation! | G135: Index | H135: Stichtag | I135: Ergänzung
A136: Fester Wert | B136: =B$135-DATE(YEAR(B$135)-1,12,31.25) -> 1 | C136: 2025 | D136: =(G136-G139)*$B139/365+G139 -> 235.0273973 | E136: 2024-01-01 | F136: 2024-12-31 | G136: 245 | H136: 2025-01-01 | I136: =ROUND(IF(YEAR($B$7)+1=C136,D136,0),2) -> 0
B137: =B$135-DATE(YEAR(B$135)-1,12,31.25) -> 1 | C137: 2024 | D137: =(G137-G138)*$B139/365+G138 -> 245 | E137: 2023-01-01 | F137: 2023-12-31 | G137: 245 | H137: 2024-01-01 | I137: =ROUND(IF(YEAR($B$7)+1=C137,D137,0),2) -> 0
B138: 1 | C138: 2023 | D138: 235.0273973 | E138: 2022-01-01 | F138: 2022-12-31 | G138: 245 | H138: 2023-01-01 | I138: 0
B139: =B135-DATE(YEAR(B135)-1,12,31.25) -> 1 | C139: 2022 | D139: 222.0356164 | E139: 2021-01-01 | F139: 2021-12-31 | G139: 235 | H139: 2022-01-01 | I139: 0
B140: =B135-DATE(YEAR(B135)-1,12,31.25) -> 1 | C140: 2021 | D140: =(G140-G141)*$B$18/365+G141 -> 203.0520548 | E140: 2020-01-01 | F140: 2020-12-31 | G140: 222 | H140: 2021-01-01 | I140: 203.05
B141: =B135-DATE(YEAR(B135)-1,12,31.25) -> 1 | C141: 2020 | D141: =(G141-G142)*$B142/365+G142 -> 183.0547945 | E141: 2019-01-01 | F141: 2019-12-31 | G141: 203 | H141: 2020-01-01 | I141: 0
B142: =B135-DATE(YEAR(B135)-1,12,31.25) -> 1 | C142: 2019 | D142: 166.0465753 | E142: 2018-01-01 | F142: 2018-12-31 | G142: 183 | H142: 2019-01-01 | I142: 0
B143: =B135-DATE(YEAR(B135)-1,12,31.25) -> 1 | C143: 2018 | D143: =(G143-G144)*$B145/365+G144 -> 153.0356164 | E143: 2017-01-01 | F143: 2017-12-31 | G143: 166 | H143: 2018-01-01 | I143: 0
B144: =B135-DATE(YEAR(B135)-1,12,31.25) -> 1 | C144: 2017 | D144: =(G144-G145)*$B$18/365+G145 -> 142.030137 | E144: 2016-01-01 | F144: 2016-12-31 | G144: 153 | H144: 2017-01-01 | I144: 0
B145: =B135-DATE(YEAR(B135)-1,12,31.25) -> 1 | C145: 2016 | D145: =(G145-G146)*$B146/365+G146 -> 132.0273973 | E145: 2015-01-01 | F145: 2015-12-31 | G145: 142 | H145: 2016-01-01 | I145: 0
B146: =B135-DATE(YEAR(B135)-1,12,31.25) -> 1 | C146: 2015 | D146: =(G146-G147)*$B147/365+G147 -> 123.0246575 | E146: 2014-01-01 | F146: 2014-12-31 | G146: 132 | H146: 2015-01-01 | I146: 0
B147: =B135-DATE(YEAR(B135)-1,12,31.25) -> 1 | C147: 2014 | D147: =(G147-G148)*$B$18/365+G148 -> 116.0191781 | E147: 2013-01-01 | F147: 2013-12-31 | G147: 123 | H147: 2014-01-01 | I147: 0
B148: =B135-DATE(YEAR(B135)-1,12,31.25) -> 1 | C148: 2013 | D148: 109.0191781 | E148: 2012-01-01 | F148: 2012-12-31 | G148: 116 | H148: 2013-01-01 | I148: 0
B149: =B135-DATE(YEAR(B135)-1,12,31.25) -> 1 | C149: 2012 | D149: 103.0164384 | E149: 2011-01-01 | F149: 2011-12-31 | G149: 109 | H149: 2012-01-01 | I149: 0
B150: =B135-DATE(YEAR(B135)-1,12,31.25) -> 1 | C150: 2011 | D150: 100.0082192 | E150: 2010-01-01 | F150: 2010-12-31 | G150: 103 | H150: 2011-01-01 | I150: 0
B151: =B135-DATE(YEAR(B135)-1,12,31.25) -> 1 | C151: 2010 | D151: 99.00273973 | E151: 2009-01-01 | F151: 2009-12-31 | G151: 100 | H151: 2010-01-01 | I151: 0
B152: =B135-DATE(YEAR(B135)-1,12,31.25) -> 1 | C152: 2009 | D152: 99 | E152: 2008-01-01 | F152: 2008-12-31 | G152: 99 | H152: 2009-01-01 | I152: 0
B153: =B135-DATE(YEAR(B135)-1,12,31.25) -> 1 | C153: 2008 | D153: 99.99726027 | E153: 2007-01-01 | F153: 2007-12-31 | G153: 99 | H153: 2008-01-01 | I153: 0
B154: =B135-DATE(YEAR(B135)-1,12,31.25) -> 1 | C154: 2007 | D154: 98.00547945 | E154: 2006-01-01 | F154: 2006-12-31 | G154: 100 | H154: 2007-01-01 | I154: 0
B155: =B135-DATE(YEAR(B135)-1,12,31.25) -> 1 | C155: 2006 | D155: 0.2684931507 | E155: 2005-01-01 | F155: 2005-12-31 | G155: 98 | H155: 2006-01-01 | I155: 0
I156: =ROUND(SUM(I136:I155),0) -> 203 | J156: =IF(EingabeMaske!$D$43=5,I156,0) -> 0 | K156: =IF(EingabeMaske!$D$43=5,G141,0) -> 0
J157: =B7 -> 2020-01-01 | K157: 2020-01-01
A160: Marktsegment 6
A161: Farblegende: | B161: =EingabeMaske!$D$15 -> 2020-01-01 | E161: Interpolation! | G161: Index | H161: Stichtag | I161: Ergänzung
A162: Fester Wert | B162: =B$161-DATE(YEAR(B$161)-1,12,31.25) -> 1 | C162: 2025 | D162: =(G162-G165)*$B165/365+G165 -> 270.0657534 | E162: 2024-01-01 | F162: 2024-12-31 | G162: 294 | H162: 2025-01-01 | I162: =ROUND(IF(YEAR($B$7)+1=C162,D162,0),2) -> 0
B163: =B$161-DATE(YEAR(B$161)-1,12,31.25) -> 1 | C163: 2024 | D163: =(G163-G164)*$B165/365+G164 -> 294 | E163: 2023-01-01 | F163: 2023-12-31 | G163: 294 | H163: 2024-01-01 | I163: =ROUND(IF(YEAR($B$7)+1=C163,D163,0),2) -> 0
B164: 1 | C164: 2023 | D164: 270.0657534 | E164: 2022-01-01 | F164: 2022-12-31 | G164: 294 | H164: 2023-01-01 | I164: 0
B165: =B161-DATE(YEAR(B161)-1,12,31.25) -> 1 | C165: 2022 | D165: 245.0684932 | E165: 2021-01-01 | F165: 2021-12-31 | G165: 270 | H165: 2022-01-01 | I165: 0
B166: =B161-DATE(YEAR(B161)-1,12,31.25) -> 1 | C166: 2021 | D166: =(G166-G167)*$B$18/365+G167 -> 218.0739726 | E166: 2020-01-01 | F166: 2020-12-31 | G166: 245 | H166: 2021-01-01 | I166: 218.07
B167: =B161-DATE(YEAR(B161)-1,12,31.25) -> 1 | C167: 2020 | D167: =(G167-G168)*$B168/365+G168 -> 200.0493151 | E167: 2019-01-01 | F167: 2019-12-31 | G167: 218 | H167: 2020-01-01 | I167: 0
B168: =B161-DATE(YEAR(B161)-1,12,31.25) -> 1 | C168: 2019 | D168: 183.0465753 | E168: 2018-01-01 | F168: 2018-12-31 | G168: 200 | H168: 2019-01-01 | I168: 0
B169: =B161-DATE(YEAR(B161)-1,12,31.25) -> 1 | C169: 2018 | D169: =(G169-G170)*$B171/365+G170 -> 168.0410959 | E169: 2017-01-01 | F169: 2017-12-31 | G169: 183 | H169: 2018-01-01 | I169: 0
B170: =B161-DATE(YEAR(B161)-1,12,31.25) -> 1 | C170: 2017 | D170: =(G170-G171)*$B$18/365+G171 -> 152.0438356 | E170: 2016-01-01 | F170: 2016-12-31 | G170: 168 | H170: 2017-01-01 | I170: 0
B171: =B161-DATE(YEAR(B161)-1,12,31.25) -> 1 | C171: 2016 | D171: =(G171-G172)*$B172/365+G172 -> 138.0383562 | E171: 2015-01-01 | F171: 2015-12-31 | G171: 152 | H171: 2016-01-01 | I171: 0
B172: =B161-DATE(YEAR(B161)-1,12,31.25) -> 1 | C172: 2015 | D172: =(G172-G173)*$B173/365+G173 -> 127.030137 | E172: 2014-01-01 | F172: 2014-12-31 | G172: 138 | H172: 2015-01-01 | I172: 0
B173: =B161-DATE(YEAR(B161)-1,12,31.25) -> 1 | C173: 2014 | D173: =(G173-G174)*$B$18/365+G174 -> 118.0246575 | E173: 2013-01-01 | F173: 2013-12-31 | G173: 127 | H173: 2014-01-01 | I173: 0
B174: =B161-DATE(YEAR(B161)-1,12,31.25) -> 1 | C174: 2013 | D174: 108.0273973 | E174: 2012-01-01 | F174: 2012-12-31 | G174: 118 | H174: 2013-01-01 | I174: 0
B175: =B161-DATE(YEAR(B161)-1,12,31.25) -> 1 | C175: 2012 | D175: 103.0136986 | E175: 2011-01-01 | F175: 2011-12-31 | G175: 108 | H175: 2012-01-01 | I175: 0
B176: =B161-DATE(YEAR(B161)-1,12,31.25) -> 1 | C176: 2011 | D176: 100.0082192 | E176: 2010-01-01 | F176: 2010-12-31 | G176: 103 | H176: 2011-01-01 | I176: 0
B177: =B161-DATE(YEAR(B161)-1,12,31.25) -> 1 | C177: 2010 | D177: 99.00273973 | E177: 2009-01-01 | F177: 2009-12-31 | G177: 100 | H177: 2010-01-01 | I177: 0
B178: =B161-DATE(YEAR(B161)-1,12,31.25) -> 1 | C178: 2009 | D178: 99 | E178: 2008-01-01 | F178: 2008-12-31 | G178: 99 | H178: 2009-01-01 | I178: 0
B179: =B161-DATE(YEAR(B161)-1,12,31.25) -> 1 | C179: 2008 | D179: 99.99726027 | E179: 2007-01-01 | F179: 2007-12-31 | G179: 99 | H179: 2008-01-01 | I179: 0
B180: =B161-DATE(YEAR(B161)-1,12,31.25) -> 1 | C180: 2007 | D180: 98.00547945 | E180: 2006-01-01 | F180: 2006-12-31 | G180: 100 | H180: 2007-01-01 | I180: 0
B181: =B161-DATE(YEAR(B161)-1,12,31.25) -> 1 | C181: 2006 | D181: 0.2684931507 | E181: 2005-01-01 | F181: 2005-12-31 | G181: 98 | H181: 2006-01-01 | I181: 0
I182: =ROUND(SUM(I162:I181),0) -> 218 | J182: =IF(EingabeMaske!$D$43=6,I182,0) -> 0 | K182: =IF(EingabeMaske!$D$43=6,G167,0) -> 0
J183: =B7 -> 2020-01-01 | K183: 2020-01-01
J184: =J56+J81+J106+J131+J156+J182 -> 0 | K184: =K56+K81+K106+K131+K156+K182 -> 0

Sheet GebStandard
B1: Gebäudestandards und Wägungsanteile für Mehrfamilienhäuser und Wohnhäuser mit Mischnutzung; Stufen 3 - 5 gemäß Anlage 2 der SW-RL, Stufen 1 + 2 Ergänzungen durch Sprengnetter
G2: =EingabeMaske!A57 -> Quelle: Oberer Gutachterausschuss für Grundstückswerte Rheinland-Pfalz gem. Landesgrundstückmarktbericht 2021
K3: =EingabeMaske!E1 -> WE-Rechner 1 - 2023
B4: Wägungsan- teile (∑100 %) | C4: Stufe 1 | E4: Stufe 2 | G4: Stufe 3 | I4: Stufe 4 | K4: Stufe 5
B5: Außenwände | C5: Holzfachwerk, Ziegelmauerwerk; Fugenglattstrich, Putz, Verkleidung mit Faserzementplatten, Bitumenschindeln oder einfachen Kunststoffplatten; kein oder deutlich nicht zeitgemäßer Wärmeschutz (vor ca. 1980) | E5: ein-/zweischaliges Mauerwerk, z. B. Gitterziegel oder Hohlblocksteine; verputzt und gestrichen oder Holzverkleidung; nicht zeitgemäßer Wärmeschutz (vor ca. 1995) | G5: ein-/zweischaliges Mauerwerk, z. B. aus Leichtziegeln, Kalksandsteinen, Gasbetonsteinen; Edelputz; Wärmedämmverbundsystem oder Wärmedämmputz (nach ca. 1995) | I5: Verblendmauerwerk, zweischalig, hinterlüftet, Vorhangfassade (z. B. Naturschiefer); Wärmedämmung (nach ca. 2005) | K5: aufwendig gestaltete Fassaden mit konstruktiver Gliederung (Säulenstell-ungen, Erker etc.), Sichtbeton-Fertig-teile, Natursteinfassade, Elemente aus Kupfer-/Eloxalblech, mehrgeschoss. Glasfassaden; hochwertigste Dämmung | N5: =IF(N6=TRUE,1,0) -> 0 | O5: =IF(O6=TRUE,1,0) -> 0 | P5: 1 | Q5: 0 | R5: 0
B6: 23% | C6: =ROUND($B6/$S6*N5,4) -> 0 | E6: =ROUND($B6/$S6*O5,4) -> 0 | G6: =ROUND($B6/$S6*P5,4) -> 0.23 | I6: =ROUND($B6/$S6*Q5,4) -> 0 | K6: =ROUND($B6/$S6*R5,4) -> 0 | N6: FALSE | O6: FALSE | P6: TRUE | Q6: FALSE | R6: FALSE | S6: =COUNTIF(N6:R6,TRUE) -> 1
B7: Dach | C7: Dachpappe, Faserzementplatten/ Wellplatten; keine bis geringe Dachdämmung | E7: einfache Betondachsteine oder Tondachziegel, Bitumenschindeln; nicht zeitgemäße Dachdämmung (vor ca. 1995) | G7: Faserzement-Schindeln, beschichtete Betondachsteine und Tondachziegel, Folienabdichtung; Dachdämmung (nach ca. 1995) | I7: glasierte Tondachziegel, Flachdach- ausbildung tlw. als Dachterrassen; Konstruktion in Brettschichtholz, schweres Massivflachdach; besondere Dachformen, z. B. Mansarden-, Walmdach; Aufsparrendämmung, überdurchschn. Dämmung (nach ca. 2005) | K7: hochwertige Eindeckung z. B. aus Schiefer oder Kupfer, Dachbegrünung, befahrbares Flachdach; stark überdurchschnittliche Dämmung | N7: =IF(N8=TRUE,1,0) -> 0 | O7: =IF(O8=TRUE,1,0) -> 0 | P7: =IF(P8=TRUE,1,0) -> 1 | Q7: =IF(Q8=TRUE,1,0) -> 0 | R7: =IF(R8=TRUE,1,0) -> 0
B8: 15% | C8: =ROUND($B8/$S8*N7,4) -> 0 | E8: =ROUND($B8/$S8*O7,4) -> 0 | G8: =ROUND($B8/$S8*P7,4) -> 0.15 | I8: =ROUND($B8/$S8*Q7,4) -> 0 | K8: =ROUND($B8/$S8*R7,4) -> 0 | N8: FALSE | O8: FALSE | P8: TRUE | Q8: FALSE | R8: FALSE | S8: =COUNTIF(N8:R8,TRUE) -> 1
B9: Fenster und Außentüren | C9: Einfachverglasung; einfache Holztüren | E9: Zweifachverglasung (vor ca. 1995); Haustür mit nicht zeitgemäßem Wärmeschutz (vor ca. 1995) | G9: Zweifachverglasung (nach ca. 1995), Rollläden (manuell); Haustür mit zeitgemäßem Wärmeschutz (nach ca. 1995) | I9: Dreifachverglasung, Sonnenschutz- glas, aufwendigere Rahmen, Rollläden (elektr.); höherwertige Türanlagen z. B. mit Seitenteil, besonderer Einbruchschutz | K9: große feststehende Fensterflächen, Spezialverglasung (Schall- und Sonnenschutz); Außentüren in hochwertigen Materialien | N9: =IF(N10=TRUE,1,0) -> 0 | O9: =IF(O10=TRUE,1,0) -> 0 | P9: =IF(P10=TRUE,1,0) -> 1 | Q9: =IF(Q10=TRUE,1,0) -> 0 | R9: =IF(R10=TRUE,1,0) -> 0
B10: 11% | C10: =ROUND($B10/$S10*N9,4) -> 0 | E10: =ROUND($B10/$S10*O9,4) -> 0 | G10: =ROUND($B10/$S10*P9,4) -> 0.11 | I10: =ROUND($B10/$S10*Q9,4) -> 0 | K10: =ROUND($B10/$S10*R9,4) -> 0 | N10: FALSE | O10: FALSE | P10: TRUE | Q10: FALSE | R10: FALSE | S10: =COUNTIF(N10:R10,TRUE) -> 1
B11: Innenwände und -türen | C11: Fachwerkwände, einfache Putze/Lehmputze, einfache Kalkanstriche; Füllungstüren, gestrichen, mit einfachen Beschlägen ohne Dichtungen | E11: massive tragende Innenwände, nicht tragende Wände in Leichtbauweise (z. B. Holzständerwände mit Gipskarton), Gipsdielen; leichte Türen, Stahlzargen | G11: nicht tragende Innenwände in massiver Ausführung bzw. mit Dämmmaterial gefüllte Ständerkonstruktionen; schwere Türen | I11: Sichtmauerwerk; Massivholztüren, Schiebetürelemente, Glastüren, strukturierte Türblätter | K11: gestaltete Wandabläufe (z. B. Pfeilervorlagen, abgesetzte oder geschwungene Wandpartien); Brandschutzverkleidung; raumhohe aufwendige Türelemente | N11: =IF(N12=TRUE,1,0) -> 0 | O11: =IF(O12=TRUE,1,0) -> 0 | P11: =IF(P12=TRUE,1,0) -> 1 | Q11: =IF(Q12=TRUE,1,0) -> 0 | R11: =IF(R12=TRUE,1,0) -> 0
B12: 11% | C12: =ROUND($B12/$S12*N11,4) -> 0 | E12: =ROUND($B12/$S12*O11,4) -> 0 | G12: =ROUND($B12/$S12*P11,4) -> 0.11 | I12: =ROUND($B12/$S12*Q11,4) -> 0 | K12: =ROUND($B12/$S12*R11,4) -> 0 | N12: FALSE | O12: FALSE | P12: TRUE | Q12: FALSE | R12: FALSE | S12: =COUNTIF(N12:R12,TRUE) -> 1
B13: Deckenkon- struktion | C13: Holzbalkendecken ohne Füllung, Spalierputz | E13: Holzbalkendecken mit Füllung, Kappendecken | G13: Betondecken mit Tritt- und Luftschallschutz (z. B. schwimmender Estrich); einfacher Putz | I13: zusätzlich Deckenverkleidung | K13: Deckenvertäfelungen (Edelholz, Metall) | N13: =IF(N14=TRUE,1,0) -> 0 | O13: =IF(O14=TRUE,1,0) -> 0 | P13: =IF(P14=TRUE,1,0) -> 1 | Q13: =IF(Q14=TRUE,1,0) -> 0 | R13: =IF(R14=TRUE,1,0) -> 0
B14: 11% | C14: =ROUND($B14/$S14*N13,4) -> 0 | E14: =ROUND($B14/$S14*O13,4) -> 0 | G14: =ROUND($B14/$S14*P13,4) -> 0.11 | I14: =ROUND($B14/$S14*Q13,4) -> 0 | K14: =ROUND($B14/$S14*R13,4) -> 0 | N14: FALSE | O14: FALSE | P14: TRUE | Q14: FALSE | R14: FALSE | S14: =COUNTIF(N14:R14,TRUE) -> 1
B15: Fußböden | C15: ohne Belag | E15: Linoleum-, Teppich-, Laminat- und PVC-Böden einfacher Art und Ausführung | G15: Linoleum-, Teppich-, Laminat- und PVC-Böden besserer Art und Ausführung, Fliesen, Kunststeinplatten | I15: Natursteinplatten, Fertigparkett, hochwertige Fliesen, Terrazzobelag, hochwertige Massivholzböden auf aufgedämmter Unterkonstruktion | K15: hochwertiges Parkett, hochwertige Natursteinplatten, hochwertige Edelholzböden auf gedämmter Unterkonstruktion | N15: =IF(N16=TRUE,1,0) -> 0 | O15: =IF(O16=TRUE,1,0) -> 0 | P15: =IF(P16=TRUE,1,0) -> 1 | Q15: =IF(Q16=TRUE,1,0) -> 0 | R15: =IF(R16=TRUE,1,0) -> 0
B16: 5% | C16: =ROUND($B16/$S16*N15,4) -> 0 | E16: =ROUND($B16/$S16*O15,4) -> 0 | G16: =ROUND($B16/$S16*P15,4) -> 0.05 | I16: =ROUND($B16/$S16*Q15,4) -> 0 | K16: =ROUND($B16/$S16*R15,4) -> 0 | N16: FALSE | O16: FALSE | P16: TRUE | Q16: FALSE | R16: FALSE | S16: =COUNTIF(N16:R16,TRUE) -> 1
B17: Sanitärein- richtungen | C17: einfaches Bad mit Stand-WC; Installation auf Putz, Ölfarbenanstrich, einfache PVC-Bodenbeläge | E17: 1 Bad mit WC, Dusche oder Badewanne; einfache Wand- und Bodenfliesen, teilweise gefliest | G17: 1 Bad mit WC je Wohneinheit; Dusche und Badewanne; Wand- und Bodenfliesen, raumhoch gefliest | I17: 1 – 2 Bäder je Wohneinheit mit tlw. zwei Waschbecken, tlw. Bidet/ Urinal, Gäste-WC, bodengleiche Dusche; Wand- und Bodenfliesen jeweils in gehobener Qualität | K17: 2 und mehr Bäder je Wohneinheit; hochwertige Wand- und Bodenplatten (oberflächenstrukturiert, Einzel- und Flächendekors) | N17: =IF(N18=TRUE,1,0) -> 0 | O17: =IF(O18=TRUE,1,0) -> 0 | P17: =IF(P18=TRUE,1,0) -> 1 | Q17: =IF(Q18=TRUE,1,0) -> 0 | R17: =IF(R18=TRUE,1,0) -> 0
B18: 9% | C18: =ROUND($B18/$S18*N17,4) -> 0 | E18: =ROUND($B18/$S18*O17,4) -> 0 | G18: =ROUND($B18/$S18*P17,4) -> 0.09 | I18: =ROUND($B18/$S18*Q17,4) -> 0 | K18: =ROUND($B18/$S18*R17,4) -> 0 | N18: FALSE | O18: FALSE | P18: TRUE | Q18: FALSE | R18: FALSE | S18: =COUNTIF(N18:R18,TRUE) -> 1
B19: Heizung | C19: Einzelöfen, Schwerkraftheizung | E19: Fern- oder Zentralheizung, einfache Warmluftheizung, einzelne Gasaußen-wandthermen, Nachtstromspeicher-, Fußbodenheizung (vor ca. 1995) | G19: elektronisch gesteuerte Fern- oder Zentralheizung, Niedertemperatur- oder Brennwertkessel | I19: Fußbodenheizung, Solarkollektoren für Warmwassererzeugung | K19: Solarkollektoren für Warmwassererzeugung und Heizung, Blockheizkraftwerk, Wärmepumpe, Hybrid-Systeme | N19: =IF(N20=TRUE,1,0) -> 0 | O19: =IF(O20=TRUE,1,0) -> 0 | P19: =IF(P20=TRUE,1,0) -> 1 | Q19: =IF(Q20=TRUE,1,0) -> 0 | R19: =IF(R20=TRUE,1,0) -> 0
B20: 9% | C20: =ROUND($B20/$S20*N19,4) -> 0 | E20: =ROUND($B20/$S20*O19,4) -> 0 | G20: =ROUND($B20/$S20*P19,4) -> 0.09 | I20: =ROUND($B20/$S20*Q19,4) -> 0 | K20: =ROUND($B20/$S20*R19,4) -> 0 | N20: FALSE | O20: FALSE | P20: TRUE | Q20: FALSE | R20: FALSE | S20: =COUNTIF(N20:R20,TRUE) -> 1
B21: Sonstige technische Ausstattung | C21: sehr wenige Steckdosen, Schalter und Sicherungen, kein Fehlerstromschutzschalter (FI-Schalter), Leitungen teilweise auf Putz | E21: wenige Steckdosen, Schalter und Sicherungen | G21: zeitgemäße Anzahl an Steckdosen und Lichtauslässen; Zählerschrank (ab ca. 1985) mit Unterverteilung und Kippsicherungen | I21: zahlreiche Steckdosen und Lichtaus- lässe, hochwertige Abdeckungen, de-zentrale Lüftung mit Wärme- tauscher, mehrere LAN- und Fernseh-anschlüsse, Personenaufzugsanlagen | K21: Video- und zentrale Alarmanlage, zentrale Lüftung mit Wärmetauscher, Klimaanlage, Bussystem; aufwendige Personenaufzugsanlagen | N21: =IF(N22=TRUE,1,0) -> 0 | O21: =IF(O22=TRUE,1,0) -> 0 | P21: =IF(P22=TRUE,1,0) -> 1 | Q21: =IF(Q22=TRUE,1,0) -> 0 | R21: =IF(R22=TRUE,1,0) -> 0
B22: 6% | C22: =ROUND($B22/$S22*N21,4) -> 0 | E22: =ROUND($B22/$S22*O21,4) -> 0 | G22: =ROUND($B22/$S22*P21,4) -> 0.06 | I22: =ROUND($B22/$S22*Q21,4) -> 0 | K22: =ROUND($B22/$S22*R21,4) -> 0 | N22: FALSE | O22: FALSE | P22: TRUE | Q22: FALSE | R22: FALSE | S22: =COUNTIF(N22:R22,TRUE) -> 1
B23: Summe | C23: =SUM(C6:C22) -> 0 | E23: =SUM(E6:E22) -> 0 | G23: =SUM(G6:G22) -> 1 | I23: =SUM(I6:I22) -> 0 | K23: =SUM(K6:K22) -> 0
B24: GND [Jahre] | C24: 60 | E24: 65 | G24: 70 | I24: 75 | K24: 80
B25: Gesamtnutzungsdauer (Jahre, gewogen): | E25: =ROUND((C$24*C$23+E$24*E$23+G$24*G$23+I$24*I$23+K$24*K$23),1) -> 70 | G25: Standardstufe (gewogen): | I25: =(1*C23+2*E23+3*G23+4*I23+5*K23) -> 3

Sheet RND
A1: Modell zur Ableitung der wirtschaftlichen Restnutzungsdauer für Wohngebäude unter Berücksichtigung von Modernisierungen (SW-RL Anl. 4)
A2: in Anlehung an Ein- und Zweifamilienhäuser
A3: Objekt | F3: Satz-Nr. | J3: Kommentar
A4: Modernisierungselemente | F4: max. Punkte | I4: tats. Punkte
A5: Dacherneuerung inklusive Verbesserung der Wärmedämmung | F5: 4 | K5: 60 | L5: 1
A6: Modernisierung der Fenster und Außentüren | F6: =IF(I6>3,"TILT max. 2 ",2) -> 2 | K6: 65 | L6: 2
A7: Modernisierung der Leitungssysteme (Strom, Gas, Wasser, Abwasser) | F7: =IF(I7>3,"TILT max. 2 ",2) -> 2 | K7: 70 | L7: 3
A8: Modernisierung der Heizungsanlage | F8: =IF(I8>3,"TILT max. 2 ",2) -> 2 | K8: 75 | L8: 4
A9: Wärmedämmung der Außenwände | F9: 4 | K9: 80
A10: Modernisierung von Bädern | F10: =IF(I10>3,"TILT max. 2 ",2) -> 2 | K10: 90
A11: Modernisierung des Innenausbaus, z.B. Decken, Fußböden, Treppen | F11: 2 | L11: =IF(AND(I3<>"",I13=0),"Einblenden","Ausblenden") -> Ausblenden
A12: Wesentliche Verbesserung der Grundrissgestaltung | F12: 2
A13: Summe | F13: =SUM(F5:F12) -> 20 | I13: =SUM(I5:I12) -> 0 | L13: =IF(I13>0,#REF!=0) -> FALSE
A15: Liegen die Maßnahmen weiter zurück, ist zu prüfen, ob nicht ein geringerer als der maximale Tabellenwert anzusetzen ist. Sofern nicht modernisierte Bauelemente noch zeitgemäßen Ansprüchen genügen, sind entsprechende Punkte zu vergeben.
A19: Modernisierungsgrad | F19: Punkte | L19: Modernisierungsgrad | M19: a | N19: b | O19: c | P19: ab einem relativen Alter [%] von *) | R19: Formel anwendbar
A20: nicht modernisiert | F20: 0 | G20: - | H20: 1 | I20: =IF(AND(I13<>"",F20<=I13,H20>=I13,I13<1),I13,IF((F20<=I13)*OR(H20>=I13),I13,0)) -> 0 | L20: ≤ 1 Punkt | M20: 0.0125 | N20: 2.625 | O20: 152.5 | P20: 60 | Q20: 24 | R20: =IF(AND(I13<2,L29>(P20-1)),1,0) -> 1
A21: kleine Modernisierung im Rahmen der Instandhaltung | F21: 2 | G21: - | H21: 5 | I21: =IF(AND(I13<>"",F21<=I13,H21>=I13,I13<1),I13,IF(AND(J24<>"",F21<=J24,H21>=J24),J24,IF((F21<=I13)*OR(H21>=I13),I13,0))) -> 0 | L21: 4 Punkte | M21: 0.0073 | N21: 1.577 | O21: 111.33 | P21: 40 | Q21: 0 | R21: =IF(AND(I21<>0,L29>(P21-1)),1,0) -> 0
A22: mittlerer Modernisierungsgrad | F22: 6 | G22: - | H22: 10 | I22: =IF(AND(I13<>"",F22<=I13,H22>=I13,I13<1),I13,IF((F22<=I13)*OR(H22>=I13),I13,0)) -> 0 | L22: 8 Punkte | M22: 0.005 | N22: 1.1 | O22: 100 | P22: 20 | Q22: 0 | R22: =IF(AND(I22<>0,L29>(P22-1)),1,0) -> 0
A23: überwiegend modernisiert | F23: 11 | G23: - | H23: 17 | I23: =IF(AND(I13<>"",F23<=I13,H23>=I13<1),,IF((F23<=I13)*OR(H23>=I13),I13,0)) -> 0 | L23: 13 Punkte | M23: 0.0033 | N23: 0.735 | O23: 95.28 | P23: 15 | Q23: 0 | R23: =IF(AND(I23<>0,L29>(P23-1)),1,0) -> 0
A24: umfassend modernisiert | F24: 18 | G24: - | H24: 20 | I24: =IF(AND(I13<>"",F24<=I13,H24>=I13,I13<1),I13,IF((F24<=I13)*OR(H24>=I13),I13,0)) -> 0 | L24: ≥ 18 Punkte | M24: 0.002 | N24: 0.44 | O24: 94.2 | P24: 10 | Q24: 0 | R24: =IF(AND(I24<>0,L29>(P24-1)),1,0) -> 0
P25: Summe | Q25: =SUM(Q20:Q24) -> 24 | R25: =SUM(R20:R24) -> 1
A26: Ermittlung der Restnutzungsdauer und des rechnerischen Baujahres | L26: Maximales tatsächliches Gebäudealter unter Berücksichtigung der gewählten Gesamtnutzungsdauer:
A27: Vorgaben | B27: Stichtag | E27: nur das Jahr ! | F27: =YEAR(EingabeMaske!D15) -> 2020 | L27: 36
B28: Baujahr | F28: =EingabeMaske!D26 -> 1990 | L28: Berechnung des relativen Gebäudealters (Alter/GNDx100):
B29: tatsächliches Alter | F29: =F27-F28 -> 30 | I29: Jahre | L29: 60 | M29: %
B30: Bestimmung der Restnutzungsdauer bei ausstattungsabhängiger Gesamtnutzungsdauer nach SW-RL Anlage 3
B31: Gesamtnutzungsdauer (60 - 80 Jahre) | F31: =EingabeMaske!D27 -> 70 | I31: Jahre
B32: wirtschaftliche gerechnete Restnutzungsdauer nach SW-RL | F32: =ROUND('modifizierte RND'!D10,0) -> 40 | I32: Jahre
B33: lineare Alterswertminderung | F33: =ROUND((F31-F32)/F31*100,0) -> 43 | I33: %

Sheet Vergleichsfaktoren (hidden)
A1: Nummer der Gemarkung | B1: Gemeinde / Gemarkung | C1: Boden-wert - Niveau €/m² | D1: Vergleichs-faktor €/m² Wf | E1: Sachwert-faktor ø RLP | F1: Regionaler Zu-/Abschlag
A2: 119 | B2: Altenkirchen (Ww) / Altenkirchen | C2: 85 | D2: 1160 | E2: 1.02 | F2: -0.03
A3: 4031 | B3: Altrip / Altrip | C3: 340 | D3: 2335 | E3: 1.45 | F3: 0.02
A4: 3831 | B4: Alzey / Alzey | C4: 205 | D4: 1685 | E4: 1.28 | F4: 0
A5: 1314 | B5: Andernach / Andernach | C5: 180 | D5: 1650 | E5: 1.24 | F5: 0
A6: 5420 | B6: Annweiler am Trifels / Annweiler | C6: 160 | D6: 1625 | E6: 1.19 | F6: -0.03
A7: 5372 | B7: Bad Bergzabern / Bad Bergzabern | C7: 235 | D7: 1750 | E7: 1.33 | F7: 0
A8: 1151 | B8: Bad Breisig / Niederbreisig | C8: 130 | D8: 1460 | E8: 1.14 | F8: 0.03
A9: 1152 | B9: Bad Breisig / Oberbreisig | C9: 125 | D9: 1440 | E9: 1.13 | F9: 0.03
A10: 4351 | B10: Bad Dürkheim / Bad Dürkheim | C10: 285 | D10: 2190 | E10: 1.39 | F10: 0.07
A11: 4354 | B11: Bad Dürkheim / Grethen | C11: 200 | D11: 1825 | E11: 1.27 | F11: 0.07
A12: 4355 | B12: Bad Dürkheim / Hardenburg | C12: 160 | D12: 1595 | E12: 1.21 | F12: 0.07
A13: 950 | B13: Bad Ems / Ems | C13: 85 | D13: 1175 | E13: 1.02 | F13: -0.02
A14: 326 | B14: Bad Hönningen / Hönningen | C14: 120 | D14: 1380 | E14: 1.12 | F14: 0
A15: 1942 | B15: Bad Kreuznach / Bad Kreuznach Nord | C15: 170 | D15: 1715 | E15: 1.21 | F15: 0
A16: 1976 | B16: Bad Kreuznach / Bad Münster a.Stein | C16: 210 | D16: 1775 | E16: 1.29 | F16: 0
A17: 1977 | B17: Bad Kreuznach / Ebernburg | C17: 180 | D17: 1650 | E17: 1.24 | F17: 0
A18: 465 | B18: Bad Marienberg (Ww) / Bad Marienberg | C18: 105 | D18: 1305 | E18: 1.08 | F18: 0
A19: 1101 | B19: Bad Neuenahr-Ahrweiler / Ahrweiler | C19: 310 | D19: 2220 | E19: 1.41 | F19: 0.03
A20: 1102 | B20: Bad Neuenahr-Ahrweiler / Bad Neuenahr | C20: 320 | D20: 2255 | E20: 1.42 | F20: 0.03
A21: 1104 | B21: Bad Neuenahr-Ahrweiler / Lohrsdorf | C21: 140 | D21: 1675 | E21: 1.15 | F21: 0.03
A22: 2043 | B22: Bad Sobernheim / Sobernheim | C22: 75 | D22: 1295 | E22: 0.97 | F22: -0.02
A23: 2254 | B23: Baumholder / Baumholder | C23: 40 | D23: 670 | E23: 0.85 | F23: -0.1
A24: 3964 | B24: Beindersheim b.Frankenthal / Beindersheim | C24: 270 | D24: 1965 | E24: 1.37 | F24: 0.01
A25: 5619 | B25: Bellheim / Bellheim | C25: 210 | D25: 2015 | E25: 1.26 | F25: 0.01
A26: 1341 | B26: Bendorf / Bendorf | C26: 175 | D26: 1625 | E26: 1.23 | F26: 0
A27: 1342 | B27: Bendorf / Sayn | C27: 165 | D27: 1580 | E27: 1.21 | F27: 0
A28: 2432 | B28: Bernkastel-Kues / Kues | C28: 155 | D28: 1870 | E28: 1.16 | F28: 0.01
A29: 39 | B29: Betzdorf / Betzdorf | C29: 85 | D29: 1160 | E29: 1.02 | F29: -0.03
A30: 3522 | B30: Bingen am Rhein / Bingen | C30: 270 | D30: 2180 | E30: 1.36 | F30: 0.02
A31: 3521 | B31: Bingen am Rhein / Bingerbrück | C31: 150 | D31: 1535 | E31: 1.18 | F31: 0.02
A32: 3525 | B32: Bingen am Rhein / Büdesheim | C32: 240 | D32: 1925 | E32: 1.33 | F32: 0.02
A33: 2323 | B33: Birkenfeld / Birkenfeld | C33: 43 | D33: 865 | E33: 0.85 | F33: -0.07
A34: 3977 | B34: Birkenheide / Birkenheide | C34: 285 | D34: 2100 | E34: 1.39 | F34: 0.01
A35: 2957 | B35: Bitburg / Bitburg | C35: 105 | D35: 1555 | E35: 1.06 | F35: 0.04
A36: 3951 | B36: Bobenheim-Roxheim / Bobenheim | C36: 265 | D36: 2010 | E36: 1.36 | F36: 0.01
A37: 3952 | B37: Bobenheim-Roxheim / Roxheim | C37: 285 | D37: 1835 | E37: 1.41 | F37: 0.01
A38: 4415 | B38: Bockenheim a.d. Weinstr. / Kleinbockenheim | C38: 190 | D38: 1695 | E38: 1.25 | F38: 0.01
A39: 3623 | B39: Bodenheim / Bodenheim | C39: 395 | D39: 2565 | E39: 1.5 | F39: 0.03
A40: 4007 | B40: Böhl-Iggelheim / Iggelheim | C40: 275 | D40: 2060 | E40: 1.37 | F40: 0.02
A41: 4573 | B41: Bolanden / Bolanden | C41: 95 | D41: 1165 | E41: 1.06 | F41: 0.01
A42: 3052 | B42: Bollendorf / Bollendorf | C42: 78 | D42: 1625 | E42: 0.96 | F42: 0.07
A43: 1820 | B43: Boppard / Boppard | C43: 145 | D43: 1495 | E43: 1.17 | F43: -0.04
A44: 3596 | B44: Budenheim / Budenheim | C44: 440 | D44: 2830 | E44: 1.53 | F44: 0.04
A45: 4444 | B45: Carlsberg / Carlsberg | C45: 120 | D45: 1335 | E45: 1.12 | F45: 0.01
A46: 1531 | B46: Cochem / Cochem | C46: 100 | D46: 1275 | E46: 1.06 | F46: -0.04
A47: 1533 | B47: Cochem / Cond | C47: 110 | D47: 1555 | E47: 1.06 | F47: -0.04
A48: 5321 | B48: Dahn / Dahn | C48: 100 | D48: 1150 | E48: 1.08 | F48: -0.03
A49: 3994 | B49: Dannstadt-Schauernheim / Dannstadt | C49: 275 | D49: 2045 | E49: 1.37 | F49: 0.01
A50: 3350 | B50: Daun / Daun | C50: 80 | D50: 1145 | E50: 1 | F50: -0.02
A51: 3645 | B51: Dexheim / Dexheim | C51: 210 | D51: 1775 | E51: 1.29 | F51: 0
A52: 775 | B52: Diez / Diez | C52: 100 | D52: 1245 | E52: 1.06 | F52: -0.02
A53: 4408 | B53: Dirmstein / Dirmstein | C53: 230 | D53: 1875 | E53: 1.32 | F53: 0.01
A54: 4056 | B54: Dudenhofen / Dudenhofen | C54: 315 | D54: 2260 | E54: 1.42 | F54: 0.04
A55: 5466 | B55: Edenkoben / Edenkoben | C55: 245 | D55: 1980 | E55: 1.34 | F55: 0.04
A56: 243 | B56: Ehlscheid / Ehlscheid | C56: 90 | D56: 1135 | E56: 1.05 | F56: 0
A57: 4502 | B57: Eisenberg (Pfalz) / Eisenberg | C57: 130 | D57: 1295 | E57: 1.15 | F57: -0.02
A58: 4503 | B58: Eisenberg (Pfalz) / Stauf | C58: 85 | D58: 1175 | E58: 1.02 | F58: -0.02
A59: 1803 | B59: Emmelshausen / Emmelshausen | C59: 95 | D59: 1200 | E59: 1.05 | F59: -0.04
A60: 3603 | B60: Essenheim / Essenheim | C60: 420 | D60: 2645 | E60: 1.52 | F60: 0.02
A61: 5330 | B61: Fischbach bei Dahn / Fischbach | C61: 70 | D61: 865 | E61: 1 | F61: -0.03
A62: 2610 | B62: Föhren / Föhren | C62: 110 | D62: 1615 | E62: 1.08 | F62: 0.1
A63: 4204 | B63: Frankenthal (Pfalz) / Flomersheim | C63: 270 | D63: 2020 | E63: 1.37 | F63: 0
A64: 4202 | B64: Frankenthal (Pfalz) / Frankenthal | C64: 310 | D64: 1980 | E64: 1.43 | F64: 0
A65: 4201 | B65: Frankenthal (Pfalz) / Mörsch | C65: 260 | D65: 1985 | E65: 1.36 | F65: 0
A66: 4369 | B66: Freinsheim / Freinsheim | C66: 280 | D66: 2540 | E66: 1.35 | F66: 0.06
A67: 3978 | B67: Fußgönheim / Fußgönheim | C67: 265 | D67: 2080 | E67: 1.36 | F67: 0.01
A68: 3568 | B68: Gau-Algesheim / Gau-Algesheim | C68: 285 | D68: 2100 | E68: 1.39 | F68: 0.01
A69: 3810 | B69: Gau-Odernheim / Gau-Odernheim | C69: 150 | D69: 1570 | E69: 1.18 | F69: 0
A70: 3542 | B70: Gensingen / Gensingen | C70: 165 | D70: 1580 | E70: 1.21 | F70: 0
A71: 5631 | B71: Germersheim / Germersheim | C71: 245 | D71: 1835 | E71: 1.35 | F71: 0.03
A72: 5632 | B72: Germersheim / Sondernheim | C72: 215 | D72: 1775 | E72: 1.3 | F72: 0.03
A73: 4407 | B73: Gerolsheim / Gerolsheim | C73: 210 | D73: 1895 | E73: 1.27 | F73: 0.01
A74: 3308 | B74: Gerolstein / Gerolstein | C74: 55 | D74: 920 | E74: 0.92 | F74: -0.02
A75: 4428 | B75: Grünstadt / Sausenheim | C75: 275 | D75: 1975 | E75: 1.39 | F75: 0.04
A76: 430 | B76: Hachenburg / Hachenburg | C76: 120 | D76: 1380 | E76: 1.12 | F76: 0
A77: 5696 | B77: Hagenbach / Hagenbach | C77: 220 | D77: 1825 | E77: 1.3 | F77: 0.01
A78: 4057 | B78: Hanhofen / Hanhofen | C78: 250 | D78: 1990 | E78: 1.34 | F78: 0.04
A79: 2008 | B79: Hargesheim / Hargesheim | C79: 140 | D79: 1560 | E79: 1.15 | F79: -0.01
A80: 4058 | B80: Harthausen / Harthausen | C80: 280 | D80: 2115 | E80: 1.38 | F80: 0.04
A81: 4301 | B81: Haßloch / Haßloch | C81: 305 | D81: 2250 | E81: 1.41 | F81: 0.06
A82: 5659 | B82: Hatzenbühl / Hatzenbühl | C82: 140 | D82: 1825 | E82: 1.13 | F82: 0.03
A83: 5307 | B83: Hauenstein / Hauenstein | C83: 90 | D83: 1100 | E83: 1.05 | F83: -0.03
A84: 3591 | B84: Heidesheim am Rhein / Heidesheim | C84: 340 | D84: 2365 | E84: 1.45 | F84: 0.04
A85: 2642 | B85: Hermeskeil / Hermeskeil | C85: 75 | D85: 1015 | E85: 1 | F85: 0.01
A86: 5527 | B86: Herxheim bei Landau (Pf.) / Herxheim | C86: 230 | D86: 2030 | E86: 1.3 | F86: 0.04
A87: 675 | B87: Höhr-Grenzhausen / Höhr | C87: 125 | D87: 1400 | E87: 1.13 | F87: 0
A88: 2223 | B88: Idar-Oberstein / Göttschied | C88: 60 | D88: 905 | E88: 0.94 | F88: -0.06
A89: 2225 | B89: Idar-Oberstein / Idar-Oberstein | C89: 41 | D89: 790 | E89: 0.85 | F89: -0.06
A90: 3584 | B90: Ingelheim am Rhein / Frei-Weinheim | C90: 290 | D90: 2155 | E90: 1.39 | F90: 0.04
A91: 3583 | B91: Ingelheim am Rhein / Nieder-Ingelheim | C91: 335 | D91: 2340 | E91: 1.44 | F91: 0.04
A92: 3582 | B92: Ingelheim am Rhein / Ober-Ingelheim | C92: 380 | D92: 2515 | E92: 1.48 | F92: 0.04
A93: 5657 | B93: Jockgrim / Jockgrim | C93: 250 | D93: 2175 | E93: 1.33 | F93: 0.03
A94: 5002 | B94: Kaiserslautern / Dansenberg | C94: 205 | D94: 1685 | E94: 1.29 | F94: 0.04
A95: 5003 | B95: Kaiserslautern / Hohenecken | C95: 165 | D95: 1405 | E95: 1.24 | F95: 0.04
A96: 5001 | B96: Kaiserslautern / Kaiserslautern | C96: 180 | D96: 1635 | E96: 1.24 | F96: 0.04
A97: 5007 | B97: Kaiserslautern / Morlautern | C97: 155 | D97: 1360 | E97: 1.22 | F97: 0.04
A98: 4371 | B98: Kallstadt / Kallstadt | C98: 240 | D98: 2240 | E98: 1.31 | F98: 0.06
A99: 5671 | B99: Kandel / Kandel | C99: 270 | D99: 2050 | E99: 1.37 | F99: 0.02
A100: 1758 | B100: Kastellaun / Kastellaun | C100: 70 | D100: 1105 | E100: 0.96 | F100: -0.04
A101: 2614 | B101: Kenn / Kenn | C101: 200 | D101: 1805 | E101: 1.28 | F101: 0.1
A102: 4577 | B102: Kirchheimbolanden / Kirchheimbolanden | C102: 140 | D102: 1480 | E102: 1.16 | F102: 0.01
A103: 1415 | B103: Koblenz / Arenberg | C103: 220 | D103: 1930 | E103: 1.29 | F103: 0
A104: 1416 | B104: Koblenz / Ehrenbreitstein | C104: 185 | D104: 1835 | E104: 1.23 | F104: 0
A105: 1405 | B105: Koblenz / Güls | C105: 235 | D105: 1995 | E105: 1.31 | F105: 0
A106: 1419 | B106: Koblenz / Horchheim | C106: 205 | D106: 1870 | E106: 1.27 | F106: 0
A107: 1409 | B107: Koblenz / Kesselheim | C107: 185 | D107: 1770 | E107: 1.23 | F107: 0
A108: 1401 | B108: Koblenz / Koblenz | C108: 300 | D108: 2260 | E108: 1.39 | F108: 0
A109: 1407 | B109: Koblenz / Metternich | C109: 240 | D109: 2070 | E109: 1.31 | F109: 0
A110: 1402 | B110: Koblenz / Moselweiß | C110: 235 | D110: 1870 | E110: 1.32 | F110: 0
A111: 1411 | B111: Koblenz / Neuendorf | C111: 180 | D111: 1650 | E111: 1.24 | F111: 0
A112: 1413 | B112: Koblenz / Niederberg | C112: 165 | D112: 1735 | E112: 1.19 | F112: 0
A113: 1418 | B113: Koblenz / Pfaffendorf | C113: 233 | D113: 2040 | E113: 1.3 | F113: 0
A114: 1406 | B114: Koblenz / Rübenach | C114: 205 | D114: 1870 | E114: 1.27 | F114: 0
A115: 1410 | B115: Koblenz / Wallersheim | C115: 190 | D115: 1795 | E115: 1.24 | F115: 0
A116: 2769 | B116: Konz / Könen | C116: 120 | D116: 1940 | E116: 1.08 | F116: 0.1
A117: 2771 | B117: Konz / Konz | C117: 155 | D117: 1660 | E117: 1.19 | F117: 0.1
A118: 4755 | B118: Kusel / Kusel | C118: 85 | D118: 1140 | E118: 1.02 | F118: -0.05
A119: 962 | B119: Lahnstein / Niederlahnstein | C119: 125 | D119: 1375 | E119: 1.13 | F119: -0.02
A120: 961 | B120: Lahnstein / Oberlahnstein | C120: 150 | D120: 1485 | E120: 1.18 | F120: -0.02
A121: 4322 | B121: Lambrecht (Pfalz) / Lambrecht | C121: 115 | D121: 1310 | E121: 1.1 | F121: -0.03
A122: 3971 | B122: Lambsheim / Lambsheim | C122: 275 | D122: 2245 | E122: 1.36 | F122: 0.01
A123: 5558 | B123: Landau in der Pfalz / Godramstein | C123: 190 | D123: 1775 | E123: 1.25 | F123: 0.07
A124: 5551 | B124: Landau in der Pfalz / Landau | C124: 275 | D124: 2135 | E124: 1.37 | F124: 0.07
A125: 5554 | B125: Landau in der Pfalz / Queichheim | C125: 230 | D125: 1960 | E125: 1.32 | F125: 0.07
A126: 4870 | B126: Landstuhl / Landstuhl | C126: 130 | D126: 1310 | E126: 1.16 | F126: 0.04
A127: 1924 | B127: Langenlonsheim / Langenlonsheim | C127: 190 | D127: 1455 | E127: 1.28 | F127: 0
A128: 5202 | B128: Lemberg / Lemberg | C128: 65 | D128: 970 | E128: 0.95 | F128: -0.06
A129: 4021 | B129: Limburgerhof / Limburgerhof | C129: 350 | D129: 2220 | E129: 1.47 | F129: 0.06
A130: 5599 | B130: Lingenfeld / Lingenfeld | C130: 235 | D130: 2010 | E130: 1.31 | F130: 0.01
A131: 310 | B131: Linz am Rhein / Linz a.Rh. | C131: 125 | D131: 1705 | E131: 1.1 | F131: 0
A132: 4159 | B132: Ludwigshafen am Rhein / Edigheim | C132: 250 | D132: 1900 | E132: 1.35 | F132: 0.07
A133: 4157 | B133: Ludwigshafen am Rhein / Friesenheim | C133: 290 | D133: 2200 | E133: 1.39 | F133: 0.07
A134: 4156 | B134: Ludwigshafen am Rhein / Ludwigshafen | C134: 440 | D134: 2800 | E134: 1.53 | F134: 0.07
A135: 4153 | B135: Ludwigshafen am Rhein / Maudach | C135: 300 | D135: 2240 | E135: 1.4 | F135: 0.07
A136: 4152 | B136: Ludwigshafen am Rhein / Mundenheim | C136: 280 | D136: 2100 | E136: 1.39 | F136: 0.07
A137: 4155 | B137: Ludwigshafen am Rhein / Oggersheim | C137: 270 | D137: 2050 | E137: 1.37 | F137: 0.07
A138: 4158 | B138: Ludwigshafen am Rhein / Oppau | C138: 300 | D138: 2240 | E138: 1.4 | F138: 0.07
A139: 4151 | B139: Ludwigshafen am Rhein / Rheingönheim | C139: 300 | D139: 2450 | E139: 1.39 | F139: 0.07
A140: 4154 | B140: Ludwigshafen am Rhein / Ruchheim | C140: 280 | D140: 2220 | E140: 1.37 | F140: 0.07
A141: 5331 | B141: Ludwigswinkel / Ludwigswinkel | C141: 43 | D141: 755 | E141: 0.87 | F141: -0.03
A142: 5453 | B142: Maikammer / Maikammer | C142: 240 | D142: 1995 | E142: 1.33 | F142: 0.07
A143: 3707 | B143: Mainz / Bretzenheim | C143: 620 | D143: 3375 | E143: 1.67 | F143: 0.07
A144: 3708 | B144: Mainz / Drais | C144: 650 | D144: 3640 | E144: 1.67 | F144: 0.07
A145: 3705 | B145: Mainz / Ebersheim | C145: 475 | D145: 2945 | E145: 1.56 | F145: 0.07
A146: 3709 | B146: Mainz / Finthen | C146: 560 | D146: 3130 | E146: 1.63 | F146: 0.07
A147: 3710 | B147: Mainz / Gonsenheim | C147: 570 | D147: 3180 | E147: 1.64 | F147: 0.07
A148: 3704 | B148: Mainz / Hechtsheim | C148: 575 | D148: 3350 | E148: 1.63 | F148: 0.07
A149: 3703 | B149: Mainz / Laubenheim | C149: 650 | D149: 3640 | E149: 1.67 | F149: 0.07
A150: 37071 | B150: Mainz / Lerchenberg (Bretzenheim) | C150: 620 | D150: 3375 | E150: 1.67 | F150: 0.07
A151: 3701 | B151: Mainz / Mainz | C151: 800 | D151: 4250 | E151: 1.75 | F151: 0.07
A152: 3706 | B152: Mainz / Marienborn | C152: 435 | D152: 2640 | E152: 1.54 | F152: 0.07
A153: 3711 | B153: Mainz / Mombach | C153: 455 | D153: 2875 | E153: 1.55 | F153: 0.07
A154: 3702 | B154: Mainz / Weisenau | C154: 475 | D154: 2945 | E154: 1.56 | F154: 0.07
A155: 2503 | B155: Manderscheid / Manderscheid | C155: 37 | D155: 920 | E155: 0.82 | F155: 0.02
A156: 4572 | B156: Marnheim / Marnheim | C156: 85 | D156: 970 | E156: 1.05 | F156: 0.01
A157: 3976 | B157: Maxdorf / Maxdorf | C157: 325 | D157: 2255 | E157: 1.43 | F157: 0.01
A158: 1239 | B158: Mayen / Mayen | C158: 155 | D158: 1535 | E158: 1.19 | F158: 0
A159: 4306 | B159: Meckenheim / Meckenheim | C159: 305 | D159: 2280 | E159: 1.41 | F159: 0.08
A160: 3638 | B160: Mommenheim / Mommenheim | C160: 340 | D160: 2305 | E160: 1.45 | F160: 0
A161: 705 | B161: Montabaur / Horressen | C161: 135 | D161: 1445 | E161: 1.15 | F161: 0
A162: 704 | B162: Montabaur / Montabaur | C162: 180 | D162: 1650 | E162: 1.24 | F162: 0
A163: 2393 | B163: Morbach / Morbach | C163: 65 | D163: 1385 | E163: 0.92 | F163: -0.03
A164: 1330 | B164: Mülheim-Kärlich / Mülheim | C164: 185 | D164: 1720 | E164: 1.24 | F164: 0
A165: 4016 | B165: Mutterstadt / Mutterstadt | C165: 325 | D165: 2100 | E165: 1.45 | F165: 0.04
A166: 3624 | B166: Nackenheim / Nackenheim | C166: 320 | D166: 2255 | E166: 1.42 | F166: 0.03
A167: 4026 | B167: Neuhofen / Neuhofen | C167: 315 | D167: 1960 | E167: 1.44 | F167: 0.02
A168: 4254 | B168: Neustadt an der Weinstr. / Diedesfeld | C168: 295 | D168: 2700 | E168: 1.36 | F168: 0.04
A169: 4258 | B169: Neustadt an der Weinstr. / Haardt | C169: 345 | D169: 2240 | E169: 1.46 | F169: 0.04
A170: 4256 | B170: Neustadt an der Weinstr. / Hambach | C170: 325 | D170: 2300 | E170: 1.43 | F170: 0.04
A171: 4253 | B171: Neustadt an der Weinstr. / Lachen-Speyerdorf | C171: 225 | D171: 2260 | E171: 1.28 | F171: 0.04
A172: 4257 | B172: Neustadt an der Weinstr. / Neustadt | C172: 300 | D172: 2195 | E172: 1.4 | F172: 0.04
A173: 355 | B173: Neuwied / Heddesdorf | C173: 200 | D173: 1730 | E173: 1.27 | F173: 0
A174: 356 | B174: Neuwied / Heimbach | C174: 175 | D174: 1625 | E174: 1.23 | F174: 0
A175: 346 | B175: Neuwied / Irlich | C175: 190 | D175: 1680 | E175: 1.25 | F175: 0
A176: 353 | B176: Neuwied / Neuwied | C176: 270 | D176: 1890 | E176: 1.38 | F176: 0
A177: 348 | B177: Neuwied / Niederbieber | C177: 155 | D177: 1535 | E177: 1.19 | F177: 0
A178: 351 | B178: Neuwied / Oberbieber | C178: 165 | D178: 1580 | E178: 1.21 | F178: 0
A179: 3606 | B179: Nieder-Olm / Nieder-Olm | C179: 295 | D179: 2150 | E179: 1.4 | F179: 0.02
A180: 3636 | B180: Nierstein / Nierstein | C180: 320 | D180: 2210 | E180: 1.42 | F180: 0
A181: 2763 | B181: Nittel / Nittel | C181: 185 | D181: 2295 | E181: 1.21 | F181: 0.1
A182: 3604 | B182: Ober-Olm / Ober-Olm | C182: 320 | D182: 2240 | E182: 1.42 | F182: 0.02
A183: 4413 | B183: Obrigheim (Pfalz) / Obrigheim | C183: 175 | D183: 1975 | E183: 1.2 | F183: 0.01
A184: 5515 | B184: Offenbach an der Queich / Offenbach | C184: 225 | D184: 1890 | E184: 1.31 | F184: 0.04
A185: 3646 | B185: Oppenheim / Oppenheim | C185: 295 | D185: 2120 | E185: 1.4 | F185: 0
A186: 3891 | B186: Osthofen / Osthofen | C186: 155 | D186: 1535 | E186: 1.19 | F186: 0
A187: 4926 | B187: Otterbach / Otterbach | C187: 125 | D187: 1440 | E187: 1.13 | F187: 0.03
A188: 4948 | B188: Otterberg / Otterberg | C188: 120 | D188: 1415 | E188: 1.12 | F188: 0.03
A189: 3751 | B189: Partenheim / Partenheim | C189: 200 | D189: 1730 | E189: 1.27 | F189: 0
A190: 5151 | B190: Pirmasens / Pirmasens | C190: 75 | D190: 990 | E190: 1 | F190: -0.06
A191: 5156 | B191: Pirmasens / Winzeln | C191: 95 | D191: 1140 | E191: 1.06 | F191: -0.06
A192: 1268 | B192: Polch / Polch | C192: 90 | D192: 1175 | E192: 1.04 | F192: 0
A193: 4892 | B193: Ramstein-Miesenbach / Ramstein | C193: 160 | D193: 1605 | E193: 1.2 | F193: 0.04
A194: 661 | B194: Ransbach-Baumbach / Ransbach | C194: 125 | D194: 1400 | E194: 1.13 | F194: 0
A195: 1117 | B195: Remagen / Oberwinter | C195: 90 | D195: 1405 | E195: 1.02 | F195: 0.03
A196: 1120 | B196: Remagen / Remagen | C196: 170 | D196: 1805 | E196: 1.2 | F196: 0.03
A197: 241 | B197: Rengsdorf / Rengsdorf | C197: 140 | D197: 1465 | E197: 1.16 | F197: 0
A198: 291 | B198: Rheinbreitbach / Rheinbreitbach | C198: 205 | D198: 2100 | E198: 1.25 | F198: 0
A199: 5658 | B199: Rheinzabern / Rheinzabern | C199: 230 | D199: 2015 | E199: 1.3 | F199: 0.03
A200: 4631 | B200: Rockenhausen / Rockenhausen | C200: 78 | D200: 1105 | E200: 1 | F200: -0.05
... 72 more rows

Sheet modifizierte RND (hidden)
A1: Ermittlung der modifizierten Restnutzungsdauer
A2: SW-Modell AGVGA NRW - Anlage 4
A4: tatsächliches Gebäudealter (Alter): | D4: =RND!F29 -> 30 | E4: Jahre | F4: =IF(D4<0,"Negative Jahre ???","") -> 
A6: Modernisierungsgrad: | D6: =IF(RND!I13<>0,RND!I13,RND!I13) -> 0 | E6: Punkte | F6: =IF(D6="","",IF(D6<=K16,"(Modernisierungsstufe 1)",IF(D6<6,"(Modernisierungsstufe 2)",IF(AND(D6>5,D6<11),"(Modernisierungsstufe 3)",IF(AND(D6>10,D6<18),"(Modernisierungsstufe 4)",IF(D6>=K33,"(Modernisierungsstufe 5)","")))))) -> (Modernisierungsstufe 1)
A8: Gesamtnutzungsdauer (GND): | D8: =RND!F31 -> 70 | E8: Jahre | K8: mögliche Gesamtnutzungsdauer: | O8: relatives Gebäudealter
K9: 60 | O9: =D4/D8 -> 0.4285714286 | Q9: Alter für Formel max. Alter der GND | R9: Prüfung, ob Formel anwendbar ( "ab einem relativen Alter") | S9: Formel nicht anwendbar, daher Jahre durch Abzug RND=GND-Alter aber max. 80 Jahre! | T9: Formel anwendbar mod. RND in Jahren | U9: modifizierte RND | V9: interpoliert ? | W9: GND - Alter ?
A10: modifizierte Restnutzungsdauer: | D10: =IF(D6=0,D8-D4,IF(AND(D4="",D6="",D8=""),"",IF(D4<>"",IF(D6="","Punkte ?",IF(D8="","GND ?",U34)),"s.o."))) -> 40 | E10: Jahre | K10: 65
A11: Bei der angezeigten modifizierten Restnutzungsdauer handelt es sich um eine interpolierte, mathematisch berechnete Zahl ! | K11: 70
K12: 75
K13: 80
A14: Tabelle zur Ermittlung der modifizierten Restnutzungsdauer | K14: 90 | Q14: =IF(D4>D8,D8,D4) -> 30
K15: Modernisierungsgrad: | M15: =IF(D6=K16,1,IF(D6=K33,18,D6)) -> 0 | N15: a | O15: b | P15: c
A16: a x . | B16: 100 | C16: x Alter ² - b x Alter + c x | F16: GND | K16: 1 | M16: =IF($D$6<=B20,D6,"") -> 0 | N16: =IF($D$6<=B20,C20,"") -> 0.0125 | O16: =IF($D$6<=B20,D20,"") -> 2.625 | P16: =IF($D$6<=B20,E20,"") -> 152.5 | R16: =IF(M16="","",IF(AND($D$6<=B20,$O$9>=F20/100),"JA","NEIN")) -> NEIN | S16: =IF(R16="NEIN",IF($D$4>80,80,$D$8-$Q$14),"") -> 40 | T16: =IF(R16="JA",$N$34*100/$D$8*$Q$14*$Q$14-($O$34*$Q$14)+($P$34*$D$8/100),"") ->  | U16: =SUM(S16:T16) -> 40 | V16: =IF(R16="JA",IF(AND(OR($D$4=0,$D$4=5,$D$4=10,$D$4=15,$D$4=20,$D$4=25,$D$4=30,$D$4=35,$D$4=40,$D$4=45,$D$4=50,$D$4=55,$D$4=60,$D$4=60,$D$4=65,$D$4=70,$D$4=75,$D$4>=80),OR($D$6<2,$D$6=4,$D$6=8,$D$6=13,$D$6>17)),0,1),0) -> 0 | W16: =IF(R16="NEIN",1,0) -> 1
B17: GND | F17: 100 | K17: 2 | M17: =IF($D$6=B21,B21,"") ->  | N17: =IF($D$6=B21,C21,"") ->  | O17: =IF($D$6=B21,D21,"") ->  | P17: =IF($D$6=B21,E21,"") ->  | R17: =IF(M17="","",IF(AND($D$6=B21,$O$9>=F21/100),"JA","NEIN")) ->  | S17: =IF(R17="NEIN",$D$8-$D$4,"") ->  | U17: 0 | V17: 0 | W17: 0
A18: Die Restnutzungsdauer kann zwischen den Stufen durch Interpolation ermittelt werden. | K18: 3 | U18: 0 | V18: 0 | W18: 0
B19: Moder- nisierungs- grad | C19: a | D19: b | E19: c | F19: ab einem relativen Alter (%) | K19: 4 | U19: 0 | V19: 0 | W19: 0
B20: 1 | C20: 0.0125 | D20: 2.625 | E20: 152.5 | F20: 60 | K20: 5 | U20: 0 | V20: 0 | W20: 0
B21: 2 | C21: =ROUND(C20-(C20-C23)/3*1,4) -> 0.0108 | D21: =ROUND(D20-(D20-D23)/3*1,3) -> 2.276 | E21: =ROUND(E20-(E20-E23)/3*1,2) -> 138.78 | F21: =ROUND(F20-(F20-F23)/3*1,0) -> 53 | H21: Zeile 22, Spalte F: | K21: 6 | U21: 0 | V21: 0 | W21: 0
B22: 3 | C22: =ROUND(C20-(C20-C23)/3*2,4) -> 0.009 | D22: =ROUND(D20-(D20-D23)/3*2,3) -> 1.926 | E22: =ROUND(E20-(E20-E23)/3*2,2) -> 125.05 | F22: =ROUND(F20-(F20-F23)/3*2,0)+1 -> 48 | H22: ein Jahr addiert, | K22: 7 | U22: 0 | V22: 0 | W22: 0
B23: 4 | C23: 0.0073 | D23: 1.577 | E23: 111.33 | F23: 40 | H23: da sonst die modifizierte | K23: 8 | U23: 0 | V23: 0 | W23: 0
B24: 5 | C24: =ROUND(C23-(C23-C27)/4*1,4) -> 0.0067 | D24: 1.458 | E24: =ROUND(E23-(E23-E27)/4*1,2) -> 108.5 | F24: =ROUND(F23-(F23-F27)/4*1,0) -> 35 | H24: RND bei Modernisierungspunkt 3 | K24: 9 | U24: 0 | V24: 0 | W24: 0
B25: 6 | C25: =ROUND(C23-(C23-C27)/4*2,4) -> 0.0062 | D25: =ROUND(D23-(D23-D27)/4*2,3) -> 1.339 | E25: =ROUND(E23-(E23-E27)/4*2,24) -> 105.665 | F25: =ROUND(F23-(F23-F27)/4*2,0) -> 30 | H25: größer als bei Mod.Pkt 4 sein könnte | K25: 10 | U25: 0 | V25: 0 | W25: 0
B26: 7 | C26: =ROUND(C23-(C23-C27)/4*3,4) -> 0.0056 | D26: =ROUND(D23-(D23-D27)/4*3,3) -> 1.219 | E26: =ROUND(E23-(E23-E27)/4*3,2) -> 102.83 | F26: =ROUND(F23-(F23-F27)/4*3,0) -> 25 | K26: 11 | U26: 0 | V26: 0 | W26: 0
B27: 8 | C27: 0.005 | D27: 1.1 | E27: 100 | F27: 20 | K27: 12 | U27: 0 | V27: 0 | W27: 0
B28: 9 | C28: =ROUND(C27-(C27-C32)/5*1,4) -> 0.0047 | D28: =ROUND(D27-(D27-D32)/5*1,3) -> 1.027 | E28: =ROUND(E27-(E27-E32)/5*1,2) -> 99.06 | F28: =ROUND(F27-(F27-F32)/5*1,0) -> 19 | K28: 13 | U28: 0 | V28: 0 | W28: 0
B29: 10 | C29: =ROUND(C27-(C27-C32)/5*2,4) -> 0.0043 | D29: =ROUND(D27-(D27-D32)/5*2,3) -> 0.954 | E29: =ROUND(E27-(E27-E32)/5*2,2) -> 98.11 | F29: =ROUND(F27-(F27-F32)/5*2,0) -> 18 | K29: 14 | U29: 0 | V29: 0 | W29: 0
B30: 11 | C30: =ROUND(C27-(C27-C32)/5*3,4) -> 0.004 | D30: =ROUND(D27-(D27-D32)/5*3,3) -> 0.881 | E30: =ROUND(E27-(E27-E32)/5*3,2) -> 97.17 | F30: =ROUND(F27-(F27-F32)/5*3,0) -> 17 | K30: 15 | U30: 0 | V30: 0 | W30: 0
B31: 12 | C31: =ROUND(C27-(C27-C32)/5*4,4) -> 0.0036 | D31: =ROUND(D27-(D27-D32)/5*4,3) -> 0.808 | E31: =ROUND(E27-(E27-E32)/5*4,2) -> 96.22 | F31: =ROUND(F27-(F27-F32)/5*4,0) -> 16 | K31: 16 | U31: 0 | V31: 0 | W31: 0
B32: 13 | C32: 0.0033 | D32: 0.735 | E32: 95.28 | F32: 15 | K32: 17 | U32: 0 | V32: 0 | W32: 0
B33: 14 | C33: =ROUND(C32-(C32-C37)/5*1,4) -> 0.003 | D33: =ROUND(D32-(D32-D37)/5*1,3) -> 0.676 | E33: =ROUND(E32-(E32-E37)/5*1,2) -> 95.06 | F33: =ROUND(F32-(F32-F37)/5*1,0) -> 14 | K33: 18 | M33: =IF($D$6>=B37,D6,"") ->  | N33: =IF($D$6>=B37,C37,"") ->  | O33: =IF($D$6>=B37,D37,"") ->  | P33: =IF($D$6>=B37,E37,"") ->  | R33: =IF(M33="","",IF(AND($D$6>=B37,$O$9>=F37/100),"JA","NEIN")) ->  | U33: 0 | V33: 0 | W33: 0
B34: 15 | C34: =ROUND(C32-(C32-C37)/5*2,4) -> 0.0028 | D34: =ROUND(D32-(D32-D37)/5*2,3) -> 0.617 | E34: =ROUND(E32-(E32-E37)/5*2,2) -> 94.85 | F34: =ROUND(F32-(F32-F37)/5*2,0) -> 13 | N34: =SUM(N16:N33) -> 0.0125 | O34: =SUM(O16:O33) -> 2.625 | P34: =SUM(P16:P33) -> 152.5 | U34: =SUM(U16:U33) -> 40 | V34: =SUM(V16:V33) -> 0 | W34: =SUM(W16:W33) -> 1
B35: 16 | C35: =ROUND(C32-(C32-C37)/5*3,4) -> 0.0025 | D35: =ROUND(D32-(D32-D37)/5*3,3) -> 0.558 | E35: =ROUND(E32-(E32-E37)/5*3,2) -> 94.63 | F35: =ROUND(F32-(F32-F37)/5*3,0) -> 12 | N35: a | O35: b | P35: c | V35: =IF(V34=0,""," (interpoliert)") ->  | W35: =IF(W34=0,""," (GND - tats. Alter)") -> (GND - tats. Alter)
B36: 17 | C36: =ROUND(C32-(C32-C37)/5*4,4) -> 0.0023 | D36: =ROUND(D32-(D32-D37)/5*4,3) -> 0.499 | E36: =ROUND(E32-(E32-E37)/5*4,2) -> 94.42 | F36: =ROUND(F32-(F32-F37)/5*4,0) -> 11 | U36: Text in RND: | V36: =IF(V35<>"",V35,W35) -> (GND - tats. Alter)
B37: 18 | C37: 0.002 | D37: 0.44 | E37: 94.2 | F37: 10

Sheet Info (hidden)
A1: WE-Rechner RLP (MS-Excel 2007)
A3: Update-Informationen
A5: Version 1.0 - 2017 Stand 16.3.2017
A6: Neuprogrammierung nach dem Modell des LGMB 2017
A8: Version 1.1 - 2017 Stand 10.4.2017
A9: ● Blatt "Berechnung und Ergebnis", Zelle D65 - Berichtigung eines Rechenfehlers: Formelbezug D16 geändert in D17
A10: ● Blatt "EingabeMaske", Zellen D30 und D31 - Öffnen der Obergrenze für Bodenwerte von 450 €/m² auf 900 €/m² mit Warnhinweis bei Werten über 450 €/m²
A11: ● Blatt "Vergleichsfaktoren" - Zellen D211 und E211: Anhebung des Richtwertes für Mainz, Elsa-Brändström-Straße von 2.300 €/m² Wf auf 2.700 €/m²Wf mit entsprechender Anpassung des Sachwertfaktors von 1,37 auf 1,34
A13: Version 1.2 - 2017 Stand 11.5.2017
A14: Blatt "Vergleichsfaktoren" - Zellen D326 bis D335: Anhebung der Richtwerte für die Stadt Trier
A15: ● von 1.450 €/m² Wf auf 1.600 €/m²Wf mit entsprechender Anpassung des Sachwertfaktors von 1,07 auf 1,06
A16: ● von 1.870 €/m² Wf auf 2.060 €/m²Wf mit entsprechender Anpassung des Sachwertfaktors von 1,22 auf 1,20
A17: ● von 2.400 €/m² Wf auf 2.400 €/m²Wf mit entsprechender Anpassung des Sachwertfaktors von 1,36 auf 1,33
A19: Version 1.3 - 2018 Stand 25.5.2018
A20: ● Anpassung der Berechnung auf zwei Nachkommastellen (dadurch treten keine Differenzen zwischen einer händischen und der Excel-Berechnung mehr auf)
A21: ● Fortschreibung der Indexreihe zur Anpassung an die allgemeinen Wertverhältnisse: 1.1.2018: neu 160; 1.1.2017: 147 (vormals 140) unter Verwendung nachgelieferter Daten der Gutachterausschüsse
A22: ● Korrektur des irrtümlich falschen Vergleichsfaktors Almersbach (Landkreis Altenkirchen)
A24: Version 2.0 - 2019 Stand 7.3.2019
A25: ● Blatt EingabeMaske:
A26: Wertermittlungsstichtag / Index - Berücksichtigung der unterschiedlichen Wertverhältnisse zum Stichtag der Richtwerte und dem Wertermittlungsstichtag: Erstmals werden optional regionale Indexreihen angeboten. Nach händischer Berechnung eines Umrechnungsko
A27: ● Blatt Berechnung und Ergebnis: redaktionelle Änderungen
A28: ● Blatt Vergleichsfaktoren: Neufassung/ Fortschreibung auf den Stichtag 1.1.2018
A29: Neuberechnung auf Grundlage der Umrechnungskoeffizienten des LGMB 2019, Plausibilisierung unter Heranziehung von 857 Nachbewertungen von Kauffällen aus 2017 und 2018 und zusätzlich durch Vergleich mit den langjährigen mittleren Kaufpreisniveaus (Medianen)
A30: Neugliederung der Orte: Die Vergleichsfaktoren wurden erstmals auf Ebene der Gemarkungen abgeleitet; Voraussetzung: In der Kaufpreissammlung wurden seit dem Jahr 2010 zwanzig und mehr Kaufpreise mit Angabe des bereinigten Kaufpreises (€/m² Wohnfläche) erf
A31: Die Gliederung wurde von Gemeindeteilen auf Gemarkungen umgestellt, damit bei der Ermittlung der Vergleichsfaktoren das Niveau der Vergleichskauffälle (auf den Richtwertstichtag hochgerechnete Mediane) und die Ergebnisse der Nachbewertungen, den Modellerg
A32: Bodenwertniveaus: Die den gemarkungsweisen Vergleichsfaktoren zugeordneten durchschnittlichen Bodenwertniveaus wurden zum Stichtag 1.1.2018 neu ermittelt. Grundlage bildeten jeweils die zonalen Bodenrichtwerte in typischen Lagen, in Verbindung mit den in
A33: ● Blatt Vergleichsdaten
A34: Sachwertfaktoren: Neue Koeffizienten für die Berechnung der landesdurchschnittlichen Sachwertfaktoren ((vgl. Abschnitt 6.8.5 im Landesgrundstücksmarktbericht 2019).
A35: Indexreihen: Neuberechnung/Fortschreibung nach Umstellung des statistischen Verfahrens. Erstmalige zusätzliche (optionale) regionale Differenzierung (Abschnitt 6.5 des Landesgrundstücksmarktberichts 2019).
A37: Die vorliegenden Vergleichsfaktoren sind wegen der beschriebenen Weiterentwicklungen des Verfahrens nur bedingt mit den vorangegangenen Veröffentlichungen vergleichbar.
A39: Version 2.1 - 2019 Stand 4.4.2019
A40: ● Blatt Vergleichsdaten
A41: Indexreihen: Fehlerberichtigung - Die regionalen Indexwerte wurden aufgrund eines Übertragungsfehlers bei den Gruppen 2-6 neu eingestellt (Die Tabelle im Druckexemplar auf Seite 322 des LGMB 2019 ist durch die berichtigte zu ersetzen, vgl. https://gutacht
A43: Version 2.2 - 2019 Stand 18.7.2019
A44: ● Blatt Vergleichsdaten
A45: Fortschreibung der Indexreihen nach neuem Verfahren: a) zum 1.1.2020 (Prognose erstmals per Mittelbildung der Preissteigerungsraten über 1, 3 und 5 Jahre, b) zum 1.1.2019 Glättung per gewogener Mittelbildung analog des Prognoseverfahrens. Zum 1.1.2018 Glä
A47: Version 2.3 - 2019 Stand 22.7.2020
A48: ● Blatt Vergleichsdaten
A49: Fortschreibung der Indexreihen analog dem Verfahren der Version 2.2

Sheet Werte Neu (hidden)
A1: Garage | B1: 7000
A2: Doppelgarage | B2: 12000
A3: Carport | B3: 4000
A4: Carport und Garage | B4: 11000
A5: Aussenstellplatz | B5: 3500
A6: Sonstiges (freie Eingabe) | B6: 0
